Posting date,Supplier number,Supplier name,Expense type,Department,Amount
12/01/2022,1249077,The Advocacy Project,Hired and Contracted Services,ASC Procurement and Business Intelligenc,51294
15/03/2022,1248618,Riverside Echg,Payments to Voluntary bodies,ASC Procurement and Business Intelligenc,94500
15/03/2022,1248618,Riverside Echg,Payments to Voluntary bodies,ASC Procurement and Business Intelligenc,31500
31/03/2022,1279472,Public Consulting Group Uk Ltd,Payments to main contractor,Adult Social Care Business,40000
08/03/2022,1243869,Addison Lee,Payments to Transport Operators,Adult Social Care Finance and Resources,1080.72
17/03/2022,1246633,Crawford Cars Ltd,Payments to Transport Operators,Adult Social Care Finance and Resources,1184.43
10/01/2022,1252679,Five Paper,Legal Costs,Adult Social Care Finance and Resources,1275
24/01/2022,1262575,Laura Ross Brand Consultancy,,Adult Social Care Finance and Resources,5870
07/02/2022,1282452,PERSONAL PAYMENTS,Training related expenditure,Adult Social Care Finance and Resources,1350
04/02/2022,1257745,Russell Scott Entertainment Ltd,B*Contract Claims/Provisions,Adult Social Care Finance and Resources,3750
06/03/2022,1265928,Solace in Business,Training related expenditure,Adult Social Care Finance and Resources,862.5
28/02/2022,1249167,TMP (UK) Ltd,Hired and Contracted Services,Adult Social Care Finance and Resources,2550
02/01/2022,1245648,Star Boarding Kennels,Other premises related costs,Adult Social Care Finance and Resources,733
31/01/2022,1245228,Pohwer,Hired and Contracted Services,Adult Social Care Finance and Resources,1847.98
11/03/2022,1245228,Pohwer,Hired and Contracted Services,Adult Social Care Finance and Resources,1715.2
11/03/2022,1245228,Pohwer,Hired and Contracted Services,Adult Social Care Finance and Resources,1078.15
20/01/2022,1283445,NHS NORTH WEST LONDON CCG,Payments to Health Authorities,Adult Social Care Finance and Resources,40675
24/03/2022,1283445,NHS NORTH WEST LONDON CCG,Payments to Health Authorities,Adult Social Care Finance and Resources,348399
28/01/2022,1243775,Royal Borough of Kensington &,B*Payments to OLAs - Southampton City Co,Adult Social Care Finance and Resources,716642
30/03/2022,1251196,Royal Borough of Kensington and,B*Payments to OLAs - Portsmouth City Coun,Adult Social Care Finance and Resources,36950
23/03/2022,1243778,Royal Borough of Kensington and Che,B*Payments to OLAs - Portsmouth City Coun,Adult Social Care Finance and Resources,44730
10/03/2022,1255843,A.I. Care Services Ltd,Grant Aid and Donations,Adult Social Care Operations,2000
10/03/2022,1245982,Anchor Trust,Grant Aid and Donations,Adult Social Care Operations,25500
18/03/2022,1243931,Ashbourne Healthcare Services,Grant Aid and Donations,Adult Social Care Operations,34978.72
10/03/2022,1246261,Brent Wandsworth & Westminster,Grant Aid and Donations,Adult Social Care Operations,7356.11
10/03/2022,1246313,Camden Chinese Community Centre,Grant Aid and Donations,Adult Social Care Operations,2000
10/03/2022,1245091,Care UK Community Partnerships Ltd,Grant Aid and Donations,Adult Social Care Operations,64550
10/03/2022,1268176,Conquest Care and Support,Grant Aid and Donations,Adult Social Care Operations,2000
10/03/2022,1246910,Elite Specialist Care Ltd,Grant Aid and Donations,Adult Social Care Operations,2000
10/03/2022,1259597,Ethica Services LTD,Grant Aid and Donations,Adult Social Care Operations,82341.57
10/03/2022,1247196,G-e-g Solutions Ltd,Grant Aid and Donations,Adult Social Care Operations,2000
10/03/2022,1273817,GCH Alan Morkill House Ltd,Grant Aid and Donations,Adult Social Care Operations,50150
05/01/2022,D000000016,PERSONAL PAYMENTS,Payment to Government Departments,Adult Social Care Operations,53725.85
05/01/2022,D000000016,PERSONAL PAYMENTS,Payment to Government Departments,Adult Social Care Operations,48239.83
10/03/2022,1278030,Graceful Care Ltd,Grant Aid and Donations,Adult Social Care Operations,2000
10/03/2022,1244531,HCP Staffing Services Ltd,Grant Aid and Donations,Adult Social Care Operations,2000
10/03/2022,1247257,Health Vision Uk,Grant Aid and Donations,Adult Social Care Operations,218589.85
10/03/2022,1244556,Homecare Alliance Ltd,Grant Aid and Donations,Adult Social Care Operations,2000
10/03/2022,1254857,Hope Care Agency,Grant Aid and Donations,Adult Social Care Operations,58848.91
10/03/2022,1256893,Kapital Care WCC,Grant Aid and Donations,Adult Social Care Operations,29115.57
10/03/2022,1247650,London Care Ltd,Grant Aid and Donations,Adult Social Care Operations,197373.81
10/03/2022,1259132,MMR Home Care LTD,Grant Aid and Donations,Adult Social Care Operations,88067.45
10/03/2022,1266168,Midshire Care LTD,Grant Aid and Donations,Adult Social Care Operations,2000
10/03/2022,1270125,Nursing Direct Healthcare Limited,Grant Aid and Donations,Adult Social Care Operations,2000
10/03/2022,1244959,Oasis Care & Training Agency(octa),Grant Aid and Donations,Adult Social Care Operations,2000
10/03/2022,1268348,Ohio Homecare ltd,Grant Aid and Donations,Adult Social Care Operations,2000
10/03/2022,1268191,Prime Way Care Ltd London,Grant Aid and Donations,Adult Social Care Operations,20895.71
10/03/2022,1248541,Priory Nursing Agency & Home Care,Grant Aid and Donations,Adult Social Care Operations,16073.62
10/03/2022,1245316,Respect Care Services Ltd,Grant Aid and Donations,Adult Social Care Operations,133536.93
10/03/2022,1274076,Royal Association for Deaf People,Grant Aid and Donations,Adult Social Care Operations,2000
10/03/2022,1248843,Sage Care Ltd,Grant Aid and Donations,Adult Social Care Operations,134114.66
10/03/2022,1243532,Sanctuary Care Ltd,Grant Aid and Donations,Adult Social Care Operations,17800
10/03/2022,1243532,Sanctuary Care Ltd,Grant Aid and Donations,Adult Social Care Operations,25250
10/03/2022,1243532,Sanctuary Care Ltd,Grant Aid and Donations,Adult Social Care Operations,35450
10/03/2022,1248878,Sevacare (Uk) Ltd,Grant Aid and Donations,Adult Social Care Operations,2000
10/03/2022,1248913,Smithfield Health & Social Care,Grant Aid and Donations,Adult Social Care Operations,44422.69
10/03/2022,1245611,Solo Support Services Ltd,Grant Aid and Donations,Adult Social Care Operations,2000
10/03/2022,1257177,St Georges Home Care Ltd,Grant Aid and Donations,Adult Social Care Operations,2000
10/03/2022,1243548,St Georges Nursing Home Ltd,Grant Aid and Donations,Adult Social Care Operations,25650
10/03/2022,1245182,Supporting Care Ltd,Grant Aid and Donations,Adult Social Care Operations,2000
10/03/2022,1268855,Supreme Care Services Ltd,Grant Aid and Donations,Adult Social Care Operations,2000
10/03/2022,1245825,Sweet Tree Home Care Services,Grant Aid and Donations,Adult Social Care Operations,2000
10/03/2022,1245882,The Bis Services Ltd,Grant Aid and Donations,Adult Social Care Operations,2000
10/03/2022,1249232,Vincentian Care Plus,Grant Aid and Donations,Adult Social Care Operations,127393.48
10/03/2022,1276652,We Care Agency Ltd,Grant Aid and Donations,Adult Social Care Operations,25940.89
10/03/2022,1249291,Westminster Society,Grant Aid and Donations,Adult Social Care Operations,1750
10/03/2022,1249291,Westminster Society,Grant Aid and Donations,Adult Social Care Operations,1750
10/03/2022,1249291,Westminster Society,Grant Aid and Donations,Adult Social Care Operations,1400
10/03/2022,1249291,Westminster Society,Grant Aid and Donations,Adult Social Care Operations,1400
10/03/2022,1243566,Yarrow Housing Ltd,Grant Aid and Donations,Adult Social Care Operations,2100
10/03/2022,1249317,Zocalo Ltd T/as Bluebird Care,Grant Aid and Donations,Adult Social Care Operations,2000
10/01/2022,1244309,Doro Care Ltd,###,Bi-Borough Director of Integrated Care,1584
11/01/2022,1244309,Doro Care Ltd,###,Bi-Borough Director of Integrated Care,9450
11/01/2022,1244309,Doro Care Ltd,###,Bi-Borough Director of Integrated Care,700
30/03/2022,1244309,Doro Care Ltd,###,Bi-Borough Director of Integrated Care,9450
07/02/2022,1273817,GCH Alan Morkill House Ltd,Hired and Contracted Services,Bi-Borough Director of Integrated Care,364008
07/02/2022,1273817,GCH Alan Morkill House Ltd,Hired and Contracted Services,Bi-Borough Director of Integrated Care,364008
03/03/2022,1273817,GCH Alan Morkill House Ltd,Hired and Contracted Services,Bi-Borough Director of Integrated Care,364008
02/03/2022,1246206,Westco Trading ltd,"Publicity, Promotions and Advertisement",Bi-Borough Director of Integrated Care,505
11/02/2022,1255843,A.I. Care Services Ltd,,Bi-Borough Director of Integrated Care,536.96
10/03/2022,1255843,A.I. Care Services Ltd,,Bi-Borough Director of Integrated Care,536.96
05/01/2022,1245929,The Regard Partnership Ltd,,Bi-Borough Director of Integrated Care,3932.76
05/01/2022,1245929,The Regard Partnership Ltd,,Bi-Borough Director of Integrated Care,6222.2
05/01/2022,1245929,The Regard Partnership Ltd,,Bi-Borough Director of Integrated Care,9292.6
02/02/2022,1245929,The Regard Partnership Ltd,,Bi-Borough Director of Integrated Care,4031.06
02/02/2022,1245929,The Regard Partnership Ltd,,Bi-Borough Director of Integrated Care,6377.75
02/02/2022,1245929,The Regard Partnership Ltd,,Bi-Borough Director of Integrated Care,9292.6
03/03/2022,1245929,The Regard Partnership Ltd,,Bi-Borough Director of Integrated Care,4011.4
03/03/2022,1245929,The Regard Partnership Ltd,,Bi-Borough Director of Integrated Care,9710.74
03/03/2022,1245929,The Regard Partnership Ltd,,Bi-Borough Director of Integrated Care,6346.64
24/03/2022,1245929,The Regard Partnership Ltd,,Bi-Borough Director of Integrated Care,10832.5
24/03/2022,1245929,The Regard Partnership Ltd,,Bi-Borough Director of Integrated Care,4584.46
24/03/2022,1245929,The Regard Partnership Ltd,,Bi-Borough Director of Integrated Care,7253.3
05/01/2022,1271174,ASPECTS 2 LIMITED,,Bi-Borough Director of Integrated Care,8234.4
02/02/2022,1271174,ASPECTS 2 LIMITED,,Bi-Borough Director of Integrated Care,8234.4
03/03/2022,1271174,ASPECTS 2 LIMITED,,Bi-Borough Director of Integrated Care,8234.4
24/03/2022,1271174,ASPECTS 2 LIMITED,,Bi-Borough Director of Integrated Care,9410.74
05/01/2022,1243851,Accomplish Group Ltd,,Bi-Borough Director of Integrated Care,8877.4
05/01/2022,1243851,Accomplish Group Ltd,,Bi-Borough Director of Integrated Care,8877.4
02/02/2022,1243851,Accomplish Group Ltd,,Bi-Borough Director of Integrated Care,8877.4
02/02/2022,1243851,Accomplish Group Ltd,,Bi-Borough Director of Integrated Care,8877.4
03/03/2022,1243851,Accomplish Group Ltd,,Bi-Borough Director of Integrated Care,8877.4
03/03/2022,1243851,Accomplish Group Ltd,,Bi-Borough Director of Integrated Care,8877.4
24/03/2022,1243851,Accomplish Group Ltd,,Bi-Borough Director of Integrated Care,10145.6
24/03/2022,1243851,Accomplish Group Ltd,,Bi-Borough Director of Integrated Care,10145.6
05/01/2022,1243435,Acorn Village,,Bi-Borough Director of Integrated Care,5221.08
02/02/2022,1243435,Acorn Village,,Bi-Borough Director of Integrated Care,5221.08
03/03/2022,1243435,Acorn Village,,Bi-Borough Director of Integrated Care,5221.08
24/03/2022,1243435,Acorn Village,,Bi-Borough Director of Integrated Care,5966.95
31/03/2022,1245793,Act Too Ltd,B*Voluntary-Spot-V Dep-Enhanced - do not u,Bi-Borough Director of Integrated Care,500
11/01/2022,1243931,Ashbourne Healthcare Services,,Bi-Borough Director of Integrated Care,1703.22
24/01/2022,1243931,Ashbourne Healthcare Services,,Bi-Borough Director of Integrated Care,874.66
24/01/2022,1243931,Ashbourne Healthcare Services,,Bi-Borough Director of Integrated Care,874.66
10/02/2022,1243931,Ashbourne Healthcare Services,,Bi-Borough Director of Integrated Care,1417.96
05/01/2022,1243942,Aspens Charities,,Bi-Borough Director of Integrated Care,7000
02/02/2022,1243942,Aspens Charities,,Bi-Borough Director of Integrated Care,7000
03/03/2022,1243942,Aspens Charities,,Bi-Borough Director of Integrated Care,7000
24/03/2022,1243942,Aspens Charities,,Bi-Borough Director of Integrated Care,8000
05/01/2022,1243961,Autism Anglia,,Bi-Borough Director of Integrated Care,10644
02/02/2022,1243961,Autism Anglia,,Bi-Borough Director of Integrated Care,10644
03/03/2022,1243961,Autism Anglia,,Bi-Borough Director of Integrated Care,10644
24/03/2022,1243961,Autism Anglia,,Bi-Borough Director of Integrated Care,12164.57
10/03/2022,1246066,Barrie Bookkeeping & Payroll,B*Junior group rec activities,Bi-Borough Director of Integrated Care,2029.44
05/01/2022,1243444,Broadham Care Ltd,,Bi-Borough Director of Integrated Care,6324
05/01/2022,1243444,Broadham Care Ltd,,Bi-Borough Director of Integrated Care,1400
02/02/2022,1243444,Broadham Care Ltd,,Bi-Borough Director of Integrated Care,1400
02/02/2022,1243444,Broadham Care Ltd,,Bi-Borough Director of Integrated Care,6324
03/03/2022,1243444,Broadham Care Ltd,,Bi-Borough Director of Integrated Care,1956.87
05/01/2022,1243445,Broadstreet House Limited,,Bi-Borough Director of Integrated Care,4096
02/02/2022,1243445,Broadstreet House Limited,,Bi-Borough Director of Integrated Care,4976.64
03/03/2022,1243445,Broadstreet House Limited,,Bi-Borough Director of Integrated Care,4177.92
24/03/2022,1243445,Broadstreet House Limited,,Bi-Borough Director of Integrated Care,4774.77
05/01/2022,1246286,Brunswick Supported Living,,Bi-Borough Director of Integrated Care,2629.28
02/02/2022,1246286,Brunswick Supported Living,,Bi-Borough Director of Integrated Care,2629.28
03/03/2022,1246286,Brunswick Supported Living,,Bi-Borough Director of Integrated Care,2629.28
24/03/2022,1246286,Brunswick Supported Living,,Bi-Borough Director of Integrated Care,3004.89
05/01/2022,1273390,CHILTERN SUPPORT & HOUSING LTD,,Bi-Borough Director of Integrated Care,16536.72
02/02/2022,1273390,CHILTERN SUPPORT & HOUSING LTD,,Bi-Borough Director of Integrated Care,16536.72
03/03/2022,1273390,CHILTERN SUPPORT & HOUSING LTD,,Bi-Borough Director of Integrated Care,16536.72
24/03/2022,1273390,CHILTERN SUPPORT & HOUSING LTD,,Bi-Borough Director of Integrated Care,18899.11
05/01/2022,1244092,Cambrian Learning Disabilities Ltd,,Bi-Borough Director of Integrated Care,6799.55
02/02/2022,1244092,Cambrian Learning Disabilities Ltd,,Bi-Borough Director of Integrated Care,5803.8
03/03/2022,1244092,Cambrian Learning Disabilities Ltd,,Bi-Borough Director of Integrated Care,5803.8
24/03/2022,1244092,Cambrian Learning Disabilities Ltd,,Bi-Borough Director of Integrated Care,6632.91
12/01/2022,1243795,Cambs & Peterborough Mental,B*Voluntary-Spot-V Dep-Enhanced - do not u,Bi-Borough Director of Integrated Care,568.14
16/02/2022,1243795,Cambs & Peterborough Mental,B*Voluntary-Spot-V Dep-Enhanced - do not u,Bi-Borough Director of Integrated Care,568.14
08/03/2022,1243795,Cambs & Peterborough Mental,B*Voluntary-Spot-V Dep-Enhanced - do not u,Bi-Borough Director of Integrated Care,568.14
05/01/2022,1246321,Camphill Village Trust,,Bi-Borough Director of Integrated Care,3981.08
02/02/2022,1246321,Camphill Village Trust,,Bi-Borough Director of Integrated Care,3981.08
03/03/2022,1246321,Camphill Village Trust,,Bi-Borough Director of Integrated Care,3981.08
24/03/2022,1246321,Camphill Village Trust,,Bi-Borough Director of Integrated Care,4549.81
05/01/2022,1246324,Candour Care Services (Broadview),,Bi-Borough Director of Integrated Care,7434.92
02/02/2022,1246324,Candour Care Services (Broadview),,Bi-Borough Director of Integrated Care,7434.92
03/03/2022,1246324,Candour Care Services (Broadview),,Bi-Borough Director of Integrated Care,7434.92
24/03/2022,1246324,Candour Care Services (Broadview),,Bi-Borough Director of Integrated Care,8497.05
05/01/2022,1246327,Canterbury Oast Trust Ltd,,Bi-Borough Director of Integrated Care,3924.96
02/02/2022,1246327,Canterbury Oast Trust Ltd,,Bi-Borough Director of Integrated Care,3924.96
03/03/2022,1246327,Canterbury Oast Trust Ltd,,Bi-Borough Director of Integrated Care,3654.96
24/03/2022,1246327,Canterbury Oast Trust Ltd,,Bi-Borough Director of Integrated Care,4485.67
05/01/2022,1259100,Care Assist Limited,,Bi-Borough Director of Integrated Care,7761.6
05/01/2022,1259100,Care Assist Limited,,Bi-Borough Director of Integrated Care,7761.6
02/02/2022,1259100,Care Assist Limited,,Bi-Borough Director of Integrated Care,7761.6
02/02/2022,1259100,Care Assist Limited,,Bi-Borough Director of Integrated Care,7761.6
03/03/2022,1259100,Care Assist Limited,,Bi-Borough Director of Integrated Care,7761.6
03/03/2022,1259100,Care Assist Limited,,Bi-Borough Director of Integrated Care,7761.6
24/03/2022,1259100,Care Assist Limited,,Bi-Borough Director of Integrated Care,8870.4
24/03/2022,1259100,Care Assist Limited,,Bi-Borough Director of Integrated Care,8870.4
05/01/2022,1246339,Caretech Community Services Ltd,,Bi-Borough Director of Integrated Care,987.4
05/01/2022,1246339,Caretech Community Services Ltd,,Bi-Borough Director of Integrated Care,5379.96
05/01/2022,1246339,Caretech Community Services Ltd,,Bi-Borough Director of Integrated Care,1325
05/01/2022,1246339,Caretech Community Services Ltd,,Bi-Borough Director of Integrated Care,5379.96
05/01/2022,1246339,Caretech Community Services Ltd,,Bi-Borough Director of Integrated Care,4396.36
05/01/2022,1246339,Caretech Community Services Ltd,,Bi-Borough Director of Integrated Care,4396.36
02/02/2022,1246339,Caretech Community Services Ltd,,Bi-Borough Director of Integrated Care,987.4
02/02/2022,1246339,Caretech Community Services Ltd,,Bi-Borough Director of Integrated Care,5622.06
02/02/2022,1246339,Caretech Community Services Ltd,,Bi-Borough Director of Integrated Care,5379.96
02/02/2022,1246339,Caretech Community Services Ltd,,Bi-Borough Director of Integrated Care,1325
03/03/2022,1246339,Caretech Community Services Ltd,,Bi-Borough Director of Integrated Care,987.4
03/03/2022,1246339,Caretech Community Services Ltd,,Bi-Borough Director of Integrated Care,5487.56
03/03/2022,1246339,Caretech Community Services Ltd,,Bi-Borough Director of Integrated Care,5379.96
03/03/2022,1246339,Caretech Community Services Ltd,,Bi-Borough Director of Integrated Care,8792.72
24/03/2022,1246339,Caretech Community Services Ltd,,Bi-Borough Director of Integrated Care,6148.53
24/03/2022,1246339,Caretech Community Services Ltd,,Bi-Borough Director of Integrated Care,5024.41
24/03/2022,1246339,Caretech Community Services Ltd,,Bi-Borough Director of Integrated Care,5024.41
24/03/2022,1246339,Caretech Community Services Ltd,,Bi-Borough Director of Integrated Care,1128.46
24/03/2022,1246339,Caretech Community Services Ltd,,Bi-Borough Director of Integrated Care,6271.5
05/01/2022,1276470,Certitude (Support for Living),,Bi-Borough Director of Integrated Care,11918.76
05/01/2022,1276470,Certitude (Support for Living),,Bi-Borough Director of Integrated Care,4489.32
05/01/2022,1276470,Certitude (Support for Living),,Bi-Borough Director of Integrated Care,5793.04
05/01/2022,1276470,Certitude (Support for Living),,Bi-Borough Director of Integrated Care,1512
05/01/2022,1276470,Certitude (Support for Living),,Bi-Borough Director of Integrated Care,5819.48
05/01/2022,1276470,Certitude (Support for Living),,Bi-Borough Director of Integrated Care,5819.48
05/01/2022,1276470,Certitude (Support for Living),,Bi-Borough Director of Integrated Care,8587.28
05/01/2022,1276470,Certitude (Support for Living),,Bi-Borough Director of Integrated Care,12988.04
05/01/2022,1276470,Certitude (Support for Living),,Bi-Borough Director of Integrated Care,2302.32
05/01/2022,1276470,Certitude (Support for Living),,Bi-Borough Director of Integrated Care,5372.08
02/02/2022,1276470,Certitude (Support for Living),,Bi-Borough Director of Integrated Care,12278.76
02/02/2022,1276470,Certitude (Support for Living),,Bi-Borough Director of Integrated Care,4489.32
02/02/2022,1276470,Certitude (Support for Living),,Bi-Borough Director of Integrated Care,5793.04
02/02/2022,1276470,Certitude (Support for Living),,Bi-Borough Director of Integrated Care,5819.48
02/02/2022,1276470,Certitude (Support for Living),,Bi-Borough Director of Integrated Care,5819.48
02/02/2022,1276470,Certitude (Support for Living),,Bi-Borough Director of Integrated Care,8587.28
02/02/2022,1276470,Certitude (Support for Living),,Bi-Borough Director of Integrated Care,12988.04
02/02/2022,1276470,Certitude (Support for Living),,Bi-Borough Director of Integrated Care,2302.32
02/02/2022,1276470,Certitude (Support for Living),,Bi-Borough Director of Integrated Care,5372.08
03/03/2022,1276470,Certitude (Support for Living),,Bi-Borough Director of Integrated Care,4489.32
03/03/2022,1276470,Certitude (Support for Living),,Bi-Borough Director of Integrated Care,5793.04
03/03/2022,1276470,Certitude (Support for Living),,Bi-Borough Director of Integrated Care,5819.48
03/03/2022,1276470,Certitude (Support for Living),,Bi-Borough Director of Integrated Care,5819.48
03/03/2022,1276470,Certitude (Support for Living),,Bi-Borough Director of Integrated Care,8587.28
03/03/2022,1276470,Certitude (Support for Living),,Bi-Borough Director of Integrated Care,12988.04
03/03/2022,1276470,Certitude (Support for Living),,Bi-Borough Director of Integrated Care,12278.76
03/03/2022,1276470,Certitude (Support for Living),,Bi-Borough Director of Integrated Care,2302.32
03/03/2022,1276470,Certitude (Support for Living),,Bi-Borough Director of Integrated Care,5372.08
24/03/2022,1276470,Certitude (Support for Living),,Bi-Borough Director of Integrated Care,2631.22
24/03/2022,1276470,Certitude (Support for Living),,Bi-Borough Director of Integrated Care,6139.52
24/03/2022,1276470,Certitude (Support for Living),,Bi-Borough Director of Integrated Care,14032.87
24/03/2022,1276470,Certitude (Support for Living),,Bi-Borough Director of Integrated Care,5130.65
24/03/2022,1276470,Certitude (Support for Living),,Bi-Borough Director of Integrated Care,6620.62
24/03/2022,1276470,Certitude (Support for Living),,Bi-Borough Director of Integrated Care,6650.83
24/03/2022,1276470,Certitude (Support for Living),,Bi-Borough Director of Integrated Care,6650.83
24/03/2022,1276470,Certitude (Support for Living),,Bi-Borough Director of Integrated Care,9814.03
24/03/2022,1276470,Certitude (Support for Living),,Bi-Borough Director of Integrated Care,14843.47
05/01/2022,1244167,Choice Support,,Bi-Borough Director of Integrated Care,8974.78
02/02/2022,1244167,Choice Support,,Bi-Borough Director of Integrated Care,8936
03/03/2022,1244167,Choice Support,,Bi-Borough Director of Integrated Care,8936
24/03/2022,1244167,Choice Support,,Bi-Borough Director of Integrated Care,10212.57
16/01/2022,1244190,Clouds End Services Ltd,,Bi-Borough Director of Integrated Care,800
03/03/2022,1243457,Cmg Homes Ltd - The Care House,Client Contributions - Residential OLA,Bi-Borough Director of Integrated Care,1084.88
05/01/2022,1243458,Cocklebury Farmhouse Homes Ltd,,Bi-Borough Director of Integrated Care,7028
05/01/2022,1243458,Cocklebury Farmhouse Homes Ltd,,Bi-Borough Director of Integrated Care,4952
05/01/2022,1243458,Cocklebury Farmhouse Homes Ltd,,Bi-Borough Director of Integrated Care,5536
05/01/2022,1243458,Cocklebury Farmhouse Homes Ltd,,Bi-Borough Director of Integrated Care,5568
05/01/2022,1243458,Cocklebury Farmhouse Homes Ltd,,Bi-Borough Director of Integrated Care,6408
02/02/2022,1243458,Cocklebury Farmhouse Homes Ltd,,Bi-Borough Director of Integrated Care,7028
02/02/2022,1243458,Cocklebury Farmhouse Homes Ltd,,Bi-Borough Director of Integrated Care,4952
02/02/2022,1243458,Cocklebury Farmhouse Homes Ltd,,Bi-Borough Director of Integrated Care,5536
02/02/2022,1243458,Cocklebury Farmhouse Homes Ltd,,Bi-Borough Director of Integrated Care,5568
02/02/2022,1243458,Cocklebury Farmhouse Homes Ltd,,Bi-Borough Director of Integrated Care,6408
03/03/2022,1243458,Cocklebury Farmhouse Homes Ltd,,Bi-Borough Director of Integrated Care,4952
03/03/2022,1243458,Cocklebury Farmhouse Homes Ltd,,Bi-Borough Director of Integrated Care,5536
03/03/2022,1243458,Cocklebury Farmhouse Homes Ltd,,Bi-Borough Director of Integrated Care,5568
03/03/2022,1243458,Cocklebury Farmhouse Homes Ltd,,Bi-Borough Director of Integrated Care,7028
03/03/2022,1243458,Cocklebury Farmhouse Homes Ltd,,Bi-Borough Director of Integrated Care,6408
24/03/2022,1243458,Cocklebury Farmhouse Homes Ltd,,Bi-Borough Director of Integrated Care,8032
24/03/2022,1243458,Cocklebury Farmhouse Homes Ltd,,Bi-Borough Director of Integrated Care,5659.43
24/03/2022,1243458,Cocklebury Farmhouse Homes Ltd,,Bi-Borough Director of Integrated Care,6326.86
24/03/2022,1243458,Cocklebury Farmhouse Homes Ltd,,Bi-Borough Director of Integrated Care,6363.43
24/03/2022,1243458,Cocklebury Farmhouse Homes Ltd,,Bi-Borough Director of Integrated Care,7323.43
05/01/2022,1280687,Community Integrated Care,,Bi-Borough Director of Integrated Care,5340.64
05/01/2022,1280687,Community Integrated Care,,Bi-Borough Director of Integrated Care,5340.64
05/01/2022,1280687,Community Integrated Care,,Bi-Borough Director of Integrated Care,5345.04
05/01/2022,1280687,Community Integrated Care,,Bi-Borough Director of Integrated Care,13014.4
05/01/2022,1280687,Community Integrated Care,,Bi-Borough Director of Integrated Care,7973.28
05/01/2022,1280687,Community Integrated Care,,Bi-Borough Director of Integrated Care,5897.8
05/01/2022,1280687,Community Integrated Care,,Bi-Borough Director of Integrated Care,10493.84
05/01/2022,1280687,Community Integrated Care,,Bi-Borough Director of Integrated Care,5897.8
02/02/2022,1280687,Community Integrated Care,,Bi-Borough Director of Integrated Care,5340.64
02/02/2022,1280687,Community Integrated Care,,Bi-Borough Director of Integrated Care,5340.64
02/02/2022,1280687,Community Integrated Care,,Bi-Borough Director of Integrated Care,5345.04
02/02/2022,1280687,Community Integrated Care,,Bi-Borough Director of Integrated Care,13014.4
02/02/2022,1280687,Community Integrated Care,,Bi-Borough Director of Integrated Care,7973.28
02/02/2022,1280687,Community Integrated Care,,Bi-Borough Director of Integrated Care,5897.8
02/02/2022,1280687,Community Integrated Care,,Bi-Borough Director of Integrated Care,10493.84
02/02/2022,1280687,Community Integrated Care,,Bi-Borough Director of Integrated Care,5897.8
03/03/2022,1280687,Community Integrated Care,,Bi-Borough Director of Integrated Care,5345.04
03/03/2022,1280687,Community Integrated Care,,Bi-Borough Director of Integrated Care,7973.28
03/03/2022,1280687,Community Integrated Care,,Bi-Borough Director of Integrated Care,13014.4
03/03/2022,1280687,Community Integrated Care,,Bi-Borough Director of Integrated Care,5340.64
03/03/2022,1280687,Community Integrated Care,,Bi-Borough Director of Integrated Care,5340.64
03/03/2022,1280687,Community Integrated Care,,Bi-Borough Director of Integrated Care,5897.8
03/03/2022,1280687,Community Integrated Care,,Bi-Borough Director of Integrated Care,10493.84
03/03/2022,1280687,Community Integrated Care,,Bi-Borough Director of Integrated Care,5897.8
24/03/2022,1280687,Community Integrated Care,,Bi-Borough Director of Integrated Care,6740.34
24/03/2022,1280687,Community Integrated Care,,Bi-Borough Director of Integrated Care,11992.96
24/03/2022,1280687,Community Integrated Care,,Bi-Borough Director of Integrated Care,6740.34
24/03/2022,1280687,Community Integrated Care,,Bi-Borough Director of Integrated Care,6103.59
24/03/2022,1280687,Community Integrated Care,,Bi-Borough Director of Integrated Care,6103.59
24/03/2022,1280687,Community Integrated Care,,Bi-Borough Director of Integrated Care,6108.62
24/03/2022,1280687,Community Integrated Care,,Bi-Borough Director of Integrated Care,14873.6
24/03/2022,1280687,Community Integrated Care,,Bi-Borough Director of Integrated Care,9112.32
05/01/2022,1244212,PERSONAL PAYMENTS,,Bi-Borough Director of Integrated Care,3320
02/02/2022,1244212,PERSONAL PAYMENTS,,Bi-Borough Director of Integrated Care,3320
03/03/2022,1244212,PERSONAL PAYMENTS,,Bi-Borough Director of Integrated Care,3320
03/03/2022,1244212,PERSONAL PAYMENTS,,Bi-Borough Director of Integrated Care,15325.28
03/03/2022,1244212,PERSONAL PAYMENTS,,Bi-Borough Director of Integrated Care,2886.86
03/03/2022,1244212,PERSONAL PAYMENTS,,Bi-Borough Director of Integrated Care,2886.86
24/03/2022,1244212,PERSONAL PAYMENTS,,Bi-Borough Director of Integrated Care,4915.43
24/03/2022,1244212,PERSONAL PAYMENTS,,Bi-Borough Director of Integrated Care,2886.86
24/03/2022,1244212,PERSONAL PAYMENTS,,Bi-Borough Director of Integrated Care,2886.86
24/03/2022,1244212,PERSONAL PAYMENTS,,Bi-Borough Director of Integrated Care,3794.29
05/01/2022,1243470,Downing (Chertsey Road) Ltd,,Bi-Borough Director of Integrated Care,5971.2
02/02/2022,1243470,Downing (Chertsey Road) Ltd,,Bi-Borough Director of Integrated Care,5971.2
03/03/2022,1243470,Downing (Chertsey Road) Ltd,,Bi-Borough Director of Integrated Care,5971.2
24/03/2022,1243470,Downing (Chertsey Road) Ltd,,Bi-Borough Director of Integrated Care,6824.23
05/01/2022,1243474,Duckyls Farm Centre,,Bi-Borough Director of Integrated Care,2959.12
02/02/2022,1243474,Duckyls Farm Centre,,Bi-Borough Director of Integrated Care,2959.12
03/03/2022,1243474,Duckyls Farm Centre,,Bi-Borough Director of Integrated Care,2959.12
24/03/2022,1243474,Duckyls Farm Centre,,Bi-Borough Director of Integrated Care,3381.85
05/01/2022,1245108,Elysium Healthcare No 2 Ltd,,Bi-Borough Director of Integrated Care,8896.64
02/02/2022,1245108,Elysium Healthcare No 2 Ltd,,Bi-Borough Director of Integrated Care,8896.64
03/03/2022,1245108,Elysium Healthcare No 2 Ltd,,Bi-Borough Director of Integrated Care,8896.64
24/03/2022,1245108,Elysium Healthcare No 2 Ltd,,Bi-Borough Director of Integrated Care,10167.59
14/03/2022,1246934,Equal People Mencap (Kensington &,B*Voluntary-Spot-V Dep-Enhanced - do not u,Bi-Borough Director of Integrated Care,2304
14/03/2022,1246934,Equal People Mencap (Kensington &,B*Voluntary-Spot-V Dep-Enhanced - do not u,Bi-Borough Director of Integrated Care,2304
14/03/2022,1246934,Equal People Mencap (Kensington &,B*Voluntary-Spot-V Dep-Enhanced - do not u,Bi-Borough Director of Integrated Care,2214
14/03/2022,1246934,Equal People Mencap (Kensington &,B*Voluntary-Spot-V Dep-Enhanced - do not u,Bi-Borough Director of Integrated Care,1836
14/03/2022,1246934,Equal People Mencap (Kensington &,B*Voluntary-Spot-V Dep-Enhanced - do not u,Bi-Borough Director of Integrated Care,2304
14/03/2022,1246934,Equal People Mencap (Kensington &,B*Voluntary-Spot-V Dep-Enhanced - do not u,Bi-Borough Director of Integrated Care,1341
14/03/2022,1246934,Equal People Mencap (Kensington &,B*Voluntary-Spot-V Dep-Enhanced - do not u,Bi-Borough Director of Integrated Care,2430
14/03/2022,1246934,Equal People Mencap (Kensington &,B*Voluntary-Spot-V Dep-Enhanced - do not u,Bi-Borough Director of Integrated Care,1800
05/01/2022,1245110,Eric Patrick Care Ltd,,Bi-Borough Director of Integrated Care,7868
02/02/2022,1245110,Eric Patrick Care Ltd,,Bi-Borough Director of Integrated Care,7868
03/03/2022,1245110,Eric Patrick Care Ltd,,Bi-Borough Director of Integrated Care,7868
24/03/2022,1245110,Eric Patrick Care Ltd,,Bi-Borough Director of Integrated Care,19529.5
06/01/2022,1259597,Ethica Services LTD,,Bi-Borough Director of Integrated Care,2070
02/02/2022,1259597,Ethica Services LTD,,Bi-Borough Director of Integrated Care,1035
11/02/2022,1259597,Ethica Services LTD,,Bi-Borough Director of Integrated Care,1863
18/03/2022,1259597,Ethica Services LTD,,Bi-Borough Director of Integrated Care,1863
05/01/2022,1243483,Greenview Healthcare Ltd,,Bi-Borough Director of Integrated Care,4471
02/02/2022,1243483,Greenview Healthcare Ltd,,Bi-Borough Director of Integrated Care,4471
03/03/2022,1243483,Greenview Healthcare Ltd,,Bi-Borough Director of Integrated Care,4471
24/03/2022,1243483,Greenview Healthcare Ltd,,Bi-Borough Director of Integrated Care,5109.71
05/01/2022,1243485,Grove Care Partnership Ltd,,Bi-Borough Director of Integrated Care,8051.84
02/02/2022,1243485,Grove Care Partnership Ltd,,Bi-Borough Director of Integrated Care,9806.03
03/03/2022,1243485,Grove Care Partnership Ltd,,Bi-Borough Director of Integrated Care,8212.88
24/03/2022,1243485,Grove Care Partnership Ltd,,Bi-Borough Director of Integrated Care,9386.15
05/01/2022,1258503,Guyatt House Care Limited,,Bi-Borough Director of Integrated Care,7081.16
02/02/2022,1258503,Guyatt House Care Limited,,Bi-Borough Director of Integrated Care,7081.16
03/03/2022,1258503,Guyatt House Care Limited,,Bi-Borough Director of Integrated Care,7081.16
24/03/2022,1258503,Guyatt House Care Limited,,Bi-Borough Director of Integrated Care,8092.75
06/01/2022,1244531,HCP Staffing Services Ltd,,Bi-Borough Director of Integrated Care,717.88
06/01/2022,1244531,HCP Staffing Services Ltd,,Bi-Borough Director of Integrated Care,717.88
18/01/2022,1244531,HCP Staffing Services Ltd,,Bi-Borough Director of Integrated Care,717.88
28/01/2022,1244531,HCP Staffing Services Ltd,,Bi-Borough Director of Integrated Care,717.88
07/02/2022,1244531,HCP Staffing Services Ltd,,Bi-Borough Director of Integrated Care,717.88
16/02/2022,1244531,HCP Staffing Services Ltd,,Bi-Borough Director of Integrated Care,717.88
16/02/2022,1244531,HCP Staffing Services Ltd,,Bi-Borough Director of Integrated Care,717.88
28/02/2022,1244531,HCP Staffing Services Ltd,,Bi-Borough Director of Integrated Care,717.88
07/03/2022,1244531,HCP Staffing Services Ltd,,Bi-Borough Director of Integrated Care,717.88
14/03/2022,1244531,HCP Staffing Services Ltd,,Bi-Borough Director of Integrated Care,717.88
17/03/2022,1244531,HCP Staffing Services Ltd,,Bi-Borough Director of Integrated Care,717.88
25/03/2022,1244531,HCP Staffing Services Ltd,,Bi-Borough Director of Integrated Care,717.88
31/03/2022,1244531,HCP Staffing Services Ltd,,Bi-Borough Director of Integrated Care,717.88
05/01/2022,1244549,HF Trust Ltd,,Bi-Borough Director of Integrated Care,3539.28
05/01/2022,1244549,HF Trust Ltd,,Bi-Borough Director of Integrated Care,15117.84
02/02/2022,1244549,HF Trust Ltd,,Bi-Borough Director of Integrated Care,3539.28
02/02/2022,1244549,HF Trust Ltd,,Bi-Borough Director of Integrated Care,15117.84
03/03/2022,1244549,HF Trust Ltd,,Bi-Borough Director of Integrated Care,3539.28
03/03/2022,1244549,HF Trust Ltd,,Bi-Borough Director of Integrated Care,15117.84
24/03/2022,1244549,HF Trust Ltd,,Bi-Borough Director of Integrated Care,17277.53
24/03/2022,1244549,HF Trust Ltd,,Bi-Borough Director of Integrated Care,4044.89
05/01/2022,1244515,Hampshire Autistic Society,,Bi-Borough Director of Integrated Care,5307.08
02/02/2022,1244515,Hampshire Autistic Society,,Bi-Borough Director of Integrated Care,5307.08
03/03/2022,1244515,Hampshire Autistic Society,,Bi-Borough Director of Integrated Care,5307.08
24/03/2022,1244515,Hampshire Autistic Society,,Bi-Borough Director of Integrated Care,6065.23
24/03/2022,1244515,Hampshire Autistic Society,,Bi-Borough Director of Integrated Care,538.38
05/01/2022,1243490,Haydon Park Lodge Ltd,,Bi-Borough Director of Integrated Care,4000
02/02/2022,1243490,Haydon Park Lodge Ltd,,Bi-Borough Director of Integrated Care,4000
03/03/2022,1243490,Haydon Park Lodge Ltd,,Bi-Borough Director of Integrated Care,4000
24/03/2022,1243490,Haydon Park Lodge Ltd,,Bi-Borough Director of Integrated Care,4571.43
05/01/2022,1260257,Hazel Homes for Autism Ltd,,Bi-Borough Director of Integrated Care,861
05/01/2022,1260257,Hazel Homes for Autism Ltd,,Bi-Borough Director of Integrated Care,14885.24
02/02/2022,1260257,Hazel Homes for Autism Ltd,,Bi-Borough Director of Integrated Care,14885.24
02/02/2022,1260257,Hazel Homes for Autism Ltd,,Bi-Borough Director of Integrated Care,861
03/03/2022,1260257,Hazel Homes for Autism Ltd,,Bi-Borough Director of Integrated Care,861
03/03/2022,1260257,Hazel Homes for Autism Ltd,,Bi-Borough Director of Integrated Care,14885.24
24/03/2022,1260257,Hazel Homes for Autism Ltd,,Bi-Borough Director of Integrated Care,17011.7
24/03/2022,1260257,Hazel Homes for Autism Ltd,,Bi-Borough Director of Integrated Care,984
18/01/2022,1247257,Health Vision Uk,,Bi-Borough Director of Integrated Care,955.39
18/01/2022,1247257,Health Vision Uk,,Bi-Borough Director of Integrated Care,955.39
18/01/2022,1247257,Health Vision Uk,,Bi-Borough Director of Integrated Care,646.39
02/02/2022,1245125,Heathcotes (Southern) Ltd,,Bi-Borough Director of Integrated Care,11066.24
03/03/2022,1245125,Heathcotes (Southern) Ltd,,Bi-Borough Director of Integrated Care,11066.24
24/03/2022,1245125,Heathcotes (Southern) Ltd,,Bi-Borough Director of Integrated Care,12647.13
03/02/2022,1254857,Hope Care Agency,,Bi-Borough Director of Integrated Care,604.08
03/02/2022,1254857,Hope Care Agency,,Bi-Borough Director of Integrated Care,671.2
03/02/2022,1254857,Hope Care Agency,,Bi-Borough Director of Integrated Care,604.08
15/02/2022,1254857,Hope Care Agency,,Bi-Borough Director of Integrated Care,939.68
15/02/2022,1254857,Hope Care Agency,,Bi-Borough Director of Integrated Care,1879.36
15/02/2022,1254857,Hope Care Agency,,Bi-Borough Director of Integrated Care,1879.36
05/01/2022,1267460,Hunters Lodge Care Home,,Bi-Borough Director of Integrated Care,3930.64
02/02/2022,1267460,Hunters Lodge Care Home,,Bi-Borough Director of Integrated Care,3930.64
03/03/2022,1267460,Hunters Lodge Care Home,,Bi-Borough Director of Integrated Care,3930.64
24/03/2022,1267460,Hunters Lodge Care Home,,Bi-Borough Director of Integrated Care,4492.16
05/01/2022,1247526,Integrity Care and Support Ltd,B*Voluntary-Spot-V Dep-Enhanced - do not u,Bi-Borough Director of Integrated Care,612.25
05/01/2022,1247526,Integrity Care and Support Ltd,B*Voluntary-Spot-V Dep-Enhanced - do not u,Bi-Borough Director of Integrated Care,1283.75
05/01/2022,1247526,Integrity Care and Support Ltd,B*Voluntary-Spot-V Dep-Enhanced - do not u,Bi-Borough Director of Integrated Care,948
05/01/2022,1247526,Integrity Care and Support Ltd,B*Voluntary-Spot-V Dep-Enhanced - do not u,Bi-Borough Director of Integrated Care,1777.5
05/01/2022,1247526,Integrity Care and Support Ltd,B*Voluntary-Spot-V Dep-Enhanced - do not u,Bi-Borough Director of Integrated Care,790
05/01/2022,1247526,Integrity Care and Support Ltd,B*Voluntary-Spot-V Dep-Enhanced - do not u,Bi-Borough Director of Integrated Care,711
05/01/2022,1247526,Integrity Care and Support Ltd,B*Voluntary-Spot-V Dep-Enhanced - do not u,Bi-Borough Director of Integrated Care,928.25
05/01/2022,1247526,Integrity Care and Support Ltd,B*Voluntary-Spot-V Dep-Enhanced - do not u,Bi-Borough Director of Integrated Care,1027
05/01/2022,1247526,Integrity Care and Support Ltd,B*Voluntary-Spot-V Dep-Enhanced - do not u,Bi-Borough Director of Integrated Care,711
05/01/2022,1247526,Integrity Care and Support Ltd,B*Voluntary-Spot-V Dep-Enhanced - do not u,Bi-Borough Director of Integrated Care,1125.75
05/01/2022,1247526,Integrity Care and Support Ltd,B*Voluntary-Spot-V Dep-Enhanced - do not u,Bi-Borough Director of Integrated Care,632
05/01/2022,1247526,Integrity Care and Support Ltd,B*Voluntary-Spot-V Dep-Enhanced - do not u,Bi-Borough Director of Integrated Care,1185
05/01/2022,1247526,Integrity Care and Support Ltd,B*Voluntary-Spot-V Dep-Enhanced - do not u,Bi-Borough Director of Integrated Care,572.75
05/01/2022,1247526,Integrity Care and Support Ltd,B*Voluntary-Spot-V Dep-Enhanced - do not u,Bi-Borough Director of Integrated Care,948
05/01/2022,1247526,Integrity Care and Support Ltd,B*Voluntary-Spot-V Dep-Enhanced - do not u,Bi-Borough Director of Integrated Care,1106
05/01/2022,1247526,Integrity Care and Support Ltd,B*Voluntary-Spot-V Dep-Enhanced - do not u,Bi-Borough Director of Integrated Care,829.5
05/01/2022,1247526,Integrity Care and Support Ltd,B*Voluntary-Spot-V Dep-Enhanced - do not u,Bi-Borough Director of Integrated Care,632
05/01/2022,1247526,Integrity Care and Support Ltd,B*Voluntary-Spot-V Dep-Enhanced - do not u,Bi-Borough Director of Integrated Care,948
05/01/2022,1247526,Integrity Care and Support Ltd,B*Voluntary-Spot-V Dep-Enhanced - do not u,Bi-Borough Director of Integrated Care,2034.25
05/01/2022,1247526,Integrity Care and Support Ltd,B*Voluntary-Spot-V Dep-Enhanced - do not u,Bi-Borough Director of Integrated Care,1125.75
07/02/2022,1247526,Integrity Care and Support Ltd,B*Voluntary-Spot-V Dep-Enhanced - do not u,Bi-Borough Director of Integrated Care,1264
07/02/2022,1247526,Integrity Care and Support Ltd,B*Voluntary-Spot-V Dep-Enhanced - do not u,Bi-Borough Director of Integrated Care,711
07/02/2022,1247526,Integrity Care and Support Ltd,B*Voluntary-Spot-V Dep-Enhanced - do not u,Bi-Borough Director of Integrated Care,948
07/02/2022,1247526,Integrity Care and Support Ltd,B*Voluntary-Spot-V Dep-Enhanced - do not u,Bi-Borough Director of Integrated Care,790
07/02/2022,1247526,Integrity Care and Support Ltd,B*Voluntary-Spot-V Dep-Enhanced - do not u,Bi-Borough Director of Integrated Care,632
07/02/2022,1247526,Integrity Care and Support Ltd,B*Voluntary-Spot-V Dep-Enhanced - do not u,Bi-Borough Director of Integrated Care,1244.25
07/02/2022,1247526,Integrity Care and Support Ltd,B*Voluntary-Spot-V Dep-Enhanced - do not u,Bi-Borough Director of Integrated Care,987.5
07/02/2022,1247526,Integrity Care and Support Ltd,B*Voluntary-Spot-V Dep-Enhanced - do not u,Bi-Borough Director of Integrated Care,1698.5
07/02/2022,1247526,Integrity Care and Support Ltd,B*Voluntary-Spot-V Dep-Enhanced - do not u,Bi-Borough Director of Integrated Care,1856.5
07/02/2022,1247526,Integrity Care and Support Ltd,B*Voluntary-Spot-V Dep-Enhanced - do not u,Bi-Borough Director of Integrated Care,612.25
07/02/2022,1247526,Integrity Care and Support Ltd,B*Voluntary-Spot-V Dep-Enhanced - do not u,Bi-Borough Director of Integrated Care,711
07/02/2022,1247526,Integrity Care and Support Ltd,B*Voluntary-Spot-V Dep-Enhanced - do not u,Bi-Borough Director of Integrated Care,948
07/02/2022,1247526,Integrity Care and Support Ltd,B*Voluntary-Spot-V Dep-Enhanced - do not u,Bi-Borough Director of Integrated Care,869
07/02/2022,1247526,Integrity Care and Support Ltd,B*Voluntary-Spot-V Dep-Enhanced - do not u,Bi-Borough Director of Integrated Care,829.5
07/02/2022,1247526,Integrity Care and Support Ltd,B*Voluntary-Spot-V Dep-Enhanced - do not u,Bi-Borough Director of Integrated Care,533.25
07/02/2022,1247526,Integrity Care and Support Ltd,B*Voluntary-Spot-V Dep-Enhanced - do not u,Bi-Borough Director of Integrated Care,1106
07/02/2022,1247526,Integrity Care and Support Ltd,B*Voluntary-Spot-V Dep-Enhanced - do not u,Bi-Borough Director of Integrated Care,1896
07/02/2022,1247526,Integrity Care and Support Ltd,B*Voluntary-Spot-V Dep-Enhanced - do not u,Bi-Borough Director of Integrated Care,1007.25
07/02/2022,1247526,Integrity Care and Support Ltd,B*Voluntary-Spot-V Dep-Enhanced - do not u,Bi-Borough Director of Integrated Care,632
07/03/2022,1247526,Integrity Care and Support Ltd,B*Voluntary-Spot-V Dep-Enhanced - do not u,Bi-Borough Director of Integrated Care,829.5
07/03/2022,1247526,Integrity Care and Support Ltd,B*Voluntary-Spot-V Dep-Enhanced - do not u,Bi-Borough Director of Integrated Care,1204.75
07/03/2022,1247526,Integrity Care and Support Ltd,B*Voluntary-Spot-V Dep-Enhanced - do not u,Bi-Borough Director of Integrated Care,632
07/03/2022,1247526,Integrity Care and Support Ltd,B*Voluntary-Spot-V Dep-Enhanced - do not u,Bi-Borough Director of Integrated Care,632
07/03/2022,1247526,Integrity Care and Support Ltd,B*Voluntary-Spot-V Dep-Enhanced - do not u,Bi-Borough Director of Integrated Care,790
07/03/2022,1247526,Integrity Care and Support Ltd,B*Voluntary-Spot-V Dep-Enhanced - do not u,Bi-Borough Director of Integrated Care,1244.25
07/03/2022,1247526,Integrity Care and Support Ltd,B*Voluntary-Spot-V Dep-Enhanced - do not u,Bi-Borough Director of Integrated Care,1224.5
07/03/2022,1247526,Integrity Care and Support Ltd,B*Voluntary-Spot-V Dep-Enhanced - do not u,Bi-Borough Director of Integrated Care,750.5
07/03/2022,1247526,Integrity Care and Support Ltd,B*Voluntary-Spot-V Dep-Enhanced - do not u,Bi-Borough Director of Integrated Care,632
07/03/2022,1247526,Integrity Care and Support Ltd,B*Voluntary-Spot-V Dep-Enhanced - do not u,Bi-Borough Director of Integrated Care,1738
07/03/2022,1247526,Integrity Care and Support Ltd,B*Voluntary-Spot-V Dep-Enhanced - do not u,Bi-Borough Director of Integrated Care,948
07/03/2022,1247526,Integrity Care and Support Ltd,B*Voluntary-Spot-V Dep-Enhanced - do not u,Bi-Borough Director of Integrated Care,711
07/03/2022,1247526,Integrity Care and Support Ltd,B*Voluntary-Spot-V Dep-Enhanced - do not u,Bi-Borough Director of Integrated Care,592.5
07/03/2022,1247526,Integrity Care and Support Ltd,B*Voluntary-Spot-V Dep-Enhanced - do not u,Bi-Borough Director of Integrated Care,592.5
07/03/2022,1247526,Integrity Care and Support Ltd,B*Voluntary-Spot-V Dep-Enhanced - do not u,Bi-Borough Director of Integrated Care,533.25
07/03/2022,1247526,Integrity Care and Support Ltd,B*Voluntary-Spot-V Dep-Enhanced - do not u,Bi-Borough Director of Integrated Care,1106
07/03/2022,1247526,Integrity Care and Support Ltd,B*Voluntary-Spot-V Dep-Enhanced - do not u,Bi-Borough Director of Integrated Care,948
07/03/2022,1247526,Integrity Care and Support Ltd,B*Voluntary-Spot-V Dep-Enhanced - do not u,Bi-Borough Director of Integrated Care,711
07/03/2022,1247526,Integrity Care and Support Ltd,B*Voluntary-Spot-V Dep-Enhanced - do not u,Bi-Borough Director of Integrated Care,1283.75
07/03/2022,1247526,Integrity Care and Support Ltd,B*Voluntary-Spot-V Dep-Enhanced - do not u,Bi-Borough Director of Integrated Care,1185
07/03/2022,1247526,Integrity Care and Support Ltd,B*Voluntary-Spot-V Dep-Enhanced - do not u,Bi-Borough Director of Integrated Care,987.5
07/03/2022,1247526,Integrity Care and Support Ltd,B*Voluntary-Spot-V Dep-Enhanced - do not u,Bi-Borough Director of Integrated Care,1106
07/03/2022,1247526,Integrity Care and Support Ltd,B*Voluntary-Spot-V Dep-Enhanced - do not u,Bi-Borough Director of Integrated Care,1283.75
07/03/2022,1247526,Integrity Care and Support Ltd,B*Voluntary-Spot-V Dep-Enhanced - do not u,Bi-Borough Director of Integrated Care,948
07/03/2022,1247526,Integrity Care and Support Ltd,B*Voluntary-Spot-V Dep-Enhanced - do not u,Bi-Borough Director of Integrated Care,1027
07/03/2022,1247526,Integrity Care and Support Ltd,B*Voluntary-Spot-V Dep-Enhanced - do not u,Bi-Borough Director of Integrated Care,533.25
07/03/2022,1247526,Integrity Care and Support Ltd,B*Voluntary-Spot-V Dep-Enhanced - do not u,Bi-Borough Director of Integrated Care,987.5
07/03/2022,1247526,Integrity Care and Support Ltd,B*Voluntary-Spot-V Dep-Enhanced - do not u,Bi-Borough Director of Integrated Care,790
07/03/2022,1247526,Integrity Care and Support Ltd,B*Voluntary-Spot-V Dep-Enhanced - do not u,Bi-Borough Director of Integrated Care,553
07/03/2022,1247526,Integrity Care and Support Ltd,B*Voluntary-Spot-V Dep-Enhanced - do not u,Bi-Borough Director of Integrated Care,632
07/03/2022,1247526,Integrity Care and Support Ltd,B*Voluntary-Spot-V Dep-Enhanced - do not u,Bi-Borough Director of Integrated Care,770.25
07/03/2022,1247526,Integrity Care and Support Ltd,B*Voluntary-Spot-V Dep-Enhanced - do not u,Bi-Borough Director of Integrated Care,1580
31/03/2022,1247526,Integrity Care and Support Ltd,B*Voluntary-Spot-V Dep-Enhanced - do not u,Bi-Borough Director of Integrated Care,881.32
31/03/2022,1247526,Integrity Care and Support Ltd,B*Voluntary-Spot-V Dep-Enhanced - do not u,Bi-Borough Director of Integrated Care,640.96
31/03/2022,1247526,Integrity Care and Support Ltd,B*Voluntary-Spot-V Dep-Enhanced - do not u,Bi-Borough Director of Integrated Care,941.41
31/03/2022,1247526,Integrity Care and Support Ltd,B*Voluntary-Spot-V Dep-Enhanced - do not u,Bi-Borough Director of Integrated Care,600.9
31/03/2022,1247526,Integrity Care and Support Ltd,B*Voluntary-Spot-V Dep-Enhanced - do not u,Bi-Borough Director of Integrated Care,1502.25
31/03/2022,1247526,Integrity Care and Support Ltd,B*Voluntary-Spot-V Dep-Enhanced - do not u,Bi-Borough Director of Integrated Care,1261.89
31/03/2022,1247526,Integrity Care and Support Ltd,B*Voluntary-Spot-V Dep-Enhanced - do not u,Bi-Borough Director of Integrated Care,961.44
31/03/2022,1247526,Integrity Care and Support Ltd,B*Voluntary-Spot-V Dep-Enhanced - do not u,Bi-Borough Director of Integrated Care,1201.8
31/03/2022,1247526,Integrity Care and Support Ltd,B*Voluntary-Spot-V Dep-Enhanced - do not u,Bi-Borough Director of Integrated Care,640.96
31/03/2022,1247526,Integrity Care and Support Ltd,B*Voluntary-Spot-V Dep-Enhanced - do not u,Bi-Borough Director of Integrated Care,961.44
31/03/2022,1247526,Integrity Care and Support Ltd,B*Voluntary-Spot-V Dep-Enhanced - do not u,Bi-Borough Director of Integrated Care,841.26
31/03/2022,1247526,Integrity Care and Support Ltd,B*Voluntary-Spot-V Dep-Enhanced - do not u,Bi-Borough Director of Integrated Care,1201.8
31/03/2022,1247526,Integrity Care and Support Ltd,B*Voluntary-Spot-V Dep-Enhanced - do not u,Bi-Borough Director of Integrated Care,721.08
31/03/2022,1247526,Integrity Care and Support Ltd,B*Voluntary-Spot-V Dep-Enhanced - do not u,Bi-Borough Director of Integrated Care,1562.34
31/03/2022,1247526,Integrity Care and Support Ltd,B*Voluntary-Spot-V Dep-Enhanced - do not u,Bi-Borough Director of Integrated Care,1161.74
31/03/2022,1247526,Integrity Care and Support Ltd,B*Voluntary-Spot-V Dep-Enhanced - do not u,Bi-Borough Director of Integrated Care,1281.92
31/03/2022,1247526,Integrity Care and Support Ltd,B*Voluntary-Spot-V Dep-Enhanced - do not u,Bi-Borough Director of Integrated Care,1281.92
31/03/2022,1247526,Integrity Care and Support Ltd,B*Voluntary-Spot-V Dep-Enhanced - do not u,Bi-Borough Director of Integrated Care,1502.25
31/03/2022,1247526,Integrity Care and Support Ltd,B*Voluntary-Spot-V Dep-Enhanced - do not u,Bi-Borough Director of Integrated Care,721.08
31/03/2022,1247526,Integrity Care and Support Ltd,B*Voluntary-Spot-V Dep-Enhanced - do not u,Bi-Borough Director of Integrated Care,1121.68
05/01/2022,1247598,Kisimul Group Ltd,,Bi-Borough Director of Integrated Care,13955.32
02/02/2022,1247598,Kisimul Group Ltd,,Bi-Borough Director of Integrated Care,14583.34
03/03/2022,1247598,Kisimul Group Ltd,,Bi-Borough Director of Integrated Care,14234.44
24/03/2022,1247598,Kisimul Group Ltd,,Bi-Borough Director of Integrated Care,16267.93
05/01/2022,1243503,Life Opportunities Trust,,Bi-Borough Director of Integrated Care,6095.6
02/02/2022,1243503,Life Opportunities Trust,,Bi-Borough Director of Integrated Care,6095.6
05/01/2022,1243506,Lifeways Community Care Ltd,,Bi-Borough Director of Integrated Care,11865.68
05/01/2022,1243506,Lifeways Community Care Ltd,,Bi-Borough Director of Integrated Care,6896.08
02/02/2022,1243506,Lifeways Community Care Ltd,,Bi-Borough Director of Integrated Care,11865.68
02/02/2022,1243506,Lifeways Community Care Ltd,,Bi-Borough Director of Integrated Care,6896.08
03/03/2022,1243506,Lifeways Community Care Ltd,,Bi-Borough Director of Integrated Care,6896.08
03/03/2022,1243506,Lifeways Community Care Ltd,,Bi-Borough Director of Integrated Care,11865.68
24/03/2022,1243506,Lifeways Community Care Ltd,,Bi-Borough Director of Integrated Care,13560.78
24/03/2022,1243506,Lifeways Community Care Ltd,,Bi-Borough Director of Integrated Care,7881.23
05/01/2022,1249729,Linden Lodge School,,Bi-Borough Director of Integrated Care,4632
02/02/2022,1249729,Linden Lodge School,,Bi-Borough Director of Integrated Care,4632
03/03/2022,1249729,Linden Lodge School,,Bi-Borough Director of Integrated Care,4632
24/03/2022,1249729,Linden Lodge School,,Bi-Borough Director of Integrated Care,5293.71
05/01/2022,1244762,Livability,,Bi-Borough Director of Integrated Care,6180
02/02/2022,1244762,Livability,,Bi-Borough Director of Integrated Care,6180
03/03/2022,1244762,Livability,,Bi-Borough Director of Integrated Care,6180
24/03/2022,1244762,Livability,,Bi-Borough Director of Integrated Care,7062.86
12/01/2022,1247650,London Care Ltd,,Bi-Borough Director of Integrated Care,1287.95
12/01/2022,1247650,London Care Ltd,,Bi-Borough Director of Integrated Care,740.58
12/01/2022,1247650,London Care Ltd,,Bi-Borough Director of Integrated Care,1555.87
12/01/2022,1247650,London Care Ltd,,Bi-Borough Director of Integrated Care,1485.12
12/01/2022,1247650,London Care Ltd,,Bi-Borough Director of Integrated Care,2024.44
31/01/2022,1247650,London Care Ltd,,Bi-Borough Director of Integrated Care,741.2
31/01/2022,1247650,London Care Ltd,,Bi-Borough Director of Integrated Care,1556.49
31/01/2022,1247650,London Care Ltd,,Bi-Borough Director of Integrated Care,1507.65
31/01/2022,1247650,London Care Ltd,,Bi-Borough Director of Integrated Care,2016.43
31/01/2022,1247650,London Care Ltd,,Bi-Borough Director of Integrated Care,1272.4
16/02/2022,1247650,London Care Ltd,,Bi-Borough Director of Integrated Care,1023.23
23/03/2022,1247650,London Care Ltd,,Bi-Borough Director of Integrated Care,1006.8
23/03/2022,1247650,London Care Ltd,,Bi-Borough Director of Integrated Care,1006.8
23/03/2022,1247650,London Care Ltd,,Bi-Borough Director of Integrated Care,1006.8
30/03/2022,1247650,London Care Ltd,,Bi-Borough Director of Integrated Care,1118.18
30/03/2022,1247650,London Care Ltd,,Bi-Borough Director of Integrated Care,736.57
30/03/2022,1247650,London Care Ltd,,Bi-Borough Director of Integrated Care,1555.25
30/03/2022,1247650,London Care Ltd,,Bi-Borough Director of Integrated Care,1456.7
30/03/2022,1247650,London Care Ltd,,Bi-Borough Director of Integrated Care,2051.31
05/01/2022,1247651,London Care Partnership Ltd,,Bi-Borough Director of Integrated Care,8515.52
02/02/2022,1247651,London Care Partnership Ltd,,Bi-Borough Director of Integrated Care,8515.52
05/01/2022,1247656,London Cyrenians Housing Ltd,,Bi-Borough Director of Integrated Care,14280
02/02/2022,1247656,London Cyrenians Housing Ltd,,Bi-Borough Director of Integrated Care,14280
03/03/2022,1247656,London Cyrenians Housing Ltd,,Bi-Borough Director of Integrated Care,14280
24/03/2022,1247656,London Cyrenians Housing Ltd,,Bi-Borough Director of Integrated Care,16320
26/01/2022,1247846,London Vip Cars,Payments to Transport Operators,Bi-Borough Director of Integrated Care,3368
28/02/2022,1247846,London Vip Cars,Payments to Transport Operators,Bi-Borough Director of Integrated Care,4216
28/03/2022,1247846,London Vip Cars,Payments to Transport Operators,Bi-Borough Director of Integrated Care,4741
24/03/2022,1247854,Look Ahead Housing & Care Ltd,,Bi-Borough Director of Integrated Care,19728.25
05/01/2022,1282320,Marcus and Marcus,,Bi-Borough Director of Integrated Care,19572
02/02/2022,1282320,Marcus and Marcus,,Bi-Borough Director of Integrated Care,29242
03/03/2022,1282320,Marcus and Marcus,,Bi-Borough Director of Integrated Care,23440
24/03/2022,1282320,Marcus and Marcus,,Bi-Borough Director of Integrated Care,26788.57
05/01/2022,1245144,Methodist Homes For The Aged,,Bi-Borough Director of Integrated Care,3105.16
02/02/2022,1245144,Methodist Homes For The Aged,,Bi-Borough Director of Integrated Care,3105.16
03/03/2022,1245144,Methodist Homes For The Aged,,Bi-Borough Director of Integrated Care,3105.16
24/03/2022,1245144,Methodist Homes For The Aged,,Bi-Borough Director of Integrated Care,3548.75
05/01/2022,1247933,Minster Pathways Ltd,,Bi-Borough Director of Integrated Care,1248
05/01/2022,1247933,Minster Pathways Ltd,,Bi-Borough Director of Integrated Care,3646.56
02/02/2022,1247933,Minster Pathways Ltd,,Bi-Borough Director of Integrated Care,3646.56
02/02/2022,1247933,Minster Pathways Ltd,,Bi-Borough Director of Integrated Care,1248
03/03/2022,1247933,Minster Pathways Ltd,,Bi-Borough Director of Integrated Care,1248
03/03/2022,1247933,Minster Pathways Ltd,,Bi-Borough Director of Integrated Care,3646.56
24/03/2022,1247933,Minster Pathways Ltd,,Bi-Borough Director of Integrated Care,1426.29
24/03/2022,1247933,Minster Pathways Ltd,,Bi-Borough Director of Integrated Care,4167.5
05/01/2022,1244905,Nas Services Ltd (Residential),,Bi-Borough Director of Integrated Care,4058.88
05/01/2022,1244905,Nas Services Ltd (Residential),,Bi-Borough Director of Integrated Care,7400.08
05/01/2022,1244905,Nas Services Ltd (Residential),,Bi-Borough Director of Integrated Care,3379.32
05/01/2022,1244905,Nas Services Ltd (Residential),,Bi-Borough Director of Integrated Care,7738
12/01/2022,1244905,Nas Services Ltd (Residential),B*Voluntary-Spot-V Dep-Enhanced - do not u,Bi-Borough Director of Integrated Care,1418.44
12/01/2022,1244905,Nas Services Ltd (Residential),B*Voluntary-Spot-V Dep-Enhanced - do not u,Bi-Borough Director of Integrated Care,1247.28
28/01/2022,1244905,Nas Services Ltd (Residential),B*Voluntary-Spot-V Dep-Enhanced - do not u,Bi-Borough Director of Integrated Care,1247.28
28/01/2022,1244905,Nas Services Ltd (Residential),B*Voluntary-Spot-V Dep-Enhanced - do not u,Bi-Borough Director of Integrated Care,1418.44
02/02/2022,1244905,Nas Services Ltd (Residential),,Bi-Borough Director of Integrated Care,4058.88
02/02/2022,1244905,Nas Services Ltd (Residential),,Bi-Borough Director of Integrated Care,3379.32
02/02/2022,1244905,Nas Services Ltd (Residential),,Bi-Borough Director of Integrated Care,7400.08
02/02/2022,1244905,Nas Services Ltd (Residential),,Bi-Borough Director of Integrated Care,7738
03/03/2022,1244905,Nas Services Ltd (Residential),,Bi-Borough Director of Integrated Care,4058.88
03/03/2022,1244905,Nas Services Ltd (Residential),,Bi-Borough Director of Integrated Care,7400.08
03/03/2022,1244905,Nas Services Ltd (Residential),,Bi-Borough Director of Integrated Care,3379.32
03/03/2022,1244905,Nas Services Ltd (Residential),,Bi-Borough Director of Integrated Care,7738
24/03/2022,1244905,Nas Services Ltd (Residential),,Bi-Borough Director of Integrated Care,4638.72
24/03/2022,1244905,Nas Services Ltd (Residential),,Bi-Borough Director of Integrated Care,3862.08
24/03/2022,1244905,Nas Services Ltd (Residential),,Bi-Borough Director of Integrated Care,8457.23
24/03/2022,1244905,Nas Services Ltd (Residential),,Bi-Borough Director of Integrated Care,8843.43
31/03/2022,1244905,Nas Services Ltd (Residential),B*Voluntary-Spot-V Dep-Enhanced - do not u,Bi-Borough Director of Integrated Care,1418.44
31/03/2022,1244905,Nas Services Ltd (Residential),B*Voluntary-Spot-V Dep-Enhanced - do not u,Bi-Borough Director of Integrated Care,1247.28
12/01/2022,1244906,Nas Services Ltd (Use 3009018),B*Voluntary-Spot-V Dep-Enhanced - do not u,Bi-Borough Director of Integrated Care,2134
12/01/2022,1244906,Nas Services Ltd (Use 3009018),B*Voluntary-Spot-V Dep-Enhanced - do not u,Bi-Borough Director of Integrated Care,708.78
12/01/2022,1244906,Nas Services Ltd (Use 3009018),B*Voluntary-Spot-V Dep-Enhanced - do not u,Bi-Borough Director of Integrated Care,4879.2
12/01/2022,1244906,Nas Services Ltd (Use 3009018),B*Voluntary-Spot-V Dep-Enhanced - do not u,Bi-Borough Director of Integrated Care,1744.52
12/01/2022,1244906,Nas Services Ltd (Use 3009018),B*Voluntary-Spot-V Dep-Enhanced - do not u,Bi-Borough Director of Integrated Care,1124.96
12/01/2022,1244906,Nas Services Ltd (Use 3009018),B*Voluntary-Spot-V Dep-Enhanced - do not u,Bi-Borough Director of Integrated Care,2915.36
12/01/2022,1244906,Nas Services Ltd (Use 3009018),B*Voluntary-Spot-V Dep-Enhanced - do not u,Bi-Borough Director of Integrated Care,1772.04
12/01/2022,1244906,Nas Services Ltd (Use 3009018),B*Voluntary-Spot-V Dep-Enhanced - do not u,Bi-Borough Director of Integrated Care,2970.72
12/01/2022,1244906,Nas Services Ltd (Use 3009018),B*Voluntary-Spot-V Dep-Enhanced - do not u,Bi-Borough Director of Integrated Care,1308.36
12/01/2022,1244906,Nas Services Ltd (Use 3009018),B*Voluntary-Spot-V Dep-Enhanced - do not u,Bi-Borough Director of Integrated Care,2027.52
12/01/2022,1244906,Nas Services Ltd (Use 3009018),B*Voluntary-Spot-V Dep-Enhanced - do not u,Bi-Borough Director of Integrated Care,5243.8
28/01/2022,1244906,Nas Services Ltd (Use 3009018),B*Voluntary-Spot-V Dep-Enhanced - do not u,Bi-Borough Director of Integrated Care,2915.36
28/01/2022,1244906,Nas Services Ltd (Use 3009018),B*Voluntary-Spot-V Dep-Enhanced - do not u,Bi-Borough Director of Integrated Care,1308.36
28/01/2022,1244906,Nas Services Ltd (Use 3009018),B*Voluntary-Spot-V Dep-Enhanced - do not u,Bi-Borough Director of Integrated Care,1772.04
28/01/2022,1244906,Nas Services Ltd (Use 3009018),B*Voluntary-Spot-V Dep-Enhanced - do not u,Bi-Borough Director of Integrated Care,2970.72
28/01/2022,1244906,Nas Services Ltd (Use 3009018),B*Voluntary-Spot-V Dep-Enhanced - do not u,Bi-Borough Director of Integrated Care,1744.52
28/01/2022,1244906,Nas Services Ltd (Use 3009018),B*Voluntary-Spot-V Dep-Enhanced - do not u,Bi-Borough Director of Integrated Care,2027.52
28/01/2022,1244906,Nas Services Ltd (Use 3009018),B*Voluntary-Spot-V Dep-Enhanced - do not u,Bi-Borough Director of Integrated Care,5243.8
28/01/2022,1244906,Nas Services Ltd (Use 3009018),B*Voluntary-Spot-V Dep-Enhanced - do not u,Bi-Borough Director of Integrated Care,4879.2
28/01/2022,1244906,Nas Services Ltd (Use 3009018),B*Voluntary-Spot-V Dep-Enhanced - do not u,Bi-Borough Director of Integrated Care,1124.96
31/03/2022,1244906,Nas Services Ltd (Use 3009018),B*Voluntary-Spot-V Dep-Enhanced - do not u,Bi-Borough Director of Integrated Care,2915.36
31/03/2022,1244906,Nas Services Ltd (Use 3009018),B*Voluntary-Spot-V Dep-Enhanced - do not u,Bi-Borough Director of Integrated Care,1308.36
31/03/2022,1244906,Nas Services Ltd (Use 3009018),B*Voluntary-Spot-V Dep-Enhanced - do not u,Bi-Borough Director of Integrated Care,1772.04
31/03/2022,1244906,Nas Services Ltd (Use 3009018),B*Voluntary-Spot-V Dep-Enhanced - do not u,Bi-Borough Director of Integrated Care,2970.72
31/03/2022,1244906,Nas Services Ltd (Use 3009018),B*Voluntary-Spot-V Dep-Enhanced - do not u,Bi-Borough Director of Integrated Care,1124.96
31/03/2022,1244906,Nas Services Ltd (Use 3009018),B*Voluntary-Spot-V Dep-Enhanced - do not u,Bi-Borough Director of Integrated Care,1744.52
31/03/2022,1244906,Nas Services Ltd (Use 3009018),B*Voluntary-Spot-V Dep-Enhanced - do not u,Bi-Borough Director of Integrated Care,5243.8
31/03/2022,1244906,Nas Services Ltd (Use 3009018),B*Voluntary-Spot-V Dep-Enhanced - do not u,Bi-Borough Director of Integrated Care,4879.2
31/03/2022,1244906,Nas Services Ltd (Use 3009018),B*Voluntary-Spot-V Dep-Enhanced - do not u,Bi-Borough Director of Integrated Care,2027.52
05/01/2022,1282551,Nisacraftcare Limited,,Bi-Borough Director of Integrated Care,14092.08
05/01/2022,1282551,Nisacraftcare Limited,,Bi-Borough Director of Integrated Care,8065.2
02/02/2022,1282551,Nisacraftcare Limited,,Bi-Borough Director of Integrated Care,14092.08
02/02/2022,1282551,Nisacraftcare Limited,,Bi-Borough Director of Integrated Care,8065.2
03/03/2022,1282551,Nisacraftcare Limited,,Bi-Borough Director of Integrated Care,14092.08
03/03/2022,1282551,Nisacraftcare Limited,,Bi-Borough Director of Integrated Care,8065.2
24/03/2022,1282551,Nisacraftcare Limited,,Bi-Borough Director of Integrated Care,16105.23
24/03/2022,1282551,Nisacraftcare Limited,,Bi-Borough Director of Integrated Care,9217.37
05/01/2022,1247147,Norwood Schools Ltd,,Bi-Borough Director of Integrated Care,6298.48
05/01/2022,1247147,Norwood Schools Ltd,,Bi-Borough Director of Integrated Care,5518
05/01/2022,1247147,Norwood Schools Ltd,,Bi-Borough Director of Integrated Care,9196.64
05/01/2022,1247147,Norwood Schools Ltd,,Bi-Borough Director of Integrated Care,7092.84
02/02/2022,1247147,Norwood Schools Ltd,,Bi-Borough Director of Integrated Care,6298.48
02/02/2022,1247147,Norwood Schools Ltd,,Bi-Borough Director of Integrated Care,5518
02/02/2022,1247147,Norwood Schools Ltd,,Bi-Borough Director of Integrated Care,9196.64
02/02/2022,1247147,Norwood Schools Ltd,,Bi-Borough Director of Integrated Care,7092.84
03/03/2022,1247147,Norwood Schools Ltd,,Bi-Borough Director of Integrated Care,7092.84
03/03/2022,1247147,Norwood Schools Ltd,,Bi-Borough Director of Integrated Care,6298.48
03/03/2022,1247147,Norwood Schools Ltd,,Bi-Borough Director of Integrated Care,5518
03/03/2022,1247147,Norwood Schools Ltd,,Bi-Borough Director of Integrated Care,9196.64
24/03/2022,1247147,Norwood Schools Ltd,,Bi-Borough Director of Integrated Care,6306.29
24/03/2022,1247147,Norwood Schools Ltd,,Bi-Borough Director of Integrated Care,10510.45
24/03/2022,1247147,Norwood Schools Ltd,,Bi-Borough Director of Integrated Care,8106.1
24/03/2022,1247147,Norwood Schools Ltd,,Bi-Borough Director of Integrated Care,7198.26
05/01/2022,1243520,Oakview Care (Berkshire) Ltd,,Bi-Borough Director of Integrated Care,6699.96
02/02/2022,1243520,Oakview Care (Berkshire) Ltd,,Bi-Borough Director of Integrated Care,7001.46
03/03/2022,1243520,Oakview Care (Berkshire) Ltd,,Bi-Borough Director of Integrated Care,6833.96
24/03/2022,1243520,Oakview Care (Berkshire) Ltd,,Bi-Borough Director of Integrated Care,7810.24
05/01/2022,1243524,PERSONAL PAYMENTS,,Bi-Borough Director of Integrated Care,936
05/01/2022,1243524,PERSONAL PAYMENTS,,Bi-Borough Director of Integrated Care,3379.76
02/02/2022,1243524,PERSONAL PAYMENTS,,Bi-Borough Director of Integrated Care,936
02/02/2022,1243524,PERSONAL PAYMENTS,,Bi-Borough Director of Integrated Care,3379.76
03/03/2022,1243524,PERSONAL PAYMENTS,,Bi-Borough Director of Integrated Care,936
03/03/2022,1243524,PERSONAL PAYMENTS,,Bi-Borough Director of Integrated Care,3379.76
24/03/2022,1243524,PERSONAL PAYMENTS,,Bi-Borough Director of Integrated Care,1069.71
24/03/2022,1243524,PERSONAL PAYMENTS,,Bi-Borough Director of Integrated Care,3862.58
05/01/2022,1245005,PERSONAL PAYMENTS,,Bi-Borough Director of Integrated Care,1744.8
05/01/2022,1245005,PERSONAL PAYMENTS,,Bi-Borough Director of Integrated Care,2146.88
05/01/2022,1245005,PERSONAL PAYMENTS,,Bi-Borough Director of Integrated Care,2842.88
05/01/2022,1245005,PERSONAL PAYMENTS,,Bi-Borough Director of Integrated Care,1337.68
05/01/2022,1245005,PERSONAL PAYMENTS,,Bi-Borough Director of Integrated Care,2146.88
05/01/2022,1245005,PERSONAL PAYMENTS,,Bi-Borough Director of Integrated Care,2902.96
02/02/2022,1245005,PERSONAL PAYMENTS,,Bi-Borough Director of Integrated Care,1744.8
02/02/2022,1245005,PERSONAL PAYMENTS,,Bi-Borough Director of Integrated Care,2146.88
02/02/2022,1245005,PERSONAL PAYMENTS,,Bi-Borough Director of Integrated Care,2842.88
02/02/2022,1245005,PERSONAL PAYMENTS,,Bi-Borough Director of Integrated Care,2146.88
02/02/2022,1245005,PERSONAL PAYMENTS,,Bi-Borough Director of Integrated Care,1337.68
02/02/2022,1245005,PERSONAL PAYMENTS,,Bi-Borough Director of Integrated Care,2902.96
03/03/2022,1245005,PERSONAL PAYMENTS,,Bi-Borough Director of Integrated Care,2146.88
03/03/2022,1245005,PERSONAL PAYMENTS,,Bi-Borough Director of Integrated Care,1744.8
03/03/2022,1245005,PERSONAL PAYMENTS,,Bi-Borough Director of Integrated Care,5152.88
03/03/2022,1245005,PERSONAL PAYMENTS,,Bi-Borough Director of Integrated Care,1337.68
03/03/2022,1245005,PERSONAL PAYMENTS,,Bi-Borough Director of Integrated Care,2146.88
03/03/2022,1245005,PERSONAL PAYMENTS,,Bi-Borough Director of Integrated Care,2902.96
24/03/2022,1245005,PERSONAL PAYMENTS,,Bi-Borough Director of Integrated Care,1994.06
24/03/2022,1245005,PERSONAL PAYMENTS,,Bi-Borough Director of Integrated Care,2453.58
24/03/2022,1245005,PERSONAL PAYMENTS,,Bi-Borough Director of Integrated Care,3550.72
24/03/2022,1245005,PERSONAL PAYMENTS,,Bi-Borough Director of Integrated Care,2453.58
24/03/2022,1245005,PERSONAL PAYMENTS,,Bi-Borough Director of Integrated Care,1528.78
24/03/2022,1245005,PERSONAL PAYMENTS,,Bi-Borough Director of Integrated Care,3317.67
10/01/2022,1245825,Sweet Tree Home Care Services,Adult Social Care - Other Transfer Pay,Bi-Borough Director of Integrated Care,3789.33
10/01/2022,1245825,Sweet Tree Home Care Services,Adult Social Care - Other Transfer Pay,Bi-Borough Director of Integrated Care,3904.75
14/01/2022,1272570,PERSONAL PAYMENTS,Adult Social Care - Other Transfer Pay,Bi-Borough Director of Integrated Care,1051.24
14/01/2022,1250074,PERSONAL PAYMENTS,Adult Social Care - Other Transfer Pay,Bi-Borough Director of Integrated Care,4129.73
14/01/2022,1246066,Barrie Bookkeeping & Payroll,Adult Social Care - Other Transfer Pay,Bi-Borough Director of Integrated Care,1821.6
14/01/2022,1246066,Barrie Bookkeeping & Payroll,Adult Social Care - Other Transfer Pay,Bi-Borough Director of Integrated Care,1066.28
14/01/2022,1250044,PERSONAL PAYMENTS,Adult Social Care - Other Transfer Pay,Bi-Borough Director of Integrated Care,648
14/01/2022,1248292,PERSONAL PAYMENTS,Adult Social Care - Other Transfer Pay,Bi-Borough Director of Integrated Care,8929.4
14/01/2022,1246066,Barrie Bookkeeping & Payroll,Adult Social Care - Other Transfer Pay,Bi-Borough Director of Integrated Care,2699.6
14/01/2022,1250627,PERSONAL PAYMENTS,Adult Social Care - Other Transfer Pay,Bi-Borough Director of Integrated Care,2508
14/01/2022,1246066,Barrie Bookkeeping & Payroll,Adult Social Care - Other Transfer Pay,Bi-Borough Director of Integrated Care,2611.32
14/01/2022,1268346,PERSONAL PAYMENTS,Adult Social Care - Other Transfer Pay,Bi-Borough Director of Integrated Care,1623.4
14/01/2022,1246066,Barrie Bookkeeping & Payroll,Adult Social Care - Other Transfer Pay,Bi-Borough Director of Integrated Care,818
14/01/2022,1250186,PERSONAL PAYMENTS,Adult Social Care - Other Transfer Pay,Bi-Borough Director of Integrated Care,3121.48
14/01/2022,1248154,PERSONAL PAYMENTS,Adult Social Care - Other Transfer Pay,Bi-Borough Director of Integrated Care,829.52
14/01/2022,1246066,Barrie Bookkeeping & Payroll,Adult Social Care - Other Transfer Pay,Bi-Borough Director of Integrated Care,876.08
14/01/2022,1249942,PERSONAL PAYMENTS,Adult Social Care - Other Transfer Pay,Bi-Borough Director of Integrated Care,5975.56
14/01/2022,1246066,Barrie Bookkeeping & Payroll,Adult Social Care - Other Transfer Pay,Bi-Borough Director of Integrated Care,733.26
14/01/2022,1247804,PERSONAL PAYMENTS,Adult Social Care - Other Transfer Pay,Bi-Borough Director of Integrated Care,752.2
14/01/2022,1246066,Barrie Bookkeeping & Payroll,Adult Social Care - Other Transfer Pay,Bi-Borough Director of Integrated Care,4603.4
14/01/2022,1248354,PERSONAL PAYMENTS,Adult Social Care - Other Transfer Pay,Bi-Borough Director of Integrated Care,2294.6
14/01/2022,1246066,Barrie Bookkeeping & Payroll,Adult Social Care - Other Transfer Pay,Bi-Borough Director of Integrated Care,2854.04
14/01/2022,1246066,Barrie Bookkeeping & Payroll,Adult Social Care - Other Transfer Pay,Bi-Borough Director of Integrated Care,2585.32
14/01/2022,1248010,PERSONAL PAYMENTS,Adult Social Care - Other Transfer Pay,Bi-Borough Director of Integrated Care,634.88
14/01/2022,1246066,Barrie Bookkeeping & Payroll,Adult Social Care - Other Transfer Pay,Bi-Borough Director of Integrated Care,1991
14/01/2022,1250138,PERSONAL PAYMENTS,Adult Social Care - Other Transfer Pay,Bi-Borough Director of Integrated Care,1111.74
14/01/2022,1254540,PERSONAL PAYMENTS,Adult Social Care - Other Transfer Pay,Bi-Borough Director of Integrated Care,1264.98
14/01/2022,1254540,PERSONAL PAYMENTS,Adult Social Care - Other Transfer Pay,Bi-Borough Director of Integrated Care,1132.1
14/01/2022,1250674,PERSONAL PAYMENTS,Adult Social Care - Other Transfer Pay,Bi-Borough Director of Integrated Care,2652.16
14/01/2022,1248148,PERSONAL PAYMENTS,Adult Social Care - Other Transfer Pay,Bi-Borough Director of Integrated Care,1638.96
14/01/2022,1246066,Barrie Bookkeeping & Payroll,Adult Social Care - Other Transfer Pay,Bi-Borough Director of Integrated Care,5754.04
14/01/2022,1246066,Barrie Bookkeeping & Payroll,Adult Social Care - Other Transfer Pay,Bi-Borough Director of Integrated Care,5914.56
14/01/2022,1246066,Barrie Bookkeeping & Payroll,Adult Social Care - Other Transfer Pay,Bi-Borough Director of Integrated Care,2483.4
14/01/2022,1246066,Barrie Bookkeeping & Payroll,Adult Social Care - Other Transfer Pay,Bi-Borough Director of Integrated Care,1791.6
14/01/2022,1247820,PERSONAL PAYMENTS,Adult Social Care - Other Transfer Pay,Bi-Borough Director of Integrated Care,8751.04
14/01/2022,1280973,PERSONAL PAYMENTS,Adult Social Care - Other Transfer Pay,Bi-Borough Director of Integrated Care,6236.88
14/01/2022,1246066,Barrie Bookkeeping & Payroll,Adult Social Care - Other Transfer Pay,Bi-Borough Director of Integrated Care,2056.84
14/01/2022,1246066,Barrie Bookkeeping & Payroll,Adult Social Care - Other Transfer Pay,Bi-Borough Director of Integrated Care,773.2
14/01/2022,1250670,PERSONAL PAYMENTS,Adult Social Care - Other Transfer Pay,Bi-Borough Director of Integrated Care,1024
14/01/2022,1278955,PERSONAL PAYMENTS,Social Care - Direct Payments,Bi-Borough Director of Integrated Care,1289.24
14/01/2022,1249796,PERSONAL PAYMENTS,Adult Social Care - Other Transfer Pay,Bi-Borough Director of Integrated Care,999.16
14/01/2022,1257487,PERSONAL PAYMENTS,Adult Social Care - Other Transfer Pay,Bi-Borough Director of Integrated Care,1053.57
14/01/2022,1250656,PERSONAL PAYMENTS,Social Care - Direct Payments,Bi-Borough Director of Integrated Care,1118.36
14/01/2022,1246066,Barrie Bookkeeping & Payroll,Adult Social Care - Other Transfer Pay,Bi-Borough Director of Integrated Care,1688.6
14/01/2022,1246066,Barrie Bookkeeping & Payroll,Adult Social Care - Other Transfer Pay,Bi-Borough Director of Integrated Care,733.8
14/01/2022,1246066,Barrie Bookkeeping & Payroll,Adult Social Care - Other Transfer Pay,Bi-Borough Director of Integrated Care,2452.2
14/01/2022,1246066,Barrie Bookkeeping & Payroll,Adult Social Care - Other Transfer Pay,Bi-Borough Director of Integrated Care,2861.64
14/01/2022,1246066,Barrie Bookkeeping & Payroll,Adult Social Care - Other Transfer Pay,Bi-Borough Director of Integrated Care,1164.6
14/01/2022,1250012,PERSONAL PAYMENTS,Adult Social Care - Other Transfer Pay,Bi-Borough Director of Integrated Care,2015
14/01/2022,1250215,PERSONAL PAYMENTS,Adult Social Care - Other Transfer Pay,Bi-Borough Director of Integrated Care,1361.56
14/01/2022,1249876,PERSONAL PAYMENTS,Adult Social Care - Other Transfer Pay,Bi-Borough Director of Integrated Care,845.76
14/01/2022,1250037,PERSONAL PAYMENTS,Adult Social Care - Other Transfer Pay,Bi-Borough Director of Integrated Care,2383.72
14/01/2022,1247727,PERSONAL PAYMENTS,Social Care - Direct Payments,Bi-Borough Director of Integrated Care,2740.72
14/01/2022,1246066,Barrie Bookkeeping & Payroll,Adult Social Care - Other Transfer Pay,Bi-Borough Director of Integrated Care,11674.68
26/01/2022,1250612,PERSONAL PAYMENTS,Social Care - Direct Payments,Bi-Borough Director of Integrated Care,1771.22
03/02/2022,1245825,Sweet Tree Home Care Services,Adult Social Care - Other Transfer Pay,Bi-Borough Director of Integrated Care,4130.31
10/02/2022,1246066,Barrie Bookkeeping & Payroll,Adult Social Care - Other Transfer Pay,Bi-Borough Director of Integrated Care,2699.6
10/02/2022,1250627,PERSONAL PAYMENTS,Adult Social Care - Other Transfer Pay,Bi-Borough Director of Integrated Care,2508
10/02/2022,1246066,Barrie Bookkeeping & Payroll,Adult Social Care - Other Transfer Pay,Bi-Borough Director of Integrated Care,2611.32
10/02/2022,1268346,PERSONAL PAYMENTS,Adult Social Care - Other Transfer Pay,Bi-Borough Director of Integrated Care,1623.4
10/02/2022,1249942,PERSONAL PAYMENTS,Adult Social Care - Other Transfer Pay,Bi-Borough Director of Integrated Care,5975.56
10/02/2022,1246066,Barrie Bookkeeping & Payroll,Adult Social Care - Other Transfer Pay,Bi-Borough Director of Integrated Care,4603.4
10/02/2022,1248354,PERSONAL PAYMENTS,Adult Social Care - Other Transfer Pay,Bi-Borough Director of Integrated Care,2294.6
10/02/2022,1250138,PERSONAL PAYMENTS,Adult Social Care - Other Transfer Pay,Bi-Borough Director of Integrated Care,916
10/02/2022,1248148,PERSONAL PAYMENTS,Adult Social Care - Other Transfer Pay,Bi-Borough Director of Integrated Care,1638.96
10/02/2022,1246066,Barrie Bookkeeping & Payroll,Adult Social Care - Other Transfer Pay,Bi-Borough Director of Integrated Care,818
10/02/2022,1250186,PERSONAL PAYMENTS,Adult Social Care - Other Transfer Pay,Bi-Borough Director of Integrated Care,3121.48
10/02/2022,1248154,PERSONAL PAYMENTS,Adult Social Care - Other Transfer Pay,Bi-Borough Director of Integrated Care,829.52
10/02/2022,1246066,Barrie Bookkeeping & Payroll,Adult Social Care - Other Transfer Pay,Bi-Borough Director of Integrated Care,5754.04
10/02/2022,1246066,Barrie Bookkeeping & Payroll,Adult Social Care - Other Transfer Pay,Bi-Borough Director of Integrated Care,5914.56
10/02/2022,1246066,Barrie Bookkeeping & Payroll,Adult Social Care - Other Transfer Pay,Bi-Borough Director of Integrated Care,2483.4
10/02/2022,1246066,Barrie Bookkeeping & Payroll,Adult Social Care - Other Transfer Pay,Bi-Borough Director of Integrated Care,1791.6
10/02/2022,1247820,PERSONAL PAYMENTS,Adult Social Care - Other Transfer Pay,Bi-Borough Director of Integrated Care,8751.04
10/02/2022,1280973,PERSONAL PAYMENTS,Adult Social Care - Other Transfer Pay,Bi-Borough Director of Integrated Care,6236.88
10/02/2022,1246066,Barrie Bookkeeping & Payroll,Adult Social Care - Other Transfer Pay,Bi-Borough Director of Integrated Care,2056.84
10/02/2022,1246066,Barrie Bookkeeping & Payroll,Adult Social Care - Other Transfer Pay,Bi-Borough Director of Integrated Care,876.08
10/02/2022,1247804,PERSONAL PAYMENTS,Adult Social Care - Other Transfer Pay,Bi-Borough Director of Integrated Care,752.2
10/02/2022,1246066,Barrie Bookkeeping & Payroll,Adult Social Care - Other Transfer Pay,Bi-Borough Director of Integrated Care,773.2
10/02/2022,1246066,Barrie Bookkeeping & Payroll,Adult Social Care - Other Transfer Pay,Bi-Borough Director of Integrated Care,2854.04
10/02/2022,1246066,Barrie Bookkeeping & Payroll,Adult Social Care - Other Transfer Pay,Bi-Borough Director of Integrated Care,2585.32
10/02/2022,1250656,PERSONAL PAYMENTS,Social Care - Direct Payments,Bi-Borough Director of Integrated Care,1118.36
10/02/2022,1248010,PERSONAL PAYMENTS,Adult Social Care - Other Transfer Pay,Bi-Borough Director of Integrated Care,634.88
10/02/2022,1246066,Barrie Bookkeeping & Payroll,Adult Social Care - Other Transfer Pay,Bi-Borough Director of Integrated Care,1991
10/02/2022,1246066,Barrie Bookkeeping & Payroll,Adult Social Care - Other Transfer Pay,Bi-Borough Director of Integrated Care,1688.6
10/02/2022,1246066,Barrie Bookkeeping & Payroll,Adult Social Care - Other Transfer Pay,Bi-Borough Director of Integrated Care,733.8
10/02/2022,1246066,Barrie Bookkeeping & Payroll,Adult Social Care - Other Transfer Pay,Bi-Borough Director of Integrated Care,2452.2
10/02/2022,1250215,PERSONAL PAYMENTS,Adult Social Care - Other Transfer Pay,Bi-Borough Director of Integrated Care,1361.56
10/02/2022,1254540,PERSONAL PAYMENTS,Adult Social Care - Other Transfer Pay,Bi-Borough Director of Integrated Care,939.92
10/02/2022,1250674,PERSONAL PAYMENTS,Adult Social Care - Other Transfer Pay,Bi-Borough Director of Integrated Care,2652.16
10/02/2022,1246066,Barrie Bookkeeping & Payroll,Adult Social Care - Other Transfer Pay,Bi-Borough Director of Integrated Care,1791.86
10/02/2022,1250670,PERSONAL PAYMENTS,Adult Social Care - Other Transfer Pay,Bi-Borough Director of Integrated Care,1024
10/02/2022,1278955,PERSONAL PAYMENTS,Social Care - Direct Payments,Bi-Borough Director of Integrated Care,1289.24
10/02/2022,1272570,PERSONAL PAYMENTS,Adult Social Care - Other Transfer Pay,Bi-Borough Director of Integrated Care,1051.24
10/02/2022,1250074,PERSONAL PAYMENTS,Adult Social Care - Other Transfer Pay,Bi-Borough Director of Integrated Care,4683.36
10/02/2022,1246066,Barrie Bookkeeping & Payroll,Adult Social Care - Other Transfer Pay,Bi-Borough Director of Integrated Care,1821.6
10/02/2022,1250044,PERSONAL PAYMENTS,Adult Social Care - Other Transfer Pay,Bi-Borough Director of Integrated Care,648
10/02/2022,1248292,PERSONAL PAYMENTS,Adult Social Care - Other Transfer Pay,Bi-Borough Director of Integrated Care,8929.4
10/02/2022,1246066,Barrie Bookkeeping & Payroll,Adult Social Care - Other Transfer Pay,Bi-Borough Director of Integrated Care,953.88
10/02/2022,1246066,Barrie Bookkeeping & Payroll,Adult Social Care - Other Transfer Pay,Bi-Borough Director of Integrated Care,1164.6
10/02/2022,1269674,PERSONAL PAYMENTS,Adult Social Care - Other Transfer Pay,Bi-Borough Director of Integrated Care,1361.57
10/02/2022,1250012,PERSONAL PAYMENTS,Adult Social Care - Other Transfer Pay,Bi-Borough Director of Integrated Care,2015
10/02/2022,1250037,PERSONAL PAYMENTS,Adult Social Care - Other Transfer Pay,Bi-Borough Director of Integrated Care,2383.72
10/02/2022,1247727,PERSONAL PAYMENTS,Social Care - Direct Payments,Bi-Borough Director of Integrated Care,2740.72
10/02/2022,1246066,Barrie Bookkeeping & Payroll,Adult Social Care - Other Transfer Pay,Bi-Borough Director of Integrated Care,11674.68
03/03/2022,1245825,Sweet Tree Home Care Services,Adult Social Care - Other Transfer Pay,Bi-Borough Director of Integrated Care,3661.29
10/03/2022,1246066,Barrie Bookkeeping & Payroll,Adult Social Care - Other Transfer Pay,Bi-Borough Director of Integrated Care,2699.6
10/03/2022,1250627,PERSONAL PAYMENTS,Adult Social Care - Other Transfer Pay,Bi-Borough Director of Integrated Care,2508
10/03/2022,1250074,PERSONAL PAYMENTS,Adult Social Care - Other Transfer Pay,Bi-Borough Director of Integrated Care,21899.52
10/03/2022,1246066,Barrie Bookkeeping & Payroll,Adult Social Care - Other Transfer Pay,Bi-Borough Director of Integrated Care,1821.6
10/03/2022,1250044,PERSONAL PAYMENTS,Adult Social Care - Other Transfer Pay,Bi-Borough Director of Integrated Care,648
10/03/2022,1248292,PERSONAL PAYMENTS,Adult Social Care - Other Transfer Pay,Bi-Borough Director of Integrated Care,8929.4
10/03/2022,1246066,Barrie Bookkeeping & Payroll,Adult Social Care - Other Transfer Pay,Bi-Borough Director of Integrated Care,2611.32
10/03/2022,1268346,PERSONAL PAYMENTS,Adult Social Care - Other Transfer Pay,Bi-Borough Director of Integrated Care,1623.4
10/03/2022,1249942,PERSONAL PAYMENTS,Adult Social Care - Other Transfer Pay,Bi-Borough Director of Integrated Care,6606.07
10/03/2022,1246066,Barrie Bookkeeping & Payroll,Adult Social Care - Other Transfer Pay,Bi-Borough Director of Integrated Care,4603.4
10/03/2022,1250138,PERSONAL PAYMENTS,Adult Social Care - Other Transfer Pay,Bi-Borough Director of Integrated Care,916
10/03/2022,1246066,Barrie Bookkeeping & Payroll,Adult Social Care - Other Transfer Pay,Bi-Borough Director of Integrated Care,818
10/03/2022,1250186,PERSONAL PAYMENTS,Adult Social Care - Other Transfer Pay,Bi-Borough Director of Integrated Care,3121.48
10/03/2022,1248154,PERSONAL PAYMENTS,Adult Social Care - Other Transfer Pay,Bi-Borough Director of Integrated Care,829.52
10/03/2022,1246066,Barrie Bookkeeping & Payroll,Adult Social Care - Other Transfer Pay,Bi-Borough Director of Integrated Care,876.08
10/03/2022,1247804,PERSONAL PAYMENTS,Adult Social Care - Other Transfer Pay,Bi-Borough Director of Integrated Care,752.2
10/03/2022,1246066,Barrie Bookkeeping & Payroll,Adult Social Care - Other Transfer Pay,Bi-Borough Director of Integrated Care,2854.04
10/03/2022,1246066,Barrie Bookkeeping & Payroll,Adult Social Care - Other Transfer Pay,Bi-Borough Director of Integrated Care,2585.32
10/03/2022,1248010,PERSONAL PAYMENTS,Adult Social Care - Other Transfer Pay,Bi-Borough Director of Integrated Care,634.88
10/03/2022,1246066,Barrie Bookkeeping & Payroll,Adult Social Care - Other Transfer Pay,Bi-Borough Director of Integrated Care,1991
10/03/2022,1254540,PERSONAL PAYMENTS,Adult Social Care - Other Transfer Pay,Bi-Borough Director of Integrated Care,939.92
10/03/2022,1250674,PERSONAL PAYMENTS,Adult Social Care - Other Transfer Pay,Bi-Borough Director of Integrated Care,2652.16
10/03/2022,1246066,Barrie Bookkeeping & Payroll,Adult Social Care - Other Transfer Pay,Bi-Borough Director of Integrated Care,660.16
10/03/2022,1248148,PERSONAL PAYMENTS,Adult Social Care - Other Transfer Pay,Bi-Borough Director of Integrated Care,1638.96
10/03/2022,1246066,Barrie Bookkeeping & Payroll,Adult Social Care - Other Transfer Pay,Bi-Borough Director of Integrated Care,5754.04
10/03/2022,1246066,Barrie Bookkeeping & Payroll,Adult Social Care - Other Transfer Pay,Bi-Borough Director of Integrated Care,5914.56
10/03/2022,1246066,Barrie Bookkeeping & Payroll,Adult Social Care - Other Transfer Pay,Bi-Borough Director of Integrated Care,2483.4
10/03/2022,1246066,Barrie Bookkeeping & Payroll,Adult Social Care - Other Transfer Pay,Bi-Borough Director of Integrated Care,1791.6
10/03/2022,1247820,PERSONAL PAYMENTS,Adult Social Care - Other Transfer Pay,Bi-Borough Director of Integrated Care,8751.04
10/03/2022,1250670,PERSONAL PAYMENTS,Adult Social Care - Other Transfer Pay,Bi-Borough Director of Integrated Care,1024
10/03/2022,1278955,PERSONAL PAYMENTS,Social Care - Direct Payments,Bi-Borough Director of Integrated Care,1289.24
10/03/2022,1280973,PERSONAL PAYMENTS,Adult Social Care - Other Transfer Pay,Bi-Borough Director of Integrated Care,6236.88
10/03/2022,1246066,Barrie Bookkeeping & Payroll,Adult Social Care - Other Transfer Pay,Bi-Borough Director of Integrated Care,2056.84
10/03/2022,1246066,Barrie Bookkeeping & Payroll,Adult Social Care - Other Transfer Pay,Bi-Borough Director of Integrated Care,773.2
10/03/2022,1250656,PERSONAL PAYMENTS,Social Care - Direct Payments,Bi-Borough Director of Integrated Care,1118.36
10/03/2022,1247358,PERSONAL PAYMENTS,Adult Social Care - Other Transfer Pay,Bi-Borough Director of Integrated Care,2563.61
10/03/2022,1246066,Barrie Bookkeeping & Payroll,Adult Social Care - Other Transfer Pay,Bi-Borough Director of Integrated Care,953.88
10/03/2022,1246066,Barrie Bookkeeping & Payroll,Adult Social Care - Other Transfer Pay,Bi-Borough Director of Integrated Care,1164.6
10/03/2022,1269674,PERSONAL PAYMENTS,Adult Social Care - Other Transfer Pay,Bi-Borough Director of Integrated Care,778.04
10/03/2022,1246066,Barrie Bookkeeping & Payroll,Adult Social Care - Other Transfer Pay,Bi-Borough Director of Integrated Care,1688.6
10/03/2022,1246066,Barrie Bookkeeping & Payroll,Adult Social Care - Other Transfer Pay,Bi-Borough Director of Integrated Care,733.8
10/03/2022,1246066,Barrie Bookkeeping & Payroll,Adult Social Care - Other Transfer Pay,Bi-Borough Director of Integrated Care,2452.2
10/03/2022,1250012,PERSONAL PAYMENTS,Adult Social Care - Other Transfer Pay,Bi-Borough Director of Integrated Care,2015
10/03/2022,1250037,PERSONAL PAYMENTS,Adult Social Care - Other Transfer Pay,Bi-Borough Director of Integrated Care,2383.72
10/03/2022,1250215,PERSONAL PAYMENTS,Adult Social Care - Other Transfer Pay,Bi-Borough Director of Integrated Care,1361.56
10/03/2022,1248491,PERSONAL PAYMENTS,Adult Social Care - Other Transfer Pay,Bi-Borough Director of Integrated Care,12126.8
10/03/2022,1247727,PERSONAL PAYMENTS,Social Care - Direct Payments,Bi-Borough Director of Integrated Care,2740.72
10/03/2022,1246066,Barrie Bookkeeping & Payroll,Adult Social Care - Other Transfer Pay,Bi-Borough Director of Integrated Care,11674.68
10/03/2022,1272570,PERSONAL PAYMENTS,Adult Social Care - Other Transfer Pay,Bi-Borough Director of Integrated Care,1051.24
06/01/2022,1255663,PLAY ASSOCIATION HAMMERSMITH AND FU,B*Voluntary-Spot-V Dep-Enhanced - do not u,Bi-Borough Director of Integrated Care,660
09/02/2022,1255663,PLAY ASSOCIATION HAMMERSMITH AND FU,B*Voluntary-Spot-V Dep-Enhanced - do not u,Bi-Borough Director of Integrated Care,660
07/03/2022,1255663,PLAY ASSOCIATION HAMMERSMITH AND FU,B*Voluntary-Spot-V Dep-Enhanced - do not u,Bi-Borough Director of Integrated Care,990
05/01/2022,1258049,PSS (UK),,Bi-Borough Director of Integrated Care,2660.96
02/02/2022,1258049,PSS (UK),,Bi-Borough Director of Integrated Care,2660.96
03/03/2022,1258049,PSS (UK),,Bi-Borough Director of Integrated Care,2660.96
24/03/2022,1258049,PSS (UK),,Bi-Borough Director of Integrated Care,3041.1
05/01/2022,1245021,Paradise Community,,Bi-Borough Director of Integrated Care,10414.68
02/02/2022,1245021,Paradise Community,,Bi-Borough Director of Integrated Care,10414.68
03/03/2022,1245021,Paradise Community,,Bi-Borough Director of Integrated Care,10414.68
24/03/2022,1245021,Paradise Community,,Bi-Borough Director of Integrated Care,11902.49
05/01/2022,1250448,PERSONAL PAYMENTS,,Bi-Borough Director of Integrated Care,1419.24
02/02/2022,1250448,PERSONAL PAYMENTS,,Bi-Borough Director of Integrated Care,1419.24
03/03/2022,1250448,PERSONAL PAYMENTS,,Bi-Borough Director of Integrated Care,1419.24
24/03/2022,1250448,PERSONAL PAYMENTS,,Bi-Borough Director of Integrated Care,1621.99
05/01/2022,1245163,Poor Servants of the mother of,,Bi-Borough Director of Integrated Care,2878.88
02/02/2022,1245163,Poor Servants of the mother of,,Bi-Borough Director of Integrated Care,2878.88
03/03/2022,1245163,Poor Servants of the mother of,,Bi-Borough Director of Integrated Care,2878.88
24/03/2022,1245163,Poor Servants of the mother of,,Bi-Borough Director of Integrated Care,3290.15
05/01/2022,1245165,Precious Homes Ltd,,Bi-Borough Director of Integrated Care,5320
02/02/2022,1245165,Precious Homes Ltd,,Bi-Borough Director of Integrated Care,5320
03/03/2022,1245165,Precious Homes Ltd,,Bi-Borough Director of Integrated Care,175940
24/03/2022,1245165,Precious Homes Ltd,,Bi-Borough Director of Integrated Care,3040
24/03/2022,1245165,Precious Homes Ltd,,Bi-Borough Director of Integrated Care,3040
05/01/2022,1248563,Pursuing Independent Paths,B*Voluntary-Spot-V Dep-Enhanced - do not u,Bi-Borough Director of Integrated Care,510.44
19/01/2022,1248563,Pursuing Independent Paths,B*Voluntary-Spot-V Dep-Enhanced - do not u,Bi-Borough Director of Integrated Care,1531.32
19/01/2022,1248563,Pursuing Independent Paths,B*Voluntary-Spot-V Dep-Enhanced - do not u,Bi-Borough Director of Integrated Care,1276.1
19/01/2022,1248563,Pursuing Independent Paths,B*Voluntary-Spot-V Dep-Enhanced - do not u,Bi-Borough Director of Integrated Care,1531.32
19/01/2022,1248563,Pursuing Independent Paths,B*Voluntary-Spot-V Dep-Enhanced - do not u,Bi-Borough Director of Integrated Care,1786.54
19/01/2022,1248563,Pursuing Independent Paths,B*Voluntary-Spot-V Dep-Enhanced - do not u,Bi-Borough Director of Integrated Care,1289.32
19/01/2022,1248563,Pursuing Independent Paths,B*Voluntary-Spot-V Dep-Enhanced - do not u,Bi-Borough Director of Integrated Care,510.44
19/01/2022,1248563,Pursuing Independent Paths,B*Voluntary-Spot-V Dep-Enhanced - do not u,Bi-Borough Director of Integrated Care,1020.88
19/01/2022,1248563,Pursuing Independent Paths,B*Voluntary-Spot-V Dep-Enhanced - do not u,Bi-Borough Director of Integrated Care,1020.88
19/01/2022,1248563,Pursuing Independent Paths,B*Voluntary-Spot-V Dep-Enhanced - do not u,Bi-Borough Director of Integrated Care,2552.2
19/01/2022,1248563,Pursuing Independent Paths,B*Voluntary-Spot-V Dep-Enhanced - do not u,Bi-Borough Director of Integrated Care,1531.32
19/01/2022,1248563,Pursuing Independent Paths,B*Voluntary-Spot-V Dep-Enhanced - do not u,Bi-Borough Director of Integrated Care,1531.32
19/01/2022,1248563,Pursuing Independent Paths,B*Voluntary-Spot-V Dep-Enhanced - do not u,Bi-Borough Director of Integrated Care,1531.32
19/01/2022,1248563,Pursuing Independent Paths,B*Voluntary-Spot-V Dep-Enhanced - do not u,Bi-Borough Director of Integrated Care,510.44
19/01/2022,1248563,Pursuing Independent Paths,B*Voluntary-Spot-V Dep-Enhanced - do not u,Bi-Borough Director of Integrated Care,1020.88
19/01/2022,1248563,Pursuing Independent Paths,B*Voluntary-Spot-V Dep-Enhanced - do not u,Bi-Borough Director of Integrated Care,1531.32
19/01/2022,1248563,Pursuing Independent Paths,B*Voluntary-Spot-V Dep-Enhanced - do not u,Bi-Borough Director of Integrated Care,1276.1
19/01/2022,1248563,Pursuing Independent Paths,B*Voluntary-Spot-V Dep-Enhanced - do not u,Bi-Borough Director of Integrated Care,2552.2
19/01/2022,1248563,Pursuing Independent Paths,B*Voluntary-Spot-V Dep-Enhanced - do not u,Bi-Borough Director of Integrated Care,1531.32
19/01/2022,1248563,Pursuing Independent Paths,B*Voluntary-Spot-V Dep-Enhanced - do not u,Bi-Borough Director of Integrated Care,1531.32
19/01/2022,1248563,Pursuing Independent Paths,B*Voluntary-Spot-V Dep-Enhanced - do not u,Bi-Borough Director of Integrated Care,1531.32
19/01/2022,1248563,Pursuing Independent Paths,B*Voluntary-Spot-V Dep-Enhanced - do not u,Bi-Borough Director of Integrated Care,1531.32
19/01/2022,1248563,Pursuing Independent Paths,B*Voluntary-Spot-V Dep-Enhanced - do not u,Bi-Borough Director of Integrated Care,1020.88
19/01/2022,1248563,Pursuing Independent Paths,B*Voluntary-Spot-V Dep-Enhanced - do not u,Bi-Borough Director of Integrated Care,1276.1
19/01/2022,1248563,Pursuing Independent Paths,B*Voluntary-Spot-V Dep-Enhanced - do not u,Bi-Borough Director of Integrated Care,510.44
19/01/2022,1248563,Pursuing Independent Paths,B*Voluntary-Spot-V Dep-Enhanced - do not u,Bi-Borough Director of Integrated Care,1531.32
19/01/2022,1248563,Pursuing Independent Paths,B*Voluntary-Spot-V Dep-Enhanced - do not u,Bi-Borough Director of Integrated Care,1252.72
19/01/2022,1248563,Pursuing Independent Paths,B*Voluntary-Spot-V Dep-Enhanced - do not u,Bi-Borough Director of Integrated Care,510.44
19/01/2022,1248563,Pursuing Independent Paths,B*Voluntary-Spot-V Dep-Enhanced - do not u,Bi-Borough Director of Integrated Care,510.44
19/01/2022,1248563,Pursuing Independent Paths,B*Voluntary-Spot-V Dep-Enhanced - do not u,Bi-Borough Director of Integrated Care,1879.08
19/01/2022,1248563,Pursuing Independent Paths,B*Voluntary-Spot-V Dep-Enhanced - do not u,Bi-Borough Director of Integrated Care,510.44
19/01/2022,1248563,Pursuing Independent Paths,B*Voluntary-Spot-V Dep-Enhanced - do not u,Bi-Borough Director of Integrated Care,510.44
19/01/2022,1248563,Pursuing Independent Paths,B*Voluntary-Spot-V Dep-Enhanced - do not u,Bi-Borough Director of Integrated Care,1020.88
19/01/2022,1248563,Pursuing Independent Paths,B*Voluntary-Spot-V Dep-Enhanced - do not u,Bi-Borough Director of Integrated Care,546.9
19/01/2022,1248563,Pursuing Independent Paths,B*Voluntary-Spot-V Dep-Enhanced - do not u,Bi-Borough Director of Integrated Care,583.36
19/01/2022,1248563,Pursuing Independent Paths,B*Voluntary-Spot-V Dep-Enhanced - do not u,Bi-Borough Director of Integrated Care,510.44
19/01/2022,1248563,Pursuing Independent Paths,B*Voluntary-Spot-V Dep-Enhanced - do not u,Bi-Borough Director of Integrated Care,1531.32
19/01/2022,1248563,Pursuing Independent Paths,B*Voluntary-Spot-V Dep-Enhanced - do not u,Bi-Borough Director of Integrated Care,2041.76
19/01/2022,1248563,Pursuing Independent Paths,B*Voluntary-Spot-V Dep-Enhanced - do not u,Bi-Borough Director of Integrated Care,1020.88
19/01/2022,1248563,Pursuing Independent Paths,B*Voluntary-Spot-V Dep-Enhanced - do not u,Bi-Borough Director of Integrated Care,1531.32
19/01/2022,1248563,Pursuing Independent Paths,B*Voluntary-Spot-V Dep-Enhanced - do not u,Bi-Borough Director of Integrated Care,1531.32
19/01/2022,1248563,Pursuing Independent Paths,B*Voluntary-Spot-V Dep-Enhanced - do not u,Bi-Borough Director of Integrated Care,1531.32
19/01/2022,1248563,Pursuing Independent Paths,B*Voluntary-Spot-V Dep-Enhanced - do not u,Bi-Borough Director of Integrated Care,1276.1
19/01/2022,1248563,Pursuing Independent Paths,B*Voluntary-Spot-V Dep-Enhanced - do not u,Bi-Borough Director of Integrated Care,1531.32
19/01/2022,1248563,Pursuing Independent Paths,B*Voluntary-Spot-V Dep-Enhanced - do not u,Bi-Borough Director of Integrated Care,1786.54
19/01/2022,1248563,Pursuing Independent Paths,B*Voluntary-Spot-V Dep-Enhanced - do not u,Bi-Borough Director of Integrated Care,1289.32
19/01/2022,1248563,Pursuing Independent Paths,B*Voluntary-Spot-V Dep-Enhanced - do not u,Bi-Borough Director of Integrated Care,510.44
19/01/2022,1248563,Pursuing Independent Paths,B*Voluntary-Spot-V Dep-Enhanced - do not u,Bi-Borough Director of Integrated Care,1020.88
19/01/2022,1248563,Pursuing Independent Paths,B*Voluntary-Spot-V Dep-Enhanced - do not u,Bi-Borough Director of Integrated Care,1020.88
19/01/2022,1248563,Pursuing Independent Paths,B*Voluntary-Spot-V Dep-Enhanced - do not u,Bi-Borough Director of Integrated Care,2552.2
19/01/2022,1248563,Pursuing Independent Paths,B*Voluntary-Spot-V Dep-Enhanced - do not u,Bi-Borough Director of Integrated Care,1531.32
19/01/2022,1248563,Pursuing Independent Paths,B*Voluntary-Spot-V Dep-Enhanced - do not u,Bi-Borough Director of Integrated Care,1531.32
19/01/2022,1248563,Pursuing Independent Paths,B*Voluntary-Spot-V Dep-Enhanced - do not u,Bi-Borough Director of Integrated Care,1531.32
19/01/2022,1248563,Pursuing Independent Paths,B*Voluntary-Spot-V Dep-Enhanced - do not u,Bi-Borough Director of Integrated Care,510.44
19/01/2022,1248563,Pursuing Independent Paths,B*Voluntary-Spot-V Dep-Enhanced - do not u,Bi-Borough Director of Integrated Care,1020.88
19/01/2022,1248563,Pursuing Independent Paths,B*Voluntary-Spot-V Dep-Enhanced - do not u,Bi-Borough Director of Integrated Care,1531.32
19/01/2022,1248563,Pursuing Independent Paths,B*Voluntary-Spot-V Dep-Enhanced - do not u,Bi-Borough Director of Integrated Care,1276.1
19/01/2022,1248563,Pursuing Independent Paths,B*Voluntary-Spot-V Dep-Enhanced - do not u,Bi-Borough Director of Integrated Care,2552.2
19/01/2022,1248563,Pursuing Independent Paths,B*Voluntary-Spot-V Dep-Enhanced - do not u,Bi-Borough Director of Integrated Care,1531.32
19/01/2022,1248563,Pursuing Independent Paths,B*Voluntary-Spot-V Dep-Enhanced - do not u,Bi-Borough Director of Integrated Care,1531.32
19/01/2022,1248563,Pursuing Independent Paths,B*Voluntary-Spot-V Dep-Enhanced - do not u,Bi-Borough Director of Integrated Care,1531.32
19/01/2022,1248563,Pursuing Independent Paths,B*Voluntary-Spot-V Dep-Enhanced - do not u,Bi-Borough Director of Integrated Care,1531.32
19/01/2022,1248563,Pursuing Independent Paths,B*Voluntary-Spot-V Dep-Enhanced - do not u,Bi-Borough Director of Integrated Care,1020.88
19/01/2022,1248563,Pursuing Independent Paths,B*Voluntary-Spot-V Dep-Enhanced - do not u,Bi-Borough Director of Integrated Care,1276.1
19/01/2022,1248563,Pursuing Independent Paths,B*Voluntary-Spot-V Dep-Enhanced - do not u,Bi-Borough Director of Integrated Care,510.44
19/01/2022,1248563,Pursuing Independent Paths,B*Voluntary-Spot-V Dep-Enhanced - do not u,Bi-Borough Director of Integrated Care,1252.72
19/01/2022,1248563,Pursuing Independent Paths,B*Voluntary-Spot-V Dep-Enhanced - do not u,Bi-Borough Director of Integrated Care,510.44
19/01/2022,1248563,Pursuing Independent Paths,B*Voluntary-Spot-V Dep-Enhanced - do not u,Bi-Borough Director of Integrated Care,510.44
19/01/2022,1248563,Pursuing Independent Paths,B*Voluntary-Spot-V Dep-Enhanced - do not u,Bi-Borough Director of Integrated Care,1879.08
19/01/2022,1248563,Pursuing Independent Paths,B*Voluntary-Spot-V Dep-Enhanced - do not u,Bi-Borough Director of Integrated Care,510.44
19/01/2022,1248563,Pursuing Independent Paths,B*Voluntary-Spot-V Dep-Enhanced - do not u,Bi-Borough Director of Integrated Care,510.44
19/01/2022,1248563,Pursuing Independent Paths,B*Voluntary-Spot-V Dep-Enhanced - do not u,Bi-Borough Director of Integrated Care,1020.88
19/01/2022,1248563,Pursuing Independent Paths,B*Voluntary-Spot-V Dep-Enhanced - do not u,Bi-Borough Director of Integrated Care,546.9
19/01/2022,1248563,Pursuing Independent Paths,B*Voluntary-Spot-V Dep-Enhanced - do not u,Bi-Borough Director of Integrated Care,583.36
19/01/2022,1248563,Pursuing Independent Paths,B*Voluntary-Spot-V Dep-Enhanced - do not u,Bi-Borough Director of Integrated Care,510.44
19/01/2022,1248563,Pursuing Independent Paths,B*Voluntary-Spot-V Dep-Enhanced - do not u,Bi-Borough Director of Integrated Care,1531.32
19/01/2022,1248563,Pursuing Independent Paths,B*Voluntary-Spot-V Dep-Enhanced - do not u,Bi-Borough Director of Integrated Care,2041.76
19/01/2022,1248563,Pursuing Independent Paths,B*Voluntary-Spot-V Dep-Enhanced - do not u,Bi-Borough Director of Integrated Care,1049.86
19/01/2022,1248563,Pursuing Independent Paths,B*Voluntary-Spot-V Dep-Enhanced - do not u,Bi-Borough Director of Integrated Care,1531.32
19/01/2022,1248563,Pursuing Independent Paths,B*Voluntary-Spot-V Dep-Enhanced - do not u,Bi-Borough Director of Integrated Care,1531.32
01/02/2022,1248563,Pursuing Independent Paths,B*Voluntary-Spot-V Dep-Enhanced - do not u,Bi-Borough Director of Integrated Care,1531.32
01/02/2022,1248563,Pursuing Independent Paths,B*Voluntary-Spot-V Dep-Enhanced - do not u,Bi-Borough Director of Integrated Care,1276.1
01/02/2022,1248563,Pursuing Independent Paths,B*Voluntary-Spot-V Dep-Enhanced - do not u,Bi-Borough Director of Integrated Care,1531.32
01/02/2022,1248563,Pursuing Independent Paths,B*Voluntary-Spot-V Dep-Enhanced - do not u,Bi-Borough Director of Integrated Care,1786.54
01/02/2022,1248563,Pursuing Independent Paths,B*Voluntary-Spot-V Dep-Enhanced - do not u,Bi-Borough Director of Integrated Care,1289.32
01/02/2022,1248563,Pursuing Independent Paths,B*Voluntary-Spot-V Dep-Enhanced - do not u,Bi-Borough Director of Integrated Care,510.44
01/02/2022,1248563,Pursuing Independent Paths,B*Voluntary-Spot-V Dep-Enhanced - do not u,Bi-Borough Director of Integrated Care,1020.88
01/02/2022,1248563,Pursuing Independent Paths,B*Voluntary-Spot-V Dep-Enhanced - do not u,Bi-Borough Director of Integrated Care,1020.88
01/02/2022,1248563,Pursuing Independent Paths,B*Voluntary-Spot-V Dep-Enhanced - do not u,Bi-Borough Director of Integrated Care,2552.2
01/02/2022,1248563,Pursuing Independent Paths,B*Voluntary-Spot-V Dep-Enhanced - do not u,Bi-Borough Director of Integrated Care,1531.32
01/02/2022,1248563,Pursuing Independent Paths,B*Voluntary-Spot-V Dep-Enhanced - do not u,Bi-Borough Director of Integrated Care,1531.32
01/02/2022,1248563,Pursuing Independent Paths,B*Voluntary-Spot-V Dep-Enhanced - do not u,Bi-Borough Director of Integrated Care,1531.32
01/02/2022,1248563,Pursuing Independent Paths,B*Voluntary-Spot-V Dep-Enhanced - do not u,Bi-Borough Director of Integrated Care,510.44
01/02/2022,1248563,Pursuing Independent Paths,B*Voluntary-Spot-V Dep-Enhanced - do not u,Bi-Borough Director of Integrated Care,1020.88
01/02/2022,1248563,Pursuing Independent Paths,B*Voluntary-Spot-V Dep-Enhanced - do not u,Bi-Borough Director of Integrated Care,1531.32
01/02/2022,1248563,Pursuing Independent Paths,B*Voluntary-Spot-V Dep-Enhanced - do not u,Bi-Borough Director of Integrated Care,1276.1
01/02/2022,1248563,Pursuing Independent Paths,B*Voluntary-Spot-V Dep-Enhanced - do not u,Bi-Borough Director of Integrated Care,2552.2
01/02/2022,1248563,Pursuing Independent Paths,B*Voluntary-Spot-V Dep-Enhanced - do not u,Bi-Borough Director of Integrated Care,1531.32
01/02/2022,1248563,Pursuing Independent Paths,B*Voluntary-Spot-V Dep-Enhanced - do not u,Bi-Borough Director of Integrated Care,1531.32
01/02/2022,1248563,Pursuing Independent Paths,B*Voluntary-Spot-V Dep-Enhanced - do not u,Bi-Borough Director of Integrated Care,1531.32
01/02/2022,1248563,Pursuing Independent Paths,B*Voluntary-Spot-V Dep-Enhanced - do not u,Bi-Borough Director of Integrated Care,1531.32
01/02/2022,1248563,Pursuing Independent Paths,B*Voluntary-Spot-V Dep-Enhanced - do not u,Bi-Borough Director of Integrated Care,1020.88
01/02/2022,1248563,Pursuing Independent Paths,B*Voluntary-Spot-V Dep-Enhanced - do not u,Bi-Borough Director of Integrated Care,1276.1
01/02/2022,1248563,Pursuing Independent Paths,B*Voluntary-Spot-V Dep-Enhanced - do not u,Bi-Borough Director of Integrated Care,510.44
01/02/2022,1248563,Pursuing Independent Paths,B*Voluntary-Spot-V Dep-Enhanced - do not u,Bi-Borough Director of Integrated Care,1252.72
01/02/2022,1248563,Pursuing Independent Paths,B*Voluntary-Spot-V Dep-Enhanced - do not u,Bi-Borough Director of Integrated Care,510.44
01/02/2022,1248563,Pursuing Independent Paths,B*Voluntary-Spot-V Dep-Enhanced - do not u,Bi-Borough Director of Integrated Care,510.44
01/02/2022,1248563,Pursuing Independent Paths,B*Voluntary-Spot-V Dep-Enhanced - do not u,Bi-Borough Director of Integrated Care,1879.08
01/02/2022,1248563,Pursuing Independent Paths,B*Voluntary-Spot-V Dep-Enhanced - do not u,Bi-Borough Director of Integrated Care,510.44
01/02/2022,1248563,Pursuing Independent Paths,B*Voluntary-Spot-V Dep-Enhanced - do not u,Bi-Borough Director of Integrated Care,510.44
01/02/2022,1248563,Pursuing Independent Paths,B*Voluntary-Spot-V Dep-Enhanced - do not u,Bi-Borough Director of Integrated Care,1020.88
01/02/2022,1248563,Pursuing Independent Paths,B*Voluntary-Spot-V Dep-Enhanced - do not u,Bi-Borough Director of Integrated Care,546.9
01/02/2022,1248563,Pursuing Independent Paths,B*Voluntary-Spot-V Dep-Enhanced - do not u,Bi-Borough Director of Integrated Care,583.36
01/02/2022,1248563,Pursuing Independent Paths,B*Voluntary-Spot-V Dep-Enhanced - do not u,Bi-Borough Director of Integrated Care,510.44
01/02/2022,1248563,Pursuing Independent Paths,B*Voluntary-Spot-V Dep-Enhanced - do not u,Bi-Borough Director of Integrated Care,510.44
01/02/2022,1248563,Pursuing Independent Paths,B*Voluntary-Spot-V Dep-Enhanced - do not u,Bi-Borough Director of Integrated Care,1531.32
01/02/2022,1248563,Pursuing Independent Paths,B*Voluntary-Spot-V Dep-Enhanced - do not u,Bi-Borough Director of Integrated Care,2041.76
01/02/2022,1248563,Pursuing Independent Paths,B*Voluntary-Spot-V Dep-Enhanced - do not u,Bi-Borough Director of Integrated Care,1339.9
01/02/2022,1248563,Pursuing Independent Paths,B*Voluntary-Spot-V Dep-Enhanced - do not u,Bi-Borough Director of Integrated Care,1531.32
01/02/2022,1248563,Pursuing Independent Paths,B*Voluntary-Spot-V Dep-Enhanced - do not u,Bi-Borough Director of Integrated Care,1531.32
10/02/2022,1248563,Pursuing Independent Paths,B*Voluntary-Spot-V Dep-Enhanced - do not u,Bi-Borough Director of Integrated Care,510.44
28/02/2022,1248563,Pursuing Independent Paths,B*Voluntary-Spot-V Dep-Enhanced - do not u,Bi-Borough Director of Integrated Care,1531.32
28/02/2022,1248563,Pursuing Independent Paths,B*Voluntary-Spot-V Dep-Enhanced - do not u,Bi-Borough Director of Integrated Care,1276.1
28/02/2022,1248563,Pursuing Independent Paths,B*Voluntary-Spot-V Dep-Enhanced - do not u,Bi-Borough Director of Integrated Care,1531.32
28/02/2022,1248563,Pursuing Independent Paths,B*Voluntary-Spot-V Dep-Enhanced - do not u,Bi-Borough Director of Integrated Care,1786.54
28/02/2022,1248563,Pursuing Independent Paths,B*Voluntary-Spot-V Dep-Enhanced - do not u,Bi-Borough Director of Integrated Care,1289.32
28/02/2022,1248563,Pursuing Independent Paths,B*Voluntary-Spot-V Dep-Enhanced - do not u,Bi-Borough Director of Integrated Care,510.44
28/02/2022,1248563,Pursuing Independent Paths,B*Voluntary-Spot-V Dep-Enhanced - do not u,Bi-Borough Director of Integrated Care,1020.88
28/02/2022,1248563,Pursuing Independent Paths,B*Voluntary-Spot-V Dep-Enhanced - do not u,Bi-Borough Director of Integrated Care,1020.88
28/02/2022,1248563,Pursuing Independent Paths,B*Voluntary-Spot-V Dep-Enhanced - do not u,Bi-Borough Director of Integrated Care,2552.2
28/02/2022,1248563,Pursuing Independent Paths,B*Voluntary-Spot-V Dep-Enhanced - do not u,Bi-Borough Director of Integrated Care,1531.32
28/02/2022,1248563,Pursuing Independent Paths,B*Voluntary-Spot-V Dep-Enhanced - do not u,Bi-Borough Director of Integrated Care,1531.32
28/02/2022,1248563,Pursuing Independent Paths,B*Voluntary-Spot-V Dep-Enhanced - do not u,Bi-Borough Director of Integrated Care,1531.32
28/02/2022,1248563,Pursuing Independent Paths,B*Voluntary-Spot-V Dep-Enhanced - do not u,Bi-Borough Director of Integrated Care,510.44
28/02/2022,1248563,Pursuing Independent Paths,B*Voluntary-Spot-V Dep-Enhanced - do not u,Bi-Borough Director of Integrated Care,1020.88
28/02/2022,1248563,Pursuing Independent Paths,B*Voluntary-Spot-V Dep-Enhanced - do not u,Bi-Borough Director of Integrated Care,1531.32
28/02/2022,1248563,Pursuing Independent Paths,B*Voluntary-Spot-V Dep-Enhanced - do not u,Bi-Borough Director of Integrated Care,1276.1
28/02/2022,1248563,Pursuing Independent Paths,B*Voluntary-Spot-V Dep-Enhanced - do not u,Bi-Borough Director of Integrated Care,2552.2
28/02/2022,1248563,Pursuing Independent Paths,B*Voluntary-Spot-V Dep-Enhanced - do not u,Bi-Borough Director of Integrated Care,1531.32
28/02/2022,1248563,Pursuing Independent Paths,B*Voluntary-Spot-V Dep-Enhanced - do not u,Bi-Borough Director of Integrated Care,1531.32
28/02/2022,1248563,Pursuing Independent Paths,B*Voluntary-Spot-V Dep-Enhanced - do not u,Bi-Borough Director of Integrated Care,1531.32
28/02/2022,1248563,Pursuing Independent Paths,B*Voluntary-Spot-V Dep-Enhanced - do not u,Bi-Borough Director of Integrated Care,1531.32
28/02/2022,1248563,Pursuing Independent Paths,B*Voluntary-Spot-V Dep-Enhanced - do not u,Bi-Borough Director of Integrated Care,1020.88
28/02/2022,1248563,Pursuing Independent Paths,B*Voluntary-Spot-V Dep-Enhanced - do not u,Bi-Borough Director of Integrated Care,1276.1
28/02/2022,1248563,Pursuing Independent Paths,B*Voluntary-Spot-V Dep-Enhanced - do not u,Bi-Borough Director of Integrated Care,510.44
28/02/2022,1248563,Pursuing Independent Paths,B*Voluntary-Spot-V Dep-Enhanced - do not u,Bi-Borough Director of Integrated Care,1252.72
28/02/2022,1248563,Pursuing Independent Paths,B*Voluntary-Spot-V Dep-Enhanced - do not u,Bi-Borough Director of Integrated Care,510.44
28/02/2022,1248563,Pursuing Independent Paths,B*Voluntary-Spot-V Dep-Enhanced - do not u,Bi-Borough Director of Integrated Care,510.44
28/02/2022,1248563,Pursuing Independent Paths,B*Voluntary-Spot-V Dep-Enhanced - do not u,Bi-Borough Director of Integrated Care,1879.08
28/02/2022,1248563,Pursuing Independent Paths,B*Voluntary-Spot-V Dep-Enhanced - do not u,Bi-Borough Director of Integrated Care,510.44
28/02/2022,1248563,Pursuing Independent Paths,B*Voluntary-Spot-V Dep-Enhanced - do not u,Bi-Borough Director of Integrated Care,510.44
28/02/2022,1248563,Pursuing Independent Paths,B*Voluntary-Spot-V Dep-Enhanced - do not u,Bi-Borough Director of Integrated Care,1020.88
28/02/2022,1248563,Pursuing Independent Paths,B*Voluntary-Spot-V Dep-Enhanced - do not u,Bi-Borough Director of Integrated Care,546.9
28/02/2022,1248563,Pursuing Independent Paths,B*Voluntary-Spot-V Dep-Enhanced - do not u,Bi-Borough Director of Integrated Care,583.36
28/02/2022,1248563,Pursuing Independent Paths,B*Voluntary-Spot-V Dep-Enhanced - do not u,Bi-Borough Director of Integrated Care,510.44
28/02/2022,1248563,Pursuing Independent Paths,B*Voluntary-Spot-V Dep-Enhanced - do not u,Bi-Borough Director of Integrated Care,510.44
28/02/2022,1248563,Pursuing Independent Paths,B*Voluntary-Spot-V Dep-Enhanced - do not u,Bi-Borough Director of Integrated Care,1531.32
28/02/2022,1248563,Pursuing Independent Paths,B*Voluntary-Spot-V Dep-Enhanced - do not u,Bi-Borough Director of Integrated Care,2041.76
28/02/2022,1248563,Pursuing Independent Paths,B*Voluntary-Spot-V Dep-Enhanced - do not u,Bi-Borough Director of Integrated Care,1339.9
28/02/2022,1248563,Pursuing Independent Paths,B*Voluntary-Spot-V Dep-Enhanced - do not u,Bi-Borough Director of Integrated Care,1531.32
28/02/2022,1248563,Pursuing Independent Paths,B*Voluntary-Spot-V Dep-Enhanced - do not u,Bi-Borough Director of Integrated Care,1531.32
29/03/2022,1248563,Pursuing Independent Paths,B*Voluntary-Spot-V Dep-Enhanced - do not u,Bi-Borough Director of Integrated Care,1531.32
29/03/2022,1248563,Pursuing Independent Paths,B*Voluntary-Spot-V Dep-Enhanced - do not u,Bi-Borough Director of Integrated Care,1276.1
29/03/2022,1248563,Pursuing Independent Paths,B*Voluntary-Spot-V Dep-Enhanced - do not u,Bi-Borough Director of Integrated Care,1531.32
29/03/2022,1248563,Pursuing Independent Paths,B*Voluntary-Spot-V Dep-Enhanced - do not u,Bi-Borough Director of Integrated Care,1786.54
29/03/2022,1248563,Pursuing Independent Paths,B*Voluntary-Spot-V Dep-Enhanced - do not u,Bi-Borough Director of Integrated Care,1289.32
29/03/2022,1248563,Pursuing Independent Paths,B*Voluntary-Spot-V Dep-Enhanced - do not u,Bi-Borough Director of Integrated Care,510.44
29/03/2022,1248563,Pursuing Independent Paths,B*Voluntary-Spot-V Dep-Enhanced - do not u,Bi-Borough Director of Integrated Care,1020.88
29/03/2022,1248563,Pursuing Independent Paths,B*Voluntary-Spot-V Dep-Enhanced - do not u,Bi-Borough Director of Integrated Care,1020.88
29/03/2022,1248563,Pursuing Independent Paths,B*Voluntary-Spot-V Dep-Enhanced - do not u,Bi-Borough Director of Integrated Care,2552.2
29/03/2022,1248563,Pursuing Independent Paths,B*Voluntary-Spot-V Dep-Enhanced - do not u,Bi-Borough Director of Integrated Care,1531.32
29/03/2022,1248563,Pursuing Independent Paths,B*Voluntary-Spot-V Dep-Enhanced - do not u,Bi-Borough Director of Integrated Care,1531.32
29/03/2022,1248563,Pursuing Independent Paths,B*Voluntary-Spot-V Dep-Enhanced - do not u,Bi-Borough Director of Integrated Care,1531.32
29/03/2022,1248563,Pursuing Independent Paths,B*Voluntary-Spot-V Dep-Enhanced - do not u,Bi-Borough Director of Integrated Care,510.44
29/03/2022,1248563,Pursuing Independent Paths,B*Voluntary-Spot-V Dep-Enhanced - do not u,Bi-Borough Director of Integrated Care,1020.88
29/03/2022,1248563,Pursuing Independent Paths,B*Voluntary-Spot-V Dep-Enhanced - do not u,Bi-Borough Director of Integrated Care,1531.32
29/03/2022,1248563,Pursuing Independent Paths,B*Voluntary-Spot-V Dep-Enhanced - do not u,Bi-Borough Director of Integrated Care,1276.1
29/03/2022,1248563,Pursuing Independent Paths,B*Voluntary-Spot-V Dep-Enhanced - do not u,Bi-Borough Director of Integrated Care,2552.2
29/03/2022,1248563,Pursuing Independent Paths,B*Voluntary-Spot-V Dep-Enhanced - do not u,Bi-Borough Director of Integrated Care,1531.32
29/03/2022,1248563,Pursuing Independent Paths,B*Voluntary-Spot-V Dep-Enhanced - do not u,Bi-Borough Director of Integrated Care,1531.32
29/03/2022,1248563,Pursuing Independent Paths,B*Voluntary-Spot-V Dep-Enhanced - do not u,Bi-Borough Director of Integrated Care,1531.32
29/03/2022,1248563,Pursuing Independent Paths,B*Voluntary-Spot-V Dep-Enhanced - do not u,Bi-Borough Director of Integrated Care,1531.32
29/03/2022,1248563,Pursuing Independent Paths,B*Voluntary-Spot-V Dep-Enhanced - do not u,Bi-Borough Director of Integrated Care,510.44
29/03/2022,1248563,Pursuing Independent Paths,B*Voluntary-Spot-V Dep-Enhanced - do not u,Bi-Borough Director of Integrated Care,1020.88
29/03/2022,1248563,Pursuing Independent Paths,B*Voluntary-Spot-V Dep-Enhanced - do not u,Bi-Borough Director of Integrated Care,1276.1
29/03/2022,1248563,Pursuing Independent Paths,B*Voluntary-Spot-V Dep-Enhanced - do not u,Bi-Borough Director of Integrated Care,510.44
29/03/2022,1248563,Pursuing Independent Paths,B*Voluntary-Spot-V Dep-Enhanced - do not u,Bi-Borough Director of Integrated Care,1252.72
29/03/2022,1248563,Pursuing Independent Paths,B*Voluntary-Spot-V Dep-Enhanced - do not u,Bi-Borough Director of Integrated Care,510.44
29/03/2022,1248563,Pursuing Independent Paths,B*Voluntary-Spot-V Dep-Enhanced - do not u,Bi-Borough Director of Integrated Care,510.44
29/03/2022,1248563,Pursuing Independent Paths,B*Voluntary-Spot-V Dep-Enhanced - do not u,Bi-Borough Director of Integrated Care,1879.08
29/03/2022,1248563,Pursuing Independent Paths,B*Voluntary-Spot-V Dep-Enhanced - do not u,Bi-Borough Director of Integrated Care,510.44
29/03/2022,1248563,Pursuing Independent Paths,B*Voluntary-Spot-V Dep-Enhanced - do not u,Bi-Borough Director of Integrated Care,510.44
29/03/2022,1248563,Pursuing Independent Paths,B*Voluntary-Spot-V Dep-Enhanced - do not u,Bi-Borough Director of Integrated Care,1020.88
29/03/2022,1248563,Pursuing Independent Paths,B*Voluntary-Spot-V Dep-Enhanced - do not u,Bi-Borough Director of Integrated Care,546.9
29/03/2022,1248563,Pursuing Independent Paths,B*Voluntary-Spot-V Dep-Enhanced - do not u,Bi-Borough Director of Integrated Care,583.36
29/03/2022,1248563,Pursuing Independent Paths,B*Voluntary-Spot-V Dep-Enhanced - do not u,Bi-Borough Director of Integrated Care,510.44
29/03/2022,1248563,Pursuing Independent Paths,B*Voluntary-Spot-V Dep-Enhanced - do not u,Bi-Borough Director of Integrated Care,510.44
29/03/2022,1248563,Pursuing Independent Paths,B*Voluntary-Spot-V Dep-Enhanced - do not u,Bi-Borough Director of Integrated Care,1531.32
29/03/2022,1248563,Pursuing Independent Paths,B*Voluntary-Spot-V Dep-Enhanced - do not u,Bi-Borough Director of Integrated Care,2041.76
29/03/2022,1248563,Pursuing Independent Paths,B*Voluntary-Spot-V Dep-Enhanced - do not u,Bi-Borough Director of Integrated Care,1531.32
29/03/2022,1248563,Pursuing Independent Paths,B*Voluntary-Spot-V Dep-Enhanced - do not u,Bi-Borough Director of Integrated Care,1531.32
29/03/2022,1248563,Pursuing Independent Paths,B*Voluntary-Spot-V Dep-Enhanced - do not u,Bi-Borough Director of Integrated Care,1531.32
29/03/2022,1248563,Pursuing Independent Paths,B*Voluntary-Spot-V Dep-Enhanced - do not u,Bi-Borough Director of Integrated Care,1212.3
05/01/2022,1278739,RESIDE HOUSING ASSOCIATION LTD,,Bi-Borough Director of Integrated Care,1088.24
02/02/2022,1278739,RESIDE HOUSING ASSOCIATION LTD,,Bi-Borough Director of Integrated Care,1088.24
03/03/2022,1278739,RESIDE HOUSING ASSOCIATION LTD,,Bi-Borough Director of Integrated Care,1088.24
05/01/2022,1245169,Rcp Residential Care Providers Ltd,,Bi-Borough Director of Integrated Care,930.96
05/01/2022,1245169,Rcp Residential Care Providers Ltd,,Bi-Borough Director of Integrated Care,10714.47
02/02/2022,1245169,Rcp Residential Care Providers Ltd,,Bi-Borough Director of Integrated Care,6417.72
02/02/2022,1245169,Rcp Residential Care Providers Ltd,,Bi-Borough Director of Integrated Care,930.96
03/03/2022,1245169,Rcp Residential Care Providers Ltd,,Bi-Borough Director of Integrated Care,930.96
03/03/2022,1245169,Rcp Residential Care Providers Ltd,,Bi-Borough Director of Integrated Care,6417.72
24/03/2022,1245169,Rcp Residential Care Providers Ltd,,Bi-Borough Director of Integrated Care,1063.95
24/03/2022,1245169,Rcp Residential Care Providers Ltd,,Bi-Borough Director of Integrated Care,7334.54
05/01/2022,1269718,Reliant Care Limited,,Bi-Borough Director of Integrated Care,3712
05/01/2022,1269718,Reliant Care Limited,,Bi-Borough Director of Integrated Care,3712
05/01/2022,1269718,Reliant Care Limited,,Bi-Borough Director of Integrated Care,11933.6
05/01/2022,1269718,Reliant Care Limited,,Bi-Borough Director of Integrated Care,2500
05/01/2022,1269718,Reliant Care Limited,,Bi-Borough Director of Integrated Care,2500
02/02/2022,1269718,Reliant Care Limited,,Bi-Borough Director of Integrated Care,11933.6
02/02/2022,1269718,Reliant Care Limited,,Bi-Borough Director of Integrated Care,2500
02/02/2022,1269718,Reliant Care Limited,,Bi-Borough Director of Integrated Care,2500
02/02/2022,1269718,Reliant Care Limited,,Bi-Borough Director of Integrated Care,3712
02/02/2022,1269718,Reliant Care Limited,,Bi-Borough Director of Integrated Care,3712
03/03/2022,1269718,Reliant Care Limited,,Bi-Borough Director of Integrated Care,11933.6
03/03/2022,1269718,Reliant Care Limited,,Bi-Borough Director of Integrated Care,3712
03/03/2022,1269718,Reliant Care Limited,,Bi-Borough Director of Integrated Care,3712
03/03/2022,1269718,Reliant Care Limited,,Bi-Borough Director of Integrated Care,2500
03/03/2022,1269718,Reliant Care Limited,,Bi-Borough Director of Integrated Care,2500
03/03/2022,1269718,Reliant Care Limited,,Bi-Borough Director of Integrated Care,13542
24/03/2022,1269718,Reliant Care Limited,,Bi-Borough Director of Integrated Care,4242.29
24/03/2022,1269718,Reliant Care Limited,,Bi-Borough Director of Integrated Care,4242.29
24/03/2022,1269718,Reliant Care Limited,,Bi-Borough Director of Integrated Care,13638.4
24/03/2022,1269718,Reliant Care Limited,,Bi-Borough Director of Integrated Care,5856
01/02/2022,1245316,Respect Care Services Ltd,,Bi-Borough Director of Integrated Care,1543.76
02/03/2022,1245316,Respect Care Services Ltd,,Bi-Borough Director of Integrated Care,1543.76
02/03/2022,1245316,Respect Care Services Ltd,,Bi-Borough Director of Integrated Care,1543.76
14/03/2022,1245316,Respect Care Services Ltd,,Bi-Borough Director of Integrated Care,1543.76
22/03/2022,1245316,Respect Care Services Ltd,,Bi-Borough Director of Integrated Care,1543.76
23/03/2022,1245316,Respect Care Services Ltd,,Bi-Borough Director of Integrated Care,1543.76
05/01/2022,1245172,Richmond Health Care Ltd,,Bi-Borough Director of Integrated Care,4512
02/02/2022,1245172,Richmond Health Care Ltd,,Bi-Borough Director of Integrated Care,4512
03/03/2022,1245172,Richmond Health Care Ltd,,Bi-Borough Director of Integrated Care,4512
24/03/2022,1245172,Richmond Health Care Ltd,,Bi-Borough Director of Integrated Care,966.86
05/01/2022,1248621,Rnib Redhill College,,Bi-Borough Director of Integrated Care,5380.4
11/01/2022,1248843,Sage Care Ltd,,Bi-Borough Director of Integrated Care,528.18
11/01/2022,1248843,Sage Care Ltd,,Bi-Borough Director of Integrated Care,1659.99
11/01/2022,1248843,Sage Care Ltd,,Bi-Borough Director of Integrated Care,1466.01
11/01/2022,1248843,Sage Care Ltd,,Bi-Borough Director of Integrated Care,643.68
11/01/2022,1248843,Sage Care Ltd,,Bi-Borough Director of Integrated Care,1503.85
25/01/2022,1248843,Sage Care Ltd,,Bi-Borough Director of Integrated Care,503.14
25/01/2022,1248843,Sage Care Ltd,,Bi-Borough Director of Integrated Care,1614.6
25/01/2022,1248843,Sage Care Ltd,,Bi-Borough Director of Integrated Care,1506.41
25/01/2022,1248843,Sage Care Ltd,,Bi-Borough Director of Integrated Care,509.58
25/01/2022,1248843,Sage Care Ltd,,Bi-Borough Director of Integrated Care,1354.46
10/02/2022,1248843,Sage Care Ltd,,Bi-Borough Director of Integrated Care,1501.8
10/02/2022,1248843,Sage Care Ltd,,Bi-Borough Director of Integrated Care,605.7
10/02/2022,1248843,Sage Care Ltd,,Bi-Borough Director of Integrated Care,521.36
10/02/2022,1248843,Sage Care Ltd,,Bi-Borough Director of Integrated Care,1632.52
10/02/2022,1248843,Sage Care Ltd,,Bi-Borough Director of Integrated Care,1523.82
10/03/2022,1248843,Sage Care Ltd,,Bi-Borough Director of Integrated Care,656.98
10/03/2022,1248843,Sage Care Ltd,,Bi-Borough Director of Integrated Care,549.19
10/03/2022,1248843,Sage Care Ltd,,Bi-Borough Director of Integrated Care,1662.78
10/03/2022,1248843,Sage Care Ltd,,Bi-Borough Director of Integrated Care,1546.25
10/03/2022,1248843,Sage Care Ltd,,Bi-Borough Director of Integrated Care,501.85
10/03/2022,1248843,Sage Care Ltd,,Bi-Borough Director of Integrated Care,1509.22
05/01/2022,1262057,Sense - The National Deafbllind,,Bi-Borough Director of Integrated Care,4550
05/01/2022,1262057,Sense - The National Deafbllind,,Bi-Borough Director of Integrated Care,4550
02/02/2022,1262057,Sense - The National Deafbllind,,Bi-Borough Director of Integrated Care,4550
02/02/2022,1262057,Sense - The National Deafbllind,,Bi-Borough Director of Integrated Care,4550
03/03/2022,1262057,Sense - The National Deafbllind,,Bi-Borough Director of Integrated Care,4550
03/03/2022,1262057,Sense - The National Deafbllind,,Bi-Borough Director of Integrated Care,4550
24/03/2022,1262057,Sense - The National Deafbllind,,Bi-Borough Director of Integrated Care,5200
24/03/2022,1262057,Sense - The National Deafbllind,,Bi-Borough Director of Integrated Care,5200
05/01/2022,1243535,Sequence Care Ltd,,Bi-Borough Director of Integrated Care,9857.4
05/01/2022,1243535,Sequence Care Ltd,,Bi-Borough Director of Integrated Care,10171.52
05/01/2022,1243535,Sequence Care Ltd,,Bi-Borough Director of Integrated Care,10171.52
05/01/2022,1243535,Sequence Care Ltd,,Bi-Borough Director of Integrated Care,17007.48
02/02/2022,1243535,Sequence Care Ltd,,Bi-Borough Director of Integrated Care,9857.4
02/02/2022,1243535,Sequence Care Ltd,,Bi-Borough Director of Integrated Care,10171.52
02/02/2022,1243535,Sequence Care Ltd,,Bi-Borough Director of Integrated Care,10171.52
02/02/2022,1243535,Sequence Care Ltd,,Bi-Borough Director of Integrated Care,17007.48
03/03/2022,1243535,Sequence Care Ltd,,Bi-Borough Director of Integrated Care,9857.4
03/03/2022,1243535,Sequence Care Ltd,,Bi-Borough Director of Integrated Care,10171.52
03/03/2022,1243535,Sequence Care Ltd,,Bi-Borough Director of Integrated Care,10171.52
03/03/2022,1243535,Sequence Care Ltd,,Bi-Borough Director of Integrated Care,17007.48
24/03/2022,1243535,Sequence Care Ltd,,Bi-Borough Director of Integrated Care,19437.12
24/03/2022,1243535,Sequence Care Ltd,,Bi-Borough Director of Integrated Care,704.1
24/03/2022,1243535,Sequence Care Ltd,,Bi-Borough Director of Integrated Care,11624.59
24/03/2022,1243535,Sequence Care Ltd,,Bi-Borough Director of Integrated Care,11624.59
03/03/2022,1243536,Sharda Care Ltd,,Bi-Borough Director of Integrated Care,77303.57
24/03/2022,1243536,Sharda Care Ltd,,Bi-Borough Director of Integrated Care,7428.57
05/01/2022,1245566,Shaw Care Uk Ltd,,Bi-Borough Director of Integrated Care,3200
05/01/2022,1245566,Shaw Care Uk Ltd,,Bi-Borough Director of Integrated Care,3200
02/02/2022,1245566,Shaw Care Uk Ltd,,Bi-Borough Director of Integrated Care,3200
02/02/2022,1245566,Shaw Care Uk Ltd,,Bi-Borough Director of Integrated Care,3200
03/03/2022,1245566,Shaw Care Uk Ltd,,Bi-Borough Director of Integrated Care,3958.86
03/03/2022,1245566,Shaw Care Uk Ltd,,Bi-Borough Director of Integrated Care,3961.15
24/03/2022,1245566,Shaw Care Uk Ltd,,Bi-Borough Director of Integrated Care,3730.29
24/03/2022,1245566,Shaw Care Uk Ltd,,Bi-Borough Director of Integrated Care,3730.29
05/01/2022,1248935,Southside Partnership,,Bi-Borough Director of Integrated Care,3592.8
05/01/2022,1248935,Southside Partnership,,Bi-Borough Director of Integrated Care,800
05/01/2022,1248935,Southside Partnership,,Bi-Borough Director of Integrated Care,2546.68
05/01/2022,1248935,Southside Partnership,,Bi-Borough Director of Integrated Care,800
02/02/2022,1248935,Southside Partnership,,Bi-Borough Director of Integrated Care,3592.8
02/02/2022,1248935,Southside Partnership,,Bi-Borough Director of Integrated Care,800
02/02/2022,1248935,Southside Partnership,,Bi-Borough Director of Integrated Care,800
02/02/2022,1248935,Southside Partnership,,Bi-Borough Director of Integrated Care,2546.68
03/03/2022,1248935,Southside Partnership,,Bi-Borough Director of Integrated Care,3592.8
03/03/2022,1248935,Southside Partnership,,Bi-Borough Director of Integrated Care,800
03/03/2022,1248935,Southside Partnership,,Bi-Borough Director of Integrated Care,800
03/03/2022,1248935,Southside Partnership,,Bi-Borough Director of Integrated Care,2546.68
24/03/2022,1248935,Southside Partnership,,Bi-Borough Director of Integrated Care,2910.49
24/03/2022,1248935,Southside Partnership,,Bi-Borough Director of Integrated Care,914.29
24/03/2022,1248935,Southside Partnership,,Bi-Borough Director of Integrated Care,914.29
24/03/2022,1248935,Southside Partnership,,Bi-Borough Director of Integrated Care,4106.06
12/01/2022,1248940,Special People,B*Voluntary-Spot-V Dep-Enhanced - do not u,Bi-Borough Director of Integrated Care,4835.88
18/01/2022,1248940,Special People,B*Voluntary-Spot-V Dep-Enhanced - do not u,Bi-Borough Director of Integrated Care,1038.24
07/02/2022,1248940,Special People,B*Voluntary-Spot-V Dep-Enhanced - do not u,Bi-Borough Director of Integrated Care,1765.98
07/03/2022,1248940,Special People,B*Voluntary-Spot-V Dep-Enhanced - do not u,Bi-Borough Director of Integrated Care,3487.2
05/01/2022,1245620,Spencer & Arlington,,Bi-Borough Director of Integrated Care,3724.56
05/01/2022,1245620,Spencer & Arlington,,Bi-Borough Director of Integrated Care,12835.2
05/01/2022,1245620,Spencer & Arlington,,Bi-Borough Director of Integrated Care,2576
05/01/2022,1245620,Spencer & Arlington,,Bi-Borough Director of Integrated Care,6627.6
02/02/2022,1245620,Spencer & Arlington,,Bi-Borough Director of Integrated Care,3724.56
02/02/2022,1245620,Spencer & Arlington,,Bi-Borough Director of Integrated Care,12835.2
02/02/2022,1245620,Spencer & Arlington,,Bi-Borough Director of Integrated Care,2576
02/02/2022,1245620,Spencer & Arlington,,Bi-Borough Director of Integrated Care,6627.6
03/03/2022,1245620,Spencer & Arlington,,Bi-Borough Director of Integrated Care,12835.2
03/03/2022,1245620,Spencer & Arlington,,Bi-Borough Director of Integrated Care,3724.56
03/03/2022,1245620,Spencer & Arlington,,Bi-Borough Director of Integrated Care,2576
03/03/2022,1245620,Spencer & Arlington,,Bi-Borough Director of Integrated Care,6627.6
24/03/2022,1245620,Spencer & Arlington,,Bi-Borough Director of Integrated Care,6627.6
24/03/2022,1245620,Spencer & Arlington,,Bi-Borough Director of Integrated Care,2944
24/03/2022,1245620,Spencer & Arlington,,Bi-Borough Director of Integrated Care,12835.2
24/03/2022,1245620,Spencer & Arlington,,Bi-Borough Director of Integrated Care,4256.64
05/01/2022,1243543,Springlake Care Home Ltd,,Bi-Borough Director of Integrated Care,6800
05/01/2022,1243543,Springlake Care Home Ltd,,Bi-Borough Director of Integrated Care,5400
05/01/2022,1243543,Springlake Care Home Ltd,,Bi-Borough Director of Integrated Care,6000
02/02/2022,1243543,Springlake Care Home Ltd,,Bi-Borough Director of Integrated Care,6800
02/02/2022,1243543,Springlake Care Home Ltd,,Bi-Borough Director of Integrated Care,5400
02/02/2022,1243543,Springlake Care Home Ltd,,Bi-Borough Director of Integrated Care,6000
03/03/2022,1243543,Springlake Care Home Ltd,,Bi-Borough Director of Integrated Care,6800
03/03/2022,1243543,Springlake Care Home Ltd,,Bi-Borough Director of Integrated Care,5400
03/03/2022,1243543,Springlake Care Home Ltd,,Bi-Borough Director of Integrated Care,6000
24/03/2022,1243543,Springlake Care Home Ltd,,Bi-Borough Director of Integrated Care,7771.43
24/03/2022,1243543,Springlake Care Home Ltd,,Bi-Borough Director of Integrated Care,6171.43
24/03/2022,1243543,Springlake Care Home Ltd,,Bi-Borough Director of Integrated Care,6857.14
05/01/2022,1248948,St Davids Care In The Community,,Bi-Borough Director of Integrated Care,3132.56
05/01/2022,1248948,St Davids Care In The Community,,Bi-Borough Director of Integrated Care,3440
02/02/2022,1248948,St Davids Care In The Community,,Bi-Borough Director of Integrated Care,3132.56
02/02/2022,1248948,St Davids Care In The Community,,Bi-Borough Director of Integrated Care,3440
03/03/2022,1248948,St Davids Care In The Community,,Bi-Borough Director of Integrated Care,3132.56
03/03/2022,1248948,St Davids Care In The Community,,Bi-Borough Director of Integrated Care,3440
24/03/2022,1248948,St Davids Care In The Community,,Bi-Borough Director of Integrated Care,3580.07
24/03/2022,1248948,St Davids Care In The Community,,Bi-Borough Director of Integrated Care,3931.43
31/01/2022,1245825,Sweet Tree Home Care Services,,Bi-Borough Director of Integrated Care,4746.34
31/01/2022,1245825,Sweet Tree Home Care Services,,Bi-Borough Director of Integrated Care,4718.29
30/03/2022,1245825,Sweet Tree Home Care Services,,Bi-Borough Director of Integrated Care,4816.39
30/03/2022,1245825,Sweet Tree Home Care Services,,Bi-Borough Director of Integrated Care,4886.43
05/01/2022,1245900,The Grace Eyre Foundation,,Bi-Borough Director of Integrated Care,3290.16
05/01/2022,1245900,The Grace Eyre Foundation,,Bi-Borough Director of Integrated Care,4235.96
02/02/2022,1245900,The Grace Eyre Foundation,,Bi-Borough Director of Integrated Care,3290.16
02/02/2022,1245900,The Grace Eyre Foundation,,Bi-Borough Director of Integrated Care,4235.96
03/03/2022,1245900,The Grace Eyre Foundation,,Bi-Borough Director of Integrated Care,3290.16
03/03/2022,1245900,The Grace Eyre Foundation,,Bi-Borough Director of Integrated Care,4235.96
24/03/2022,1245900,The Grace Eyre Foundation,,Bi-Borough Director of Integrated Care,4841.1
24/03/2022,1245900,The Grace Eyre Foundation,,Bi-Borough Director of Integrated Care,3760.18
05/01/2022,1249156,The Wirral Autistic Society,,Bi-Borough Director of Integrated Care,4271.2
02/02/2022,1249156,The Wirral Autistic Society,,Bi-Borough Director of Integrated Care,4378
03/03/2022,1249156,The Wirral Autistic Society,,Bi-Borough Director of Integrated Care,4356.64
24/03/2022,1249156,The Wirral Autistic Society,,Bi-Borough Director of Integrated Care,4979.02
05/01/2022,1246095,Theana Ltd T/a Enlighten Homes,,Bi-Borough Director of Integrated Care,5892
02/02/2022,1246095,Theana Ltd T/a Enlighten Homes,,Bi-Borough Director of Integrated Care,5892
03/03/2022,1246095,Theana Ltd T/a Enlighten Homes,,Bi-Borough Director of Integrated Care,5892
24/03/2022,1246095,Theana Ltd T/a Enlighten Homes,,Bi-Borough Director of Integrated Care,6733.71
03/03/2022,1287640,VIVID COMMUNITY CARE LTD,,Bi-Borough Director of Integrated Care,59281.92
24/03/2022,1287640,VIVID COMMUNITY CARE LTD,,Bi-Borough Director of Integrated Care,19760.64
05/01/2022,1249232,Vincentian Care Plus,,Bi-Borough Director of Integrated Care,963.56
27/01/2022,1249232,Vincentian Care Plus,,Bi-Borough Director of Integrated Care,815.32
05/01/2022,1243552,Vision Homes Association,,Bi-Borough Director of Integrated Care,7760
02/02/2022,1243552,Vision Homes Association,,Bi-Borough Director of Integrated Care,7760
03/03/2022,1243552,Vision Homes Association,,Bi-Borough Director of Integrated Care,7760
24/03/2022,1243552,Vision Homes Association,,Bi-Borough Director of Integrated Care,8868.57
05/01/2022,1243553,Voyage Care (Bridge House),,Bi-Borough Director of Integrated Care,4702.96
05/01/2022,1243553,Voyage Care (Bridge House),,Bi-Borough Director of Integrated Care,6657.04
05/01/2022,1243553,Voyage Care (Bridge House),,Bi-Borough Director of Integrated Care,7395.44
02/02/2022,1243553,Voyage Care (Bridge House),,Bi-Borough Director of Integrated Care,4702.96
02/02/2022,1243553,Voyage Care (Bridge House),,Bi-Borough Director of Integrated Care,6657.04
02/02/2022,1243553,Voyage Care (Bridge House),,Bi-Borough Director of Integrated Care,7395.44
03/03/2022,1243553,Voyage Care (Bridge House),,Bi-Borough Director of Integrated Care,4702.96
03/03/2022,1243553,Voyage Care (Bridge House),,Bi-Borough Director of Integrated Care,6657.04
03/03/2022,1243553,Voyage Care (Bridge House),,Bi-Borough Director of Integrated Care,8059.07
03/03/2022,1243553,Voyage Care (Bridge House),,Bi-Borough Director of Integrated Care,7395.44
24/03/2022,1243553,Voyage Care (Bridge House),,Bi-Borough Director of Integrated Care,7573.71
24/03/2022,1243553,Voyage Care (Bridge House),,Bi-Borough Director of Integrated Care,5374.81
24/03/2022,1243553,Voyage Care (Bridge House),,Bi-Borough Director of Integrated Care,7608.05
05/01/2022,1243554,Voyage Care (Kenton House),,Bi-Borough Director of Integrated Care,5809.96
02/02/2022,1243554,Voyage Care (Kenton House),,Bi-Borough Director of Integrated Care,5809.96
03/03/2022,1243554,Voyage Care (Kenton House),,Bi-Borough Director of Integrated Care,5809.96
24/03/2022,1243554,Voyage Care (Kenton House),,Bi-Borough Director of Integrated Care,6639.95
05/01/2022,1249291,Westminster Society,,Bi-Borough Director of Integrated Care,2923
05/01/2022,1249291,Westminster Society,,Bi-Borough Director of Integrated Care,540.76
05/01/2022,1249291,Westminster Society,,Bi-Borough Director of Integrated Care,3002
05/01/2022,1249291,Westminster Society,,Bi-Borough Director of Integrated Care,2291
05/01/2022,1249291,Westminster Society,,Bi-Borough Director of Integrated Care,4206.76
05/01/2022,1249291,Westminster Society,,Bi-Borough Director of Integrated Care,853.96
05/01/2022,1249291,Westminster Society,,Bi-Borough Director of Integrated Care,553
05/01/2022,1249291,Westminster Society,,Bi-Borough Director of Integrated Care,3239
05/01/2022,1249291,Westminster Society,,Bi-Borough Director of Integrated Care,2686
05/01/2022,1249291,Westminster Society,,Bi-Borough Director of Integrated Care,2765
05/01/2022,1249291,Westminster Society,,Bi-Borough Director of Integrated Care,3041.52
05/01/2022,1249291,Westminster Society,,Bi-Borough Director of Integrated Care,5056
05/01/2022,1249291,Westminster Society,,Bi-Borough Director of Integrated Care,3792
05/01/2022,1249291,Westminster Society,,Bi-Borough Director of Integrated Care,4269.72
05/01/2022,1249291,Westminster Society,,Bi-Borough Director of Integrated Care,3002
05/01/2022,1249291,Westminster Society,,Bi-Borough Director of Integrated Care,713.64
05/01/2022,1249291,Westminster Society,,Bi-Borough Director of Integrated Care,3957.92
05/01/2022,1249291,Westminster Society,,Bi-Borough Director of Integrated Care,713.64
05/01/2022,1249291,Westminster Society,,Bi-Borough Director of Integrated Care,3957.92
05/01/2022,1249291,Westminster Society,,Bi-Borough Director of Integrated Care,3002
05/01/2022,1249291,Westminster Society,,Bi-Borough Director of Integrated Care,853.96
05/01/2022,1249291,Westminster Society,,Bi-Borough Director of Integrated Care,4550.4
05/01/2022,1249291,Westminster Society,,Bi-Borough Director of Integrated Care,721
05/01/2022,1249291,Westminster Society,,Bi-Borough Director of Integrated Care,3537.83
05/01/2022,1249291,Westminster Society,,Bi-Borough Director of Integrated Care,721
05/01/2022,1249291,Westminster Society,,Bi-Borough Director of Integrated Care,12166.61
05/01/2022,1249291,Westminster Society,,Bi-Borough Director of Integrated Care,1067.44
05/01/2022,1249291,Westminster Society,,Bi-Borough Director of Integrated Care,721
05/01/2022,1249291,Westminster Society,,Bi-Borough Director of Integrated Care,6880.92
05/01/2022,1249291,Westminster Society,,Bi-Borough Director of Integrated Care,713.64
05/01/2022,1249291,Westminster Society,,Bi-Borough Director of Integrated Care,3120.52
05/01/2022,1249291,Westminster Society,,Bi-Borough Director of Integrated Care,790
05/01/2022,1249291,Westminster Society,,Bi-Borough Director of Integrated Care,3555
05/01/2022,1249291,Westminster Society,,Bi-Borough Director of Integrated Care,3871
05/01/2022,1249291,Westminster Society,,Bi-Borough Director of Integrated Care,853.96
05/01/2022,1249291,Westminster Society,,Bi-Borough Director of Integrated Care,4522.76
05/01/2022,1249291,Westminster Society,,Bi-Borough Director of Integrated Care,1382.52
05/01/2022,1249291,Westminster Society,,Bi-Borough Director of Integrated Care,3792
05/01/2022,1249291,Westminster Society,,Bi-Borough Director of Integrated Care,853.96
05/01/2022,1249291,Westminster Society,,Bi-Borough Director of Integrated Care,7094.2
05/01/2022,1249291,Westminster Society,,Bi-Borough Director of Integrated Care,540.76
05/01/2022,1249291,Westminster Society,,Bi-Borough Director of Integrated Care,1738
05/01/2022,1249291,Westminster Society,,Bi-Borough Director of Integrated Care,1303.52
05/01/2022,1249291,Westminster Society,,Bi-Borough Director of Integrated Care,11067.92
05/01/2022,1249291,Westminster Society,,Bi-Borough Director of Integrated Care,721
05/01/2022,1249291,Westminster Society,,Bi-Borough Director of Integrated Care,1707.92
05/01/2022,1249291,Westminster Society,,Bi-Borough Director of Integrated Care,2133
05/01/2022,1249291,Westminster Society,,Bi-Borough Director of Integrated Care,540.76
05/01/2022,1249291,Westminster Society,,Bi-Borough Director of Integrated Care,6083
05/01/2022,1249291,Westminster Society,,Bi-Borough Director of Integrated Care,1624.56
05/01/2022,1249291,Westminster Society,,Bi-Borough Director of Integrated Care,9322
05/01/2022,1249291,Westminster Society,,Bi-Borough Director of Integrated Care,540.76
05/01/2022,1249291,Westminster Society,,Bi-Borough Director of Integrated Care,853.96
05/01/2022,1249291,Westminster Society,,Bi-Borough Director of Integrated Care,5786.76
05/01/2022,1249291,Westminster Society,,Bi-Borough Director of Integrated Care,1106
05/01/2022,1249291,Westminster Society,,Bi-Borough Director of Integrated Care,632
05/01/2022,1249291,Westminster Society,,Bi-Borough Director of Integrated Care,2449
05/01/2022,1249291,Westminster Society,,Bi-Borough Director of Integrated Care,908.52
05/01/2022,1249291,Westminster Society,,Bi-Borough Director of Integrated Care,5604.06
05/01/2022,1249291,Westminster Society,,Bi-Borough Director of Integrated Care,721
05/01/2022,1249291,Westminster Society,,Bi-Borough Director of Integrated Care,6129.89
05/01/2022,1249291,Westminster Society,,Bi-Borough Director of Integrated Care,1975
05/01/2022,1249291,Westminster Society,,Bi-Borough Director of Integrated Care,540.76
05/01/2022,1249291,Westminster Society,,Bi-Borough Director of Integrated Care,1624.56
05/01/2022,1249291,Westminster Society,,Bi-Borough Director of Integrated Care,5530
05/01/2022,1249291,Westminster Society,,Bi-Borough Director of Integrated Care,853.96
05/01/2022,1249291,Westminster Society,,Bi-Borough Director of Integrated Care,5490.52
05/01/2022,1249291,Westminster Society,,Bi-Borough Director of Integrated Care,713.64
05/01/2022,1249291,Westminster Society,,Bi-Borough Director of Integrated Care,6699.2
05/01/2022,1249291,Westminster Society,,Bi-Borough Director of Integrated Care,3950
05/01/2022,1249291,Westminster Society,,Bi-Borough Director of Integrated Care,4424
05/01/2022,1249291,Westminster Society,,Bi-Borough Director of Integrated Care,632
05/01/2022,1249291,Westminster Society,,Bi-Borough Director of Integrated Care,713.64
05/01/2022,1249291,Westminster Society,,Bi-Borough Director of Integrated Care,5814.4
05/01/2022,1249291,Westminster Society,,Bi-Borough Director of Integrated Care,4266
05/01/2022,1249291,Westminster Society,,Bi-Borough Director of Integrated Care,853.96
05/01/2022,1249291,Westminster Society,,Bi-Borough Director of Integrated Care,2370
05/01/2022,1249291,Westminster Society,,Bi-Borough Director of Integrated Care,540.76
05/01/2022,1249291,Westminster Society,,Bi-Borough Director of Integrated Care,4285.76
05/01/2022,1249291,Westminster Society,,Bi-Borough Director of Integrated Care,2212
05/01/2022,1249291,Westminster Society,,Bi-Borough Director of Integrated Care,540.76
05/01/2022,1249291,Westminster Society,,Bi-Borough Director of Integrated Care,1624.56
05/01/2022,1249291,Westminster Society,,Bi-Borough Director of Integrated Care,8611
05/01/2022,1249291,Westminster Society,,Bi-Borough Director of Integrated Care,3160
05/01/2022,1249291,Westminster Society,,Bi-Borough Director of Integrated Care,2607
05/01/2022,1249291,Westminster Society,,Bi-Borough Director of Integrated Care,1145.52
05/01/2022,1249291,Westminster Society,,Bi-Borough Director of Integrated Care,2054
05/01/2022,1249291,Westminster Society,,Bi-Borough Director of Integrated Care,1106
05/01/2022,1249291,Westminster Society,,Bi-Borough Director of Integrated Care,2844
05/01/2022,1249291,Westminster Society,,Bi-Borough Director of Integrated Care,5000.72
05/01/2022,1249291,Westminster Society,,Bi-Borough Director of Integrated Care,6399
05/01/2022,1249291,Westminster Society,,Bi-Borough Director of Integrated Care,1067.44
05/01/2022,1249291,Westminster Society,,Bi-Borough Director of Integrated Care,721
05/01/2022,1249291,Westminster Society,,Bi-Borough Director of Integrated Care,9246.96
05/01/2022,1249291,Westminster Society,,Bi-Borough Director of Integrated Care,713.64
05/01/2022,1249291,Westminster Society,,Bi-Borough Director of Integrated Care,4013.2
05/01/2022,1249291,Westminster Society,,Bi-Borough Director of Integrated Care,713.64
05/01/2022,1249291,Westminster Society,,Bi-Borough Director of Integrated Care,6438.52
05/01/2022,1249291,Westminster Society,,Bi-Borough Director of Integrated Care,2607
05/01/2022,1249291,Westminster Society,,Bi-Borough Director of Integrated Care,853.96
05/01/2022,1249291,Westminster Society,,Bi-Borough Director of Integrated Care,3653.76
05/01/2022,1249291,Westminster Society,,Bi-Borough Director of Integrated Care,2212
05/01/2022,1249291,Westminster Society,,Bi-Borough Director of Integrated Care,713.64
05/01/2022,1249291,Westminster Society,,Bi-Borough Director of Integrated Care,2212
05/01/2022,1249291,Westminster Society,,Bi-Borough Director of Integrated Care,853.96
05/01/2022,1249291,Westminster Society,,Bi-Borough Director of Integrated Care,7410.2
05/01/2022,1249291,Westminster Society,,Bi-Borough Director of Integrated Care,3081
05/01/2022,1249291,Westminster Society,,Bi-Borough Director of Integrated Care,4029
05/01/2022,1249291,Westminster Society,,Bi-Borough Director of Integrated Care,2133
05/01/2022,1249291,Westminster Society,,Bi-Borough Director of Integrated Care,553
05/01/2022,1249291,Westminster Society,,Bi-Borough Director of Integrated Care,1461.52
05/01/2022,1249291,Westminster Society,,Bi-Borough Director of Integrated Care,1441.76
05/01/2022,1249291,Westminster Society,,Bi-Borough Director of Integrated Care,3594.52
05/01/2022,1249291,Westminster Society,,Bi-Borough Director of Integrated Care,1106
05/01/2022,1249291,Westminster Society,,Bi-Borough Director of Integrated Care,4029
05/01/2022,1249291,Westminster Society,,Bi-Borough Director of Integrated Care,9401
05/01/2022,1249291,Westminster Society,,Bi-Borough Director of Integrated Care,713.64
05/01/2022,1249291,Westminster Society,,Bi-Borough Director of Integrated Care,540.76
05/01/2022,1249291,Westminster Society,,Bi-Borough Director of Integrated Care,4582
05/01/2022,1249291,Westminster Society,,Bi-Borough Director of Integrated Care,711
05/01/2022,1249291,Westminster Society,,Bi-Borough Director of Integrated Care,5428.75
05/01/2022,1249291,Westminster Society,,Bi-Borough Director of Integrated Care,721
05/01/2022,1249291,Westminster Society,,Bi-Borough Director of Integrated Care,18342.48
02/02/2022,1249291,Westminster Society,Rent,Bi-Borough Director of Integrated Care,7807.91
02/02/2022,1249291,Westminster Society,,Bi-Borough Director of Integrated Care,3950
02/02/2022,1249291,Westminster Society,,Bi-Borough Director of Integrated Care,4424
02/02/2022,1249291,Westminster Society,,Bi-Borough Director of Integrated Care,632
02/02/2022,1249291,Westminster Society,,Bi-Borough Director of Integrated Care,713.64
02/02/2022,1249291,Westminster Society,,Bi-Borough Director of Integrated Care,5814.4
02/02/2022,1249291,Westminster Society,,Bi-Borough Director of Integrated Care,4266
02/02/2022,1249291,Westminster Society,,Bi-Borough Director of Integrated Care,853.96
02/02/2022,1249291,Westminster Society,,Bi-Borough Director of Integrated Care,2370
02/02/2022,1249291,Westminster Society,,Bi-Borough Director of Integrated Care,540.76
02/02/2022,1249291,Westminster Society,,Bi-Borough Director of Integrated Care,4285.76
02/02/2022,1249291,Westminster Society,,Bi-Borough Director of Integrated Care,1699.5
02/02/2022,1249291,Westminster Society,,Bi-Borough Director of Integrated Care,19673.56
02/02/2022,1249291,Westminster Society,,Bi-Borough Director of Integrated Care,6517.5
02/02/2022,1249291,Westminster Society,,Bi-Borough Director of Integrated Care,2212
02/02/2022,1249291,Westminster Society,,Bi-Borough Director of Integrated Care,540.76
02/02/2022,1249291,Westminster Society,,Bi-Borough Director of Integrated Care,1624.56
02/02/2022,1249291,Westminster Society,,Bi-Borough Director of Integrated Care,8611
02/02/2022,1249291,Westminster Society,,Bi-Borough Director of Integrated Care,3160
02/02/2022,1249291,Westminster Society,,Bi-Borough Director of Integrated Care,2607
02/02/2022,1249291,Westminster Society,,Bi-Borough Director of Integrated Care,1145.52
02/02/2022,1249291,Westminster Society,,Bi-Borough Director of Integrated Care,2054
02/02/2022,1249291,Westminster Society,,Bi-Borough Director of Integrated Care,1106
02/02/2022,1249291,Westminster Society,,Bi-Borough Director of Integrated Care,2844
02/02/2022,1249291,Westminster Society,,Bi-Borough Director of Integrated Care,5000.72
02/02/2022,1249291,Westminster Society,,Bi-Borough Director of Integrated Care,6399
02/02/2022,1249291,Westminster Society,,Bi-Borough Director of Integrated Care,721
02/02/2022,1249291,Westminster Society,,Bi-Borough Director of Integrated Care,9246.96
02/02/2022,1249291,Westminster Society,,Bi-Borough Director of Integrated Care,1067.44
02/02/2022,1249291,Westminster Society,,Bi-Borough Director of Integrated Care,4013.2
02/02/2022,1249291,Westminster Society,,Bi-Borough Director of Integrated Care,713.64
02/02/2022,1249291,Westminster Society,,Bi-Borough Director of Integrated Care,6438.52
02/02/2022,1249291,Westminster Society,,Bi-Borough Director of Integrated Care,713.64
02/02/2022,1249291,Westminster Society,,Bi-Borough Director of Integrated Care,2607
02/02/2022,1249291,Westminster Society,,Bi-Borough Director of Integrated Care,853.96
02/02/2022,1249291,Westminster Society,,Bi-Borough Director of Integrated Care,3653.76
02/02/2022,1249291,Westminster Society,,Bi-Borough Director of Integrated Care,2212
02/02/2022,1249291,Westminster Society,,Bi-Borough Director of Integrated Care,2212
02/02/2022,1249291,Westminster Society,,Bi-Borough Director of Integrated Care,713.64
02/02/2022,1249291,Westminster Society,,Bi-Borough Director of Integrated Care,7410.2
02/02/2022,1249291,Westminster Society,,Bi-Borough Director of Integrated Care,853.96
02/02/2022,1249291,Westminster Society,,Bi-Borough Director of Integrated Care,3081
02/02/2022,1249291,Westminster Society,,Bi-Borough Director of Integrated Care,4029
02/02/2022,1249291,Westminster Society,,Bi-Borough Director of Integrated Care,2133
02/02/2022,1249291,Westminster Society,,Bi-Borough Director of Integrated Care,553
02/02/2022,1249291,Westminster Society,,Bi-Borough Director of Integrated Care,1461.52
02/02/2022,1249291,Westminster Society,,Bi-Borough Director of Integrated Care,1441.76
02/02/2022,1249291,Westminster Society,,Bi-Borough Director of Integrated Care,3594.52
02/02/2022,1249291,Westminster Society,,Bi-Borough Director of Integrated Care,1106
02/02/2022,1249291,Westminster Society,,Bi-Borough Director of Integrated Care,4029
02/02/2022,1249291,Westminster Society,,Bi-Borough Director of Integrated Care,9401
02/02/2022,1249291,Westminster Society,,Bi-Borough Director of Integrated Care,713.64
02/02/2022,1249291,Westminster Society,,Bi-Borough Director of Integrated Care,4582
02/02/2022,1249291,Westminster Society,,Bi-Borough Director of Integrated Care,540.76
02/02/2022,1249291,Westminster Society,,Bi-Borough Director of Integrated Care,711
02/02/2022,1249291,Westminster Society,,Bi-Borough Director of Integrated Care,9543.2
02/02/2022,1249291,Westminster Society,,Bi-Borough Director of Integrated Care,721
02/02/2022,1249291,Westminster Society,,Bi-Borough Director of Integrated Care,1707.92
02/02/2022,1249291,Westminster Society,,Bi-Borough Director of Integrated Care,2923
02/02/2022,1249291,Westminster Society,,Bi-Borough Director of Integrated Care,540.76
02/02/2022,1249291,Westminster Society,,Bi-Borough Director of Integrated Care,3002
02/02/2022,1249291,Westminster Society,,Bi-Borough Director of Integrated Care,2291
02/02/2022,1249291,Westminster Society,,Bi-Borough Director of Integrated Care,4206.76
02/02/2022,1249291,Westminster Society,,Bi-Borough Director of Integrated Care,853.96
02/02/2022,1249291,Westminster Society,,Bi-Borough Director of Integrated Care,553
02/02/2022,1249291,Westminster Society,,Bi-Borough Director of Integrated Care,3239
02/02/2022,1249291,Westminster Society,,Bi-Borough Director of Integrated Care,2686
02/02/2022,1249291,Westminster Society,,Bi-Borough Director of Integrated Care,2765
02/02/2022,1249291,Westminster Society,,Bi-Borough Director of Integrated Care,713.64
02/02/2022,1249291,Westminster Society,,Bi-Borough Director of Integrated Care,3957.92
02/02/2022,1249291,Westminster Society,,Bi-Borough Director of Integrated Care,3002
02/02/2022,1249291,Westminster Society,,Bi-Borough Director of Integrated Care,4550.4
02/02/2022,1249291,Westminster Society,,Bi-Borough Director of Integrated Care,721
02/02/2022,1249291,Westminster Society,,Bi-Borough Director of Integrated Care,853.96
02/02/2022,1249291,Westminster Society,,Bi-Borough Director of Integrated Care,9069.2
02/02/2022,1249291,Westminster Society,,Bi-Borough Director of Integrated Care,1707.92
02/02/2022,1249291,Westminster Society,,Bi-Borough Director of Integrated Care,721
02/02/2022,1249291,Westminster Society,,Bi-Borough Director of Integrated Care,3061.29
02/02/2022,1249291,Westminster Society,,Bi-Borough Director of Integrated Care,6880.92
02/02/2022,1249291,Westminster Society,,Bi-Borough Director of Integrated Care,721
02/02/2022,1249291,Westminster Society,,Bi-Borough Director of Integrated Care,713.64
02/02/2022,1249291,Westminster Society,,Bi-Borough Director of Integrated Care,3120.52
02/02/2022,1249291,Westminster Society,,Bi-Borough Director of Integrated Care,3041.52
02/02/2022,1249291,Westminster Society,,Bi-Borough Director of Integrated Care,5056
02/02/2022,1249291,Westminster Society,,Bi-Borough Director of Integrated Care,3950
02/02/2022,1249291,Westminster Society,,Bi-Borough Director of Integrated Care,4269.72
02/02/2022,1249291,Westminster Society,,Bi-Borough Director of Integrated Care,3002
02/02/2022,1249291,Westminster Society,,Bi-Borough Director of Integrated Care,790
02/02/2022,1249291,Westminster Society,,Bi-Borough Director of Integrated Care,2133
02/02/2022,1249291,Westminster Society,,Bi-Borough Director of Integrated Care,540.76
02/02/2022,1249291,Westminster Society,,Bi-Borough Director of Integrated Care,6083
02/02/2022,1249291,Westminster Society,,Bi-Borough Director of Integrated Care,540.76
02/02/2022,1249291,Westminster Society,,Bi-Borough Director of Integrated Care,9322
02/02/2022,1249291,Westminster Society,,Bi-Borough Director of Integrated Care,1624.56
02/02/2022,1249291,Westminster Society,,Bi-Borough Director of Integrated Care,5786.76
02/02/2022,1249291,Westminster Society,,Bi-Borough Director of Integrated Care,853.96
02/02/2022,1249291,Westminster Society,,Bi-Borough Director of Integrated Care,1106
02/02/2022,1249291,Westminster Society,,Bi-Borough Director of Integrated Care,632
02/02/2022,1249291,Westminster Society,,Bi-Borough Director of Integrated Care,2449
02/02/2022,1249291,Westminster Society,,Bi-Borough Director of Integrated Care,908.52
02/02/2022,1249291,Westminster Society,,Bi-Borough Director of Integrated Care,5490.52
02/02/2022,1249291,Westminster Society,,Bi-Borough Director of Integrated Care,853.96
02/02/2022,1249291,Westminster Society,,Bi-Borough Director of Integrated Care,713.64
02/02/2022,1249291,Westminster Society,,Bi-Borough Director of Integrated Care,6699.2
02/02/2022,1249291,Westminster Society,,Bi-Borough Director of Integrated Care,713.64
02/02/2022,1249291,Westminster Society,,Bi-Borough Director of Integrated Care,3957.92
02/02/2022,1249291,Westminster Society,,Bi-Borough Director of Integrated Care,3555
02/02/2022,1249291,Westminster Society,,Bi-Borough Director of Integrated Care,3871
02/02/2022,1249291,Westminster Society,,Bi-Borough Director of Integrated Care,853.96
02/02/2022,1249291,Westminster Society,,Bi-Borough Director of Integrated Care,4522.76
02/02/2022,1249291,Westminster Society,,Bi-Borough Director of Integrated Care,1382.52
02/02/2022,1249291,Westminster Society,,Bi-Borough Director of Integrated Care,3792
02/02/2022,1249291,Westminster Society,,Bi-Borough Director of Integrated Care,7094.2
02/02/2022,1249291,Westminster Society,,Bi-Borough Director of Integrated Care,853.96
02/02/2022,1249291,Westminster Society,,Bi-Borough Director of Integrated Care,1738
02/02/2022,1249291,Westminster Society,,Bi-Borough Director of Integrated Care,540.76
02/02/2022,1249291,Westminster Society,,Bi-Borough Director of Integrated Care,1303.52
02/02/2022,1249291,Westminster Society,,Bi-Borough Director of Integrated Care,721
02/02/2022,1249291,Westminster Society,,Bi-Borough Director of Integrated Care,1707.92
02/02/2022,1249291,Westminster Society,,Bi-Borough Director of Integrated Care,11067.92
02/02/2022,1249291,Westminster Society,,Bi-Borough Director of Integrated Care,721
02/02/2022,1249291,Westminster Society,,Bi-Borough Director of Integrated Care,2134.88
02/02/2022,1249291,Westminster Society,,Bi-Borough Director of Integrated Care,8460.92
02/02/2022,1249291,Westminster Society,,Bi-Borough Director of Integrated Care,1975
02/02/2022,1249291,Westminster Society,,Bi-Borough Director of Integrated Care,540.76
02/02/2022,1249291,Westminster Society,,Bi-Borough Director of Integrated Care,5530
02/02/2022,1249291,Westminster Society,,Bi-Borough Director of Integrated Care,1624.56
07/02/2022,1249291,Westminster Society,,Bi-Borough Director of Integrated Care,595
08/02/2022,1249291,Westminster Society,Rent,Bi-Borough Director of Integrated Care,6894
09/02/2022,1249291,Westminster Society,B*Voluntary-Spot-V Dep-Enhanced - do not u,Bi-Borough Director of Integrated Care,2295
09/02/2022,1249291,Westminster Society,B*Voluntary-Spot-V Dep-Enhanced - do not u,Bi-Borough Director of Integrated Care,1020
09/02/2022,1249291,Westminster Society,B*Voluntary-Spot-V Dep-Enhanced - do not u,Bi-Borough Director of Integrated Care,765
09/02/2022,1249291,Westminster Society,B*Voluntary-Spot-V Dep-Enhanced - do not u,Bi-Borough Director of Integrated Care,595
09/02/2022,1249291,Westminster Society,B*Voluntary-Spot-V Dep-Enhanced - do not u,Bi-Borough Director of Integrated Care,850
09/02/2022,1249291,Westminster Society,B*Voluntary-Spot-V Dep-Enhanced - do not u,Bi-Borough Director of Integrated Care,782
09/02/2022,1249291,Westminster Society,B*Voluntary-Spot-V Dep-Enhanced - do not u,Bi-Borough Director of Integrated Care,2125
09/02/2022,1249291,Westminster Society,B*Voluntary-Spot-V Dep-Enhanced - do not u,Bi-Borough Director of Integrated Care,1360
09/02/2022,1249291,Westminster Society,B*Voluntary-Spot-V Dep-Enhanced - do not u,Bi-Borough Director of Integrated Care,595
09/02/2022,1249291,Westminster Society,B*Voluntary-Spot-V Dep-Enhanced - do not u,Bi-Borough Director of Integrated Care,1020
09/02/2022,1249291,Westminster Society,B*Voluntary-Spot-V Dep-Enhanced - do not u,Bi-Borough Director of Integrated Care,2550
09/02/2022,1249291,Westminster Society,B*Voluntary-Spot-V Dep-Enhanced - do not u,Bi-Borough Director of Integrated Care,544
09/02/2022,1249291,Westminster Society,B*Voluntary-Spot-V Dep-Enhanced - do not u,Bi-Borough Director of Integrated Care,510
09/02/2022,1249291,Westminster Society,B*Voluntary-Spot-V Dep-Enhanced - do not u,Bi-Borough Director of Integrated Care,1105
09/02/2022,1249291,Westminster Society,B*Voluntary-Spot-V Dep-Enhanced - do not u,Bi-Borough Director of Integrated Care,935
09/02/2022,1249291,Westminster Society,B*Voluntary-Spot-V Dep-Enhanced - do not u,Bi-Borough Director of Integrated Care,1615
09/02/2022,1249291,Westminster Society,B*Voluntary-Spot-V Dep-Enhanced - do not u,Bi-Borough Director of Integrated Care,1190
09/02/2022,1249291,Westminster Society,B*Voluntary-Spot-V Dep-Enhanced - do not u,Bi-Borough Director of Integrated Care,1190
09/02/2022,1249291,Westminster Society,B*Voluntary-Spot-V Dep-Enhanced - do not u,Bi-Borough Director of Integrated Care,510
09/02/2022,1249291,Westminster Society,B*Voluntary-Spot-V Dep-Enhanced - do not u,Bi-Borough Director of Integrated Care,510
09/02/2022,1249291,Westminster Society,B*Voluntary-Spot-V Dep-Enhanced - do not u,Bi-Borough Director of Integrated Care,510
09/02/2022,1249291,Westminster Society,B*Voluntary-Spot-V Dep-Enhanced - do not u,Bi-Borough Director of Integrated Care,510
09/02/2022,1249291,Westminster Society,B*Voluntary-Spot-V Dep-Enhanced - do not u,Bi-Borough Director of Integrated Care,510
09/02/2022,1249291,Westminster Society,B*Voluntary-Spot-V Dep-Enhanced - do not u,Bi-Borough Director of Integrated Care,1020
09/02/2022,1249291,Westminster Society,B*Voluntary-Spot-V Dep-Enhanced - do not u,Bi-Borough Director of Integrated Care,510
09/02/2022,1249291,Westminster Society,B*Voluntary-Spot-V Dep-Enhanced - do not u,Bi-Borough Director of Integrated Care,612
09/02/2022,1249291,Westminster Society,B*Voluntary-Spot-V Dep-Enhanced - do not u,Bi-Borough Director of Integrated Care,510
09/02/2022,1249291,Westminster Society,B*Voluntary-Spot-V Dep-Enhanced - do not u,Bi-Borough Director of Integrated Care,510
09/02/2022,1249291,Westminster Society,B*Voluntary-Spot-V Dep-Enhanced - do not u,Bi-Borough Director of Integrated Care,510
09/02/2022,1249291,Westminster Society,B*Voluntary-Spot-V Dep-Enhanced - do not u,Bi-Borough Director of Integrated Care,510
09/02/2022,1249291,Westminster Society,B*Voluntary-Spot-V Dep-Enhanced - do not u,Bi-Borough Director of Integrated Care,765
09/02/2022,1249291,Westminster Society,B*Voluntary-Spot-V Dep-Enhanced - do not u,Bi-Borough Director of Integrated Care,765
09/02/2022,1249291,Westminster Society,B*Voluntary-Spot-V Dep-Enhanced - do not u,Bi-Borough Director of Integrated Care,680
09/02/2022,1249291,Westminster Society,B*Voluntary-Spot-V Dep-Enhanced - do not u,Bi-Borough Director of Integrated Care,884
09/02/2022,1249291,Westminster Society,B*Voluntary-Spot-V Dep-Enhanced - do not u,Bi-Borough Director of Integrated Care,1292
09/02/2022,1249291,Westminster Society,B*Voluntary-Spot-V Dep-Enhanced - do not u,Bi-Borough Director of Integrated Care,510
09/02/2022,1249291,Westminster Society,B*Voluntary-Spot-V Dep-Enhanced - do not u,Bi-Borough Director of Integrated Care,952
09/02/2022,1249291,Westminster Society,B*Voluntary-Spot-V Dep-Enhanced - do not u,Bi-Borough Director of Integrated Care,680
09/02/2022,1249291,Westminster Society,B*Voluntary-Spot-V Dep-Enhanced - do not u,Bi-Borough Director of Integrated Care,765
09/02/2022,1249291,Westminster Society,B*Voluntary-Spot-V Dep-Enhanced - do not u,Bi-Borough Director of Integrated Care,748
09/02/2022,1249291,Westminster Society,B*Voluntary-Spot-V Dep-Enhanced - do not u,Bi-Borough Director of Integrated Care,952
09/02/2022,1249291,Westminster Society,B*Voluntary-Spot-V Dep-Enhanced - do not u,Bi-Borough Director of Integrated Care,544
16/02/2022,1249291,Westminster Society,B*Voluntary-Spot-V Dep-Enhanced - do not u,Bi-Borough Director of Integrated Care,1292
16/02/2022,1249291,Westminster Society,B*Voluntary-Spot-V Dep-Enhanced - do not u,Bi-Borough Director of Integrated Care,765
16/02/2022,1249291,Westminster Society,B*Voluntary-Spot-V Dep-Enhanced - do not u,Bi-Borough Director of Integrated Care,884
16/02/2022,1249291,Westminster Society,B*Voluntary-Spot-V Dep-Enhanced - do not u,Bi-Borough Director of Integrated Care,748
16/02/2022,1249291,Westminster Society,B*Voluntary-Spot-V Dep-Enhanced - do not u,Bi-Borough Director of Integrated Care,544
16/02/2022,1249291,Westminster Society,B*Voluntary-Spot-V Dep-Enhanced - do not u,Bi-Borough Director of Integrated Care,544
16/02/2022,1249291,Westminster Society,B*Voluntary-Spot-V Dep-Enhanced - do not u,Bi-Borough Director of Integrated Care,952
16/02/2022,1249291,Westminster Society,B*Voluntary-Spot-V Dep-Enhanced - do not u,Bi-Borough Director of Integrated Care,952
28/02/2022,1249291,Westminster Society,B*Voluntary-Spot-V Dep-Enhanced - do not u,Bi-Borough Director of Integrated Care,612
28/02/2022,1249291,Westminster Society,B*Voluntary-Spot-V Dep-Enhanced - do not u,Bi-Borough Director of Integrated Care,612
28/02/2022,1249291,Westminster Society,B*Voluntary-Spot-V Dep-Enhanced - do not u,Bi-Borough Director of Integrated Care,816
02/03/2022,1249291,Westminster Society,,Bi-Borough Director of Integrated Care,540.76
02/03/2022,1249291,Westminster Society,,Bi-Borough Director of Integrated Care,1975
02/03/2022,1249291,Westminster Society,,Bi-Borough Director of Integrated Care,5530
02/03/2022,1249291,Westminster Society,,Bi-Borough Director of Integrated Care,1624.56
02/03/2022,1249291,Westminster Society,,Bi-Borough Director of Integrated Care,2923
02/03/2022,1249291,Westminster Society,,Bi-Borough Director of Integrated Care,3002
02/03/2022,1249291,Westminster Society,,Bi-Borough Director of Integrated Care,540.76
02/03/2022,1249291,Westminster Society,,Bi-Borough Director of Integrated Care,2291
02/03/2022,1249291,Westminster Society,,Bi-Borough Director of Integrated Care,3950
02/03/2022,1249291,Westminster Society,,Bi-Borough Director of Integrated Care,4424
02/03/2022,1249291,Westminster Society,,Bi-Borough Director of Integrated Care,632
02/03/2022,1249291,Westminster Society,,Bi-Borough Director of Integrated Care,4172.57
02/03/2022,1249291,Westminster Society,,Bi-Borough Director of Integrated Care,4206.76
02/03/2022,1249291,Westminster Society,,Bi-Borough Director of Integrated Care,1925.13
02/03/2022,1249291,Westminster Society,,Bi-Borough Director of Integrated Care,553
02/03/2022,1249291,Westminster Society,,Bi-Borough Director of Integrated Care,3239
02/03/2022,1249291,Westminster Society,,Bi-Borough Director of Integrated Care,2686
02/03/2022,1249291,Westminster Society,,Bi-Borough Director of Integrated Care,2765
02/03/2022,1249291,Westminster Society,,Bi-Borough Director of Integrated Care,3957.92
02/03/2022,1249291,Westminster Society,,Bi-Borough Director of Integrated Care,1609.03
02/03/2022,1249291,Westminster Society,,Bi-Borough Director of Integrated Care,3002
02/03/2022,1249291,Westminster Society,,Bi-Borough Director of Integrated Care,4550.4
02/03/2022,1249291,Westminster Society,,Bi-Borough Director of Integrated Care,721
02/03/2022,1249291,Westminster Society,,Bi-Borough Director of Integrated Care,1925.13
02/03/2022,1249291,Westminster Society,,Bi-Borough Director of Integrated Care,9069.2
02/03/2022,1249291,Westminster Society,,Bi-Borough Director of Integrated Care,721
02/03/2022,1249291,Westminster Society,,Bi-Borough Director of Integrated Care,3850.26
02/03/2022,1249291,Westminster Society,,Bi-Borough Director of Integrated Care,1382.52
02/03/2022,1249291,Westminster Society,,Bi-Borough Director of Integrated Care,6880.92
02/03/2022,1249291,Westminster Society,,Bi-Borough Director of Integrated Care,721
02/03/2022,1249291,Westminster Society,,Bi-Borough Director of Integrated Care,1609.03
02/03/2022,1249291,Westminster Society,,Bi-Borough Director of Integrated Care,3120.52
02/03/2022,1249291,Westminster Society,,Bi-Borough Director of Integrated Care,1609.03
02/03/2022,1249291,Westminster Society,,Bi-Borough Director of Integrated Care,5814.4
02/03/2022,1249291,Westminster Society,,Bi-Borough Director of Integrated Care,4172.57
02/03/2022,1249291,Westminster Society,,Bi-Borough Director of Integrated Care,4266
02/03/2022,1249291,Westminster Society,,Bi-Borough Director of Integrated Care,1925.13
02/03/2022,1249291,Westminster Society,,Bi-Borough Director of Integrated Care,540.76
02/03/2022,1249291,Westminster Society,,Bi-Borough Director of Integrated Care,2370
02/03/2022,1249291,Westminster Society,,Bi-Borough Director of Integrated Care,4285.76
02/03/2022,1249291,Westminster Society,,Bi-Borough Director of Integrated Care,2765
02/03/2022,1249291,Westminster Society,,Bi-Borough Director of Integrated Care,8346.36
02/03/2022,1249291,Westminster Society,,Bi-Borough Director of Integrated Care,721
02/03/2022,1249291,Westminster Society,,Bi-Borough Director of Integrated Care,540.76
02/03/2022,1249291,Westminster Society,,Bi-Borough Director of Integrated Care,2212
02/03/2022,1249291,Westminster Society,,Bi-Borough Director of Integrated Care,1624.56
02/03/2022,1249291,Westminster Society,,Bi-Borough Director of Integrated Care,8611
02/03/2022,1249291,Westminster Society,,Bi-Borough Director of Integrated Care,3160
02/03/2022,1249291,Westminster Society,,Bi-Borough Director of Integrated Care,2607
02/03/2022,1249291,Westminster Society,,Bi-Borough Director of Integrated Care,1145.52
02/03/2022,1249291,Westminster Society,,Bi-Borough Director of Integrated Care,2054
02/03/2022,1249291,Westminster Society,,Bi-Borough Director of Integrated Care,1106
02/03/2022,1249291,Westminster Society,,Bi-Borough Director of Integrated Care,790
02/03/2022,1249291,Westminster Society,,Bi-Borough Director of Integrated Care,2133
02/03/2022,1249291,Westminster Society,,Bi-Borough Director of Integrated Care,6083
02/03/2022,1249291,Westminster Society,,Bi-Borough Director of Integrated Care,540.76
02/03/2022,1249291,Westminster Society,,Bi-Borough Director of Integrated Care,1624.56
02/03/2022,1249291,Westminster Society,,Bi-Borough Director of Integrated Care,9322
02/03/2022,1249291,Westminster Society,,Bi-Borough Director of Integrated Care,540.76
02/03/2022,1249291,Westminster Society,,Bi-Borough Director of Integrated Care,5786.76
02/03/2022,1249291,Westminster Society,,Bi-Borough Director of Integrated Care,1925.13
02/03/2022,1249291,Westminster Society,,Bi-Borough Director of Integrated Care,4172.57
02/03/2022,1249291,Westminster Society,,Bi-Borough Director of Integrated Care,1106
02/03/2022,1249291,Westminster Society,,Bi-Borough Director of Integrated Care,632
02/03/2022,1249291,Westminster Society,,Bi-Borough Director of Integrated Care,2449
02/03/2022,1249291,Westminster Society,,Bi-Borough Director of Integrated Care,908.52
02/03/2022,1249291,Westminster Society,,Bi-Borough Director of Integrated Care,4172.57
02/03/2022,1249291,Westminster Society,,Bi-Borough Director of Integrated Care,1925.13
02/03/2022,1249291,Westminster Society,,Bi-Borough Director of Integrated Care,5490.52
02/03/2022,1249291,Westminster Society,,Bi-Borough Director of Integrated Care,1609.03
02/03/2022,1249291,Westminster Society,,Bi-Borough Director of Integrated Care,6699.2
02/03/2022,1249291,Westminster Society,,Bi-Borough Director of Integrated Care,2844
02/03/2022,1249291,Westminster Society,,Bi-Borough Director of Integrated Care,5000.72
02/03/2022,1249291,Westminster Society,,Bi-Borough Director of Integrated Care,6399
02/03/2022,1249291,Westminster Society,,Bi-Borough Director of Integrated Care,9246.96
02/03/2022,1249291,Westminster Society,,Bi-Borough Director of Integrated Care,721
02/03/2022,1249291,Westminster Society,,Bi-Borough Director of Integrated Care,2406.53
02/03/2022,1249291,Westminster Society,,Bi-Borough Director of Integrated Care,4013.2
02/03/2022,1249291,Westminster Society,,Bi-Borough Director of Integrated Care,1609.03
02/03/2022,1249291,Westminster Society,,Bi-Borough Director of Integrated Care,6438.52
02/03/2022,1249291,Westminster Society,,Bi-Borough Director of Integrated Care,1609.03
02/03/2022,1249291,Westminster Society,,Bi-Borough Director of Integrated Care,2607
02/03/2022,1249291,Westminster Society,,Bi-Borough Director of Integrated Care,1925.13
02/03/2022,1249291,Westminster Society,,Bi-Borough Director of Integrated Care,3653.76
02/03/2022,1249291,Westminster Society,,Bi-Borough Director of Integrated Care,4172.57
02/03/2022,1249291,Westminster Society,,Bi-Borough Director of Integrated Care,2212
02/03/2022,1249291,Westminster Society,,Bi-Borough Director of Integrated Care,2212
02/03/2022,1249291,Westminster Society,,Bi-Borough Director of Integrated Care,1609.03
02/03/2022,1249291,Westminster Society,,Bi-Borough Director of Integrated Care,1925.13
02/03/2022,1249291,Westminster Society,,Bi-Borough Director of Integrated Care,4172.57
02/03/2022,1249291,Westminster Society,,Bi-Borough Director of Integrated Care,7410.2
02/03/2022,1249291,Westminster Society,,Bi-Borough Director of Integrated Care,3081
02/03/2022,1249291,Westminster Society,,Bi-Borough Director of Integrated Care,3041.52
02/03/2022,1249291,Westminster Society,,Bi-Borough Director of Integrated Care,5056
02/03/2022,1249291,Westminster Society,,Bi-Borough Director of Integrated Care,9625.91
02/03/2022,1249291,Westminster Society,,Bi-Borough Director of Integrated Care,3950
02/03/2022,1249291,Westminster Society,,Bi-Borough Director of Integrated Care,3002
02/03/2022,1249291,Westminster Society,,Bi-Borough Director of Integrated Care,3957.92
02/03/2022,1249291,Westminster Society,,Bi-Borough Director of Integrated Care,1609.03
02/03/2022,1249291,Westminster Society,,Bi-Borough Director of Integrated Care,4029
02/03/2022,1249291,Westminster Society,,Bi-Borough Director of Integrated Care,2133
02/03/2022,1249291,Westminster Society,,Bi-Borough Director of Integrated Care,553
02/03/2022,1249291,Westminster Society,,Bi-Borough Director of Integrated Care,1461.52
02/03/2022,1249291,Westminster Society,,Bi-Borough Director of Integrated Care,1441.76
02/03/2022,1249291,Westminster Society,,Bi-Borough Director of Integrated Care,3594.52
02/03/2022,1249291,Westminster Society,,Bi-Borough Director of Integrated Care,1106
02/03/2022,1249291,Westminster Society,,Bi-Borough Director of Integrated Care,4029
02/03/2022,1249291,Westminster Society,,Bi-Borough Director of Integrated Care,9401
02/03/2022,1249291,Westminster Society,,Bi-Borough Director of Integrated Care,1609.03
02/03/2022,1249291,Westminster Society,,Bi-Borough Director of Integrated Care,540.76
02/03/2022,1249291,Westminster Society,,Bi-Borough Director of Integrated Care,4582
02/03/2022,1249291,Westminster Society,,Bi-Borough Director of Integrated Care,3555
02/03/2022,1249291,Westminster Society,,Bi-Borough Director of Integrated Care,3871
02/03/2022,1249291,Westminster Society,,Bi-Borough Director of Integrated Care,3264.07
02/03/2022,1249291,Westminster Society,,Bi-Borough Director of Integrated Care,873.65
02/03/2022,1249291,Westminster Society,,Bi-Borough Director of Integrated Care,1016.63
02/03/2022,1249291,Westminster Society,,Bi-Borough Director of Integrated Care,1382.52
02/03/2022,1249291,Westminster Society,,Bi-Borough Director of Integrated Care,3792
02/03/2022,1249291,Westminster Society,,Bi-Borough Director of Integrated Care,4172.57
02/03/2022,1249291,Westminster Society,,Bi-Borough Director of Integrated Care,7094.2
02/03/2022,1249291,Westminster Society,,Bi-Borough Director of Integrated Care,1925.13
02/03/2022,1249291,Westminster Society,,Bi-Borough Director of Integrated Care,1738
02/03/2022,1249291,Westminster Society,,Bi-Borough Director of Integrated Care,540.76
02/03/2022,1249291,Westminster Society,,Bi-Borough Director of Integrated Care,1303.52
02/03/2022,1249291,Westminster Society,,Bi-Borough Director of Integrated Care,11067.92
02/03/2022,1249291,Westminster Society,,Bi-Borough Director of Integrated Care,3850.26
02/03/2022,1249291,Westminster Society,,Bi-Borough Director of Integrated Care,721
02/03/2022,1249291,Westminster Society,,Bi-Borough Director of Integrated Care,8460.92
02/03/2022,1249291,Westminster Society,,Bi-Borough Director of Integrated Care,4813.06
02/03/2022,1249291,Westminster Society,,Bi-Borough Director of Integrated Care,721
02/03/2022,1249291,Westminster Society,,Bi-Borough Director of Integrated Care,711
02/03/2022,1249291,Westminster Society,,Bi-Borough Director of Integrated Care,721
02/03/2022,1249291,Westminster Society,,Bi-Borough Director of Integrated Care,9543.2
02/03/2022,1249291,Westminster Society,,Bi-Borough Director of Integrated Care,3850.26
07/03/2022,1249291,Westminster Society,B*Voluntary-Spot-V Dep-Enhanced - do not u,Bi-Borough Director of Integrated Care,612
07/03/2022,1249291,Westminster Society,B*Voluntary-Spot-V Dep-Enhanced - do not u,Bi-Borough Director of Integrated Care,680
07/03/2022,1249291,Westminster Society,B*Voluntary-Spot-V Dep-Enhanced - do not u,Bi-Borough Director of Integrated Care,1088
07/03/2022,1249291,Westminster Society,B*Voluntary-Spot-V Dep-Enhanced - do not u,Bi-Borough Director of Integrated Care,2040
07/03/2022,1249291,Westminster Society,B*Voluntary-Spot-V Dep-Enhanced - do not u,Bi-Borough Director of Integrated Care,816
07/03/2022,1249291,Westminster Society,B*Voluntary-Spot-V Dep-Enhanced - do not u,Bi-Borough Director of Integrated Care,1836
07/03/2022,1249291,Westminster Society,B*Voluntary-Spot-V Dep-Enhanced - do not u,Bi-Borough Director of Integrated Care,544
07/03/2022,1249291,Westminster Society,B*Voluntary-Spot-V Dep-Enhanced - do not u,Bi-Borough Director of Integrated Care,612
07/03/2022,1249291,Westminster Society,B*Voluntary-Spot-V Dep-Enhanced - do not u,Bi-Borough Director of Integrated Care,697
07/03/2022,1249291,Westminster Society,B*Voluntary-Spot-V Dep-Enhanced - do not u,Bi-Borough Director of Integrated Care,1700
17/03/2022,1249291,Westminster Society,B*Voluntary-Spot-V Dep-Enhanced - do not u,Bi-Borough Director of Integrated Care,816
17/03/2022,1249291,Westminster Society,B*Voluntary-Spot-V Dep-Enhanced - do not u,Bi-Borough Director of Integrated Care,1700
17/03/2022,1249291,Westminster Society,B*Voluntary-Spot-V Dep-Enhanced - do not u,Bi-Borough Director of Integrated Care,2040
17/03/2022,1249291,Westminster Society,B*Voluntary-Spot-V Dep-Enhanced - do not u,Bi-Borough Director of Integrated Care,612
17/03/2022,1249291,Westminster Society,B*Voluntary-Spot-V Dep-Enhanced - do not u,Bi-Borough Director of Integrated Care,816
17/03/2022,1249291,Westminster Society,B*Voluntary-Spot-V Dep-Enhanced - do not u,Bi-Borough Director of Integrated Care,1088
17/03/2022,1249291,Westminster Society,B*Voluntary-Spot-V Dep-Enhanced - do not u,Bi-Borough Director of Integrated Care,782
17/03/2022,1249291,Westminster Society,B*Voluntary-Spot-V Dep-Enhanced - do not u,Bi-Borough Director of Integrated Care,612
17/03/2022,1249291,Westminster Society,B*Voluntary-Spot-V Dep-Enhanced - do not u,Bi-Borough Director of Integrated Care,680
17/03/2022,1249291,Westminster Society,B*Voluntary-Spot-V Dep-Enhanced - do not u,Bi-Borough Director of Integrated Care,816
17/03/2022,1249291,Westminster Society,B*Voluntary-Spot-V Dep-Enhanced - do not u,Bi-Borough Director of Integrated Care,612
17/03/2022,1249291,Westminster Society,B*Voluntary-Spot-V Dep-Enhanced - do not u,Bi-Borough Director of Integrated Care,1836
24/03/2022,1249291,Westminster Society,,Bi-Borough Director of Integrated Care,4062.86
24/03/2022,1249291,Westminster Society,,Bi-Borough Director of Integrated Care,4424
24/03/2022,1249291,Westminster Society,,Bi-Borough Director of Integrated Care,1580.02
24/03/2022,1249291,Westminster Society,,Bi-Borough Director of Integrated Care,4333.71
24/03/2022,1249291,Westminster Society,,Bi-Borough Director of Integrated Care,1264
24/03/2022,1249291,Westminster Society,,Bi-Borough Director of Integrated Care,8107.66
24/03/2022,1249291,Westminster Society,,Bi-Borough Director of Integrated Care,1986.29
24/03/2022,1249291,Westminster Society,,Bi-Borough Director of Integrated Care,618.01
24/03/2022,1249291,Westminster Society,,Bi-Borough Director of Integrated Care,1489.74
24/03/2022,1249291,Westminster Society,,Bi-Borough Director of Integrated Care,12649.05
24/03/2022,1249291,Westminster Society,,Bi-Borough Director of Integrated Care,824
24/03/2022,1249291,Westminster Society,,Bi-Borough Director of Integrated Care,2528
24/03/2022,1249291,Westminster Society,,Bi-Borough Director of Integrated Care,9669.62
24/03/2022,1249291,Westminster Society,,Bi-Borough Director of Integrated Care,824
24/03/2022,1249291,Westminster Society,,Bi-Borough Director of Integrated Care,3160.04
24/03/2022,1249291,Westminster Society,,Bi-Borough Director of Integrated Care,2257.14
24/03/2022,1249291,Westminster Society,,Bi-Borough Director of Integrated Care,618.01
24/03/2022,1249291,Westminster Society,,Bi-Borough Director of Integrated Care,6320
24/03/2022,1249291,Westminster Society,,Bi-Borough Director of Integrated Care,4924.78
24/03/2022,1249291,Westminster Society,,Bi-Borough Director of Integrated Care,4514.29
24/03/2022,1249291,Westminster Society,,Bi-Borough Director of Integrated Care,5056
24/03/2022,1249291,Westminster Society,,Bi-Borough Director of Integrated Care,722.29
24/03/2022,1249291,Westminster Society,,Bi-Borough Director of Integrated Care,6645.03
24/03/2022,1249291,Westminster Society,,Bi-Borough Director of Integrated Care,1056.37
24/03/2022,1249291,Westminster Society,,Bi-Borough Director of Integrated Care,4875.43
24/03/2022,1249291,Westminster Society,,Bi-Borough Director of Integrated Care,1264
24/03/2022,1249291,Westminster Society,,Bi-Borough Director of Integrated Care,2708.57
24/03/2022,1249291,Westminster Society,,Bi-Borough Director of Integrated Care,618.01
24/03/2022,1249291,Westminster Society,,Bi-Borough Director of Integrated Care,4898.01
24/03/2022,1249291,Westminster Society,,Bi-Borough Director of Integrated Care,3160
24/03/2022,1249291,Westminster Society,,Bi-Borough Director of Integrated Care,9538.7
24/03/2022,1249291,Westminster Society,,Bi-Borough Director of Integrated Care,824
24/03/2022,1249291,Westminster Society,,Bi-Borough Director of Integrated Care,618.01
24/03/2022,1249291,Westminster Society,,Bi-Borough Director of Integrated Care,2528
24/03/2022,1249291,Westminster Society,,Bi-Borough Director of Integrated Care,9841.14
24/03/2022,1249291,Westminster Society,,Bi-Borough Director of Integrated Care,1856.64
24/03/2022,1249291,Westminster Society,,Bi-Borough Director of Integrated Care,3611.43
24/03/2022,1249291,Westminster Society,,Bi-Borough Director of Integrated Care,2979.43
24/03/2022,1249291,Westminster Society,,Bi-Borough Director of Integrated Care,1309.17
24/03/2022,1249291,Westminster Society,,Bi-Borough Director of Integrated Care,1264
24/03/2022,1249291,Westminster Society,,Bi-Borough Director of Integrated Care,3250.29
24/03/2022,1249291,Westminster Society,,Bi-Borough Director of Integrated Care,5715.11
24/03/2022,1249291,Westminster Society,,Bi-Borough Director of Integrated Care,7313.14
24/03/2022,1249291,Westminster Society,,Bi-Borough Director of Integrated Care,10567.95
24/03/2022,1249291,Westminster Society,,Bi-Borough Director of Integrated Care,824
24/03/2022,1249291,Westminster Society,,Bi-Borough Director of Integrated Care,11170.63
24/03/2022,1249291,Westminster Society,,Bi-Borough Director of Integrated Care,4586.51
24/03/2022,1249291,Westminster Society,,Bi-Borough Director of Integrated Care,1056.37
24/03/2022,1249291,Westminster Society,,Bi-Borough Director of Integrated Care,7358.31
24/03/2022,1249291,Westminster Society,,Bi-Borough Director of Integrated Care,1056.37
24/03/2022,1249291,Westminster Society,,Bi-Borough Director of Integrated Care,2979.43
24/03/2022,1249291,Westminster Society,,Bi-Borough Director of Integrated Care,4175.73
24/03/2022,1249291,Westminster Society,,Bi-Borough Director of Integrated Care,1264
24/03/2022,1249291,Westminster Society,,Bi-Borough Director of Integrated Care,2528
24/03/2022,1249291,Westminster Society,,Bi-Borough Director of Integrated Care,2528
24/03/2022,1249291,Westminster Society,,Bi-Borough Director of Integrated Care,1056.37
24/03/2022,1249291,Westminster Society,,Bi-Borough Director of Integrated Care,1264
24/03/2022,1249291,Westminster Society,,Bi-Borough Director of Integrated Care,8468.8
24/03/2022,1249291,Westminster Society,,Bi-Borough Director of Integrated Care,3521.14
24/03/2022,1249291,Westminster Society,,Bi-Borough Director of Integrated Care,4604.57
24/03/2022,1249291,Westminster Society,,Bi-Borough Director of Integrated Care,2437.71
24/03/2022,1249291,Westminster Society,,Bi-Borough Director of Integrated Care,2127.36
24/03/2022,1249291,Westminster Society,,Bi-Borough Director of Integrated Care,632
24/03/2022,1249291,Westminster Society,,Bi-Borough Director of Integrated Care,1670.31
24/03/2022,1249291,Westminster Society,,Bi-Borough Director of Integrated Care,1647.73
24/03/2022,1249291,Westminster Society,,Bi-Borough Director of Integrated Care,4108.02
24/03/2022,1249291,Westminster Society,,Bi-Borough Director of Integrated Care,1264
24/03/2022,1249291,Westminster Society,,Bi-Borough Director of Integrated Care,4604.57
24/03/2022,1249291,Westminster Society,,Bi-Borough Director of Integrated Care,1056.37
24/03/2022,1249291,Westminster Society,,Bi-Borough Director of Integrated Care,10744
24/03/2022,1249291,Westminster Society,,Bi-Borough Director of Integrated Care,618.01
24/03/2022,1249291,Westminster Society,,Bi-Borough Director of Integrated Care,5236.57
24/03/2022,1249291,Westminster Society,,Bi-Borough Director of Integrated Care,812.57
24/03/2022,1249291,Westminster Society,,Bi-Borough Director of Integrated Care,2528
24/03/2022,1249291,Westminster Society,,Bi-Borough Director of Integrated Care,824
24/03/2022,1249291,Westminster Society,,Bi-Borough Director of Integrated Care,10906.51
24/03/2022,1249291,Westminster Society,,Bi-Borough Director of Integrated Care,3340.57
24/03/2022,1249291,Westminster Society,,Bi-Borough Director of Integrated Care,3430.86
24/03/2022,1249291,Westminster Society,,Bi-Borough Director of Integrated Care,618.01
24/03/2022,1249291,Westminster Society,,Bi-Borough Director of Integrated Care,2618.29
24/03/2022,1249291,Westminster Society,,Bi-Borough Director of Integrated Care,1264
24/03/2022,1249291,Westminster Society,,Bi-Borough Director of Integrated Care,4807.73
24/03/2022,1249291,Westminster Society,,Bi-Borough Director of Integrated Care,966.39
24/03/2022,1249291,Westminster Society,,Bi-Borough Director of Integrated Care,632
24/03/2022,1249291,Westminster Society,,Bi-Borough Director of Integrated Care,3701.71
24/03/2022,1249291,Westminster Society,,Bi-Borough Director of Integrated Care,3069.71
24/03/2022,1249291,Westminster Society,,Bi-Borough Director of Integrated Care,3160
24/03/2022,1249291,Westminster Society,,Bi-Borough Director of Integrated Care,4523.34
24/03/2022,1249291,Westminster Society,,Bi-Borough Director of Integrated Care,1056.37
24/03/2022,1249291,Westminster Society,,Bi-Borough Director of Integrated Care,3430.86
24/03/2022,1249291,Westminster Society,,Bi-Borough Director of Integrated Care,5200.46
24/03/2022,1249291,Westminster Society,,Bi-Borough Director of Integrated Care,824
24/03/2022,1249291,Westminster Society,,Bi-Borough Director of Integrated Care,1264
24/03/2022,1249291,Westminster Society,,Bi-Borough Director of Integrated Care,2528
24/03/2022,1249291,Westminster Society,,Bi-Borough Director of Integrated Care,824
24/03/2022,1249291,Westminster Society,,Bi-Borough Director of Integrated Care,10364.8
24/03/2022,1249291,Westminster Society,,Bi-Borough Director of Integrated Care,7863.91
24/03/2022,1249291,Westminster Society,,Bi-Borough Director of Integrated Care,1580.02
24/03/2022,1249291,Westminster Society,,Bi-Borough Director of Integrated Care,824
24/03/2022,1249291,Westminster Society,,Bi-Borough Director of Integrated Care,1056.37
24/03/2022,1249291,Westminster Society,,Bi-Borough Director of Integrated Care,3566.31
24/03/2022,1249291,Westminster Society,,Bi-Borough Director of Integrated Care,3476.02
24/03/2022,1249291,Westminster Society,,Bi-Borough Director of Integrated Care,5778.29
24/03/2022,1249291,Westminster Society,,Bi-Borough Director of Integrated Care,6320
24/03/2022,1249291,Westminster Society,,Bi-Borough Director of Integrated Care,4514.29
24/03/2022,1249291,Westminster Society,,Bi-Borough Director of Integrated Care,3430.86
24/03/2022,1249291,Westminster Society,,Bi-Borough Director of Integrated Care,4523.34
24/03/2022,1249291,Westminster Society,,Bi-Borough Director of Integrated Care,1056.37
24/03/2022,1249291,Westminster Society,,Bi-Borough Director of Integrated Care,902.86
24/03/2022,1249291,Westminster Society,,Bi-Borough Director of Integrated Care,2437.71
24/03/2022,1249291,Westminster Society,,Bi-Borough Director of Integrated Care,6952
24/03/2022,1249291,Westminster Society,,Bi-Borough Director of Integrated Care,618.01
24/03/2022,1249291,Westminster Society,,Bi-Borough Director of Integrated Care,618.01
24/03/2022,1249291,Westminster Society,,Bi-Borough Director of Integrated Care,10653.71
24/03/2022,1249291,Westminster Society,,Bi-Borough Director of Integrated Care,1856.64
24/03/2022,1249291,Westminster Society,,Bi-Borough Director of Integrated Care,6613.44
24/03/2022,1249291,Westminster Society,,Bi-Borough Director of Integrated Care,1264
24/03/2022,1249291,Westminster Society,,Bi-Borough Director of Integrated Care,1264
24/03/2022,1249291,Westminster Society,,Bi-Borough Director of Integrated Care,722.29
24/03/2022,1249291,Westminster Society,,Bi-Borough Director of Integrated Care,2798.86
24/03/2022,1249291,Westminster Society,,Bi-Borough Director of Integrated Care,1038.31
24/03/2022,1249291,Westminster Society,,Bi-Borough Director of Integrated Care,1056.37
24/03/2022,1249291,Westminster Society,,Bi-Borough Director of Integrated Care,7656.23
05/01/2022,1246224,Whitmore Vale Housing Association,,Bi-Borough Director of Integrated Care,3688.8
02/02/2022,1246224,Whitmore Vale Housing Association,,Bi-Borough Director of Integrated Care,3688.8
03/03/2022,1246224,Whitmore Vale Housing Association,,Bi-Borough Director of Integrated Care,3688.8
24/03/2022,1246224,Whitmore Vale Housing Association,,Bi-Borough Director of Integrated Care,4215.77
05/01/2022,1243566,Yarrow Housing Ltd,,Bi-Borough Director of Integrated Care,8301.92
05/01/2022,1243566,Yarrow Housing Ltd,,Bi-Borough Director of Integrated Care,7851.2
05/01/2022,1243566,Yarrow Housing Ltd,,Bi-Borough Director of Integrated Care,3632.88
05/01/2022,1243566,Yarrow Housing Ltd,,Bi-Borough Director of Integrated Care,3245.28
05/01/2022,1243566,Yarrow Housing Ltd,,Bi-Borough Director of Integrated Care,814.08
05/01/2022,1243566,Yarrow Housing Ltd,,Bi-Borough Director of Integrated Care,5550.8
05/01/2022,1243566,Yarrow Housing Ltd,,Bi-Borough Director of Integrated Care,4886.32
05/01/2022,1243566,Yarrow Housing Ltd,,Bi-Borough Director of Integrated Care,3889.16
05/01/2022,1243566,Yarrow Housing Ltd,,Bi-Borough Director of Integrated Care,7297.56
28/01/2022,1243566,Yarrow Housing Ltd,,Bi-Borough Director of Integrated Care,15842.4
02/02/2022,1243566,Yarrow Housing Ltd,,Bi-Borough Director of Integrated Care,8301.92
02/02/2022,1243566,Yarrow Housing Ltd,,Bi-Borough Director of Integrated Care,7851.2
02/02/2022,1243566,Yarrow Housing Ltd,,Bi-Borough Director of Integrated Care,3632.88
02/02/2022,1243566,Yarrow Housing Ltd,,Bi-Borough Director of Integrated Care,4245.28
02/02/2022,1243566,Yarrow Housing Ltd,,Bi-Borough Director of Integrated Care,5550.8
02/02/2022,1243566,Yarrow Housing Ltd,,Bi-Borough Director of Integrated Care,4886.32
02/02/2022,1243566,Yarrow Housing Ltd,,Bi-Borough Director of Integrated Care,3889.16
02/02/2022,1243566,Yarrow Housing Ltd,,Bi-Borough Director of Integrated Care,7297.56
03/03/2022,1243566,Yarrow Housing Ltd,,Bi-Borough Director of Integrated Care,8301.92
03/03/2022,1243566,Yarrow Housing Ltd,,Bi-Borough Director of Integrated Care,7851.2
03/03/2022,1243566,Yarrow Housing Ltd,,Bi-Borough Director of Integrated Care,3632.88
03/03/2022,1243566,Yarrow Housing Ltd,,Bi-Borough Director of Integrated Care,7297.56
03/03/2022,1243566,Yarrow Housing Ltd,,Bi-Borough Director of Integrated Care,3623.09
03/03/2022,1243566,Yarrow Housing Ltd,,Bi-Borough Director of Integrated Care,5550.8
03/03/2022,1243566,Yarrow Housing Ltd,,Bi-Borough Director of Integrated Care,4886.32
03/03/2022,1243566,Yarrow Housing Ltd,,Bi-Borough Director of Integrated Care,3889.16
16/03/2022,1243566,Yarrow Housing Ltd,,Bi-Borough Director of Integrated Care,31684.8
24/03/2022,1243566,Yarrow Housing Ltd,,Bi-Borough Director of Integrated Care,6343.77
24/03/2022,1243566,Yarrow Housing Ltd,,Bi-Borough Director of Integrated Care,5584.37
24/03/2022,1243566,Yarrow Housing Ltd,,Bi-Borough Director of Integrated Care,4444.75
24/03/2022,1243566,Yarrow Housing Ltd,,Bi-Borough Director of Integrated Care,8340.07
24/03/2022,1243566,Yarrow Housing Ltd,,Bi-Borough Director of Integrated Care,9487.91
24/03/2022,1243566,Yarrow Housing Ltd,,Bi-Borough Director of Integrated Care,8972.8
24/03/2022,1243566,Yarrow Housing Ltd,,Bi-Borough Director of Integrated Care,4151.86
24/03/2022,1243566,Yarrow Housing Ltd,,Bi-Borough Director of Integrated Care,3855.36
13/01/2022,1249317,Zocalo Ltd T/as Bluebird Care,,Bi-Borough Director of Integrated Care,3982.5
13/01/2022,1249317,Zocalo Ltd T/as Bluebird Care,,Bi-Borough Director of Integrated Care,2019.73
02/02/2022,1249317,Zocalo Ltd T/as Bluebird Care,,Bi-Borough Director of Integrated Care,2835
02/02/2022,1249317,Zocalo Ltd T/as Bluebird Care,,Bi-Borough Director of Integrated Care,1861.35
06/01/2022,1249318,Zodiac Arts Ltd,B*Voluntary-Spot-V Dep-Enhanced - do not u,Bi-Borough Director of Integrated Care,715.5
07/02/2022,1249318,Zodiac Arts Ltd,B*Voluntary-Spot-V Dep-Enhanced - do not u,Bi-Borough Director of Integrated Care,715.5
08/03/2022,1249318,Zodiac Arts Ltd,B*Voluntary-Spot-V Dep-Enhanced - do not u,Bi-Borough Director of Integrated Care,715.5
07/02/2022,1247204,GLS Educational Supplies Ltd,Equipment,Bi-Borough Director of Integrated Care,714
15/02/2022,1249020,Steven Carnaby Associates Ltd,Training related expenditure,Bi-Borough Director of Integrated Care,1000
22/02/2022,1249020,Steven Carnaby Associates Ltd,Training related expenditure,Bi-Borough Director of Integrated Care,2000
10/03/2022,1247328,Inclusive Technology Ltd,Equipment,Bi-Borough Director of Integrated Care,798
18/02/2022,1247594,Kingsfield Computer Products Ltd,Equipment,Bi-Borough Director of Integrated Care,1231.58
02/02/2022,1243797,Central & North West London Nhs,Payments to Health Authorities,Bi-Borough Director of Integrated Care,15900.78
17/03/2022,1243797,Central & North West London Nhs,Payments to Health Authorities,Bi-Borough Director of Integrated Care,47702.34
29/03/2022,1243797,Central & North West London Nhs,Payments to Health Authorities,Bi-Borough Director of Integrated Care,32332
03/03/2022,1249079,The Appropriate Adult Service Ltd,Legal Costs,Bi-Borough Director of Integrated Care,1445
28/03/2022,1246262,Brent Wandsworth & Westminster,B*Voluntary-Spot-V Dep-Enhanced - do not u,Bi-Borough Director of Integrated Care,600
05/01/2022,1248618,Riverside Echg,,Bi-Borough Director of Integrated Care,1381.92
02/02/2022,1248618,Riverside Echg,,Bi-Borough Director of Integrated Care,1381.92
03/03/2022,1248618,Riverside Echg,,Bi-Borough Director of Integrated Care,1381.92
24/03/2022,1248618,Riverside Echg,,Bi-Borough Director of Integrated Care,1579.34
03/03/2022,1243797,Central & North West London Nhs,Payments to Health Authorities,Bi-Borough Director of Integrated Care,305791
04/03/2022,1243797,Central & North West London Nhs,Payments to Health Authorities,Bi-Borough Director of Integrated Care,50746
08/03/2022,1243797,Central & North West London Nhs,Payments to Health Authorities,Bi-Borough Director of Integrated Care,12686.31
08/03/2022,1243797,Central & North West London Nhs,Payments to Health Authorities,Bi-Borough Director of Integrated Care,4228.77
08/03/2022,1243797,Central & North West London Nhs,Payments to Health Authorities,Bi-Borough Director of Integrated Care,12686.31
08/03/2022,1243797,Central & North West London Nhs,Payments to Health Authorities,Bi-Borough Director of Integrated Care,8457.54
10/03/2022,1243797,Central & North West London Nhs,Payments to Health Authorities,Bi-Borough Director of Integrated Care,1394.75
29/03/2022,1243797,Central & North West London Nhs,Payments to Health Authorities,Bi-Borough Director of Integrated Care,15704
05/01/2022,1247852,Look Ahead Care and Support Ltd,,Bi-Borough Director of Integrated Care,897.92
05/01/2022,1247852,Look Ahead Care and Support Ltd,,Bi-Borough Director of Integrated Care,842.28
05/01/2022,1247852,Look Ahead Care and Support Ltd,,Bi-Borough Director of Integrated Care,842.28
05/01/2022,1247852,Look Ahead Care and Support Ltd,,Bi-Borough Director of Integrated Care,1256.64
05/01/2022,1247852,Look Ahead Care and Support Ltd,,Bi-Borough Director of Integrated Care,1303.28
05/01/2022,1247852,Look Ahead Care and Support Ltd,,Bi-Borough Director of Integrated Care,955.56
05/01/2022,1247852,Look Ahead Care and Support Ltd,,Bi-Borough Director of Integrated Care,897.92
05/01/2022,1247852,Look Ahead Care and Support Ltd,,Bi-Borough Director of Integrated Care,1413
05/01/2022,1247852,Look Ahead Care and Support Ltd,,Bi-Borough Director of Integrated Care,955.56
05/01/2022,1247852,Look Ahead Care and Support Ltd,,Bi-Borough Director of Integrated Care,1256.64
02/02/2022,1247852,Look Ahead Care and Support Ltd,,Bi-Borough Director of Integrated Care,897.92
02/02/2022,1247852,Look Ahead Care and Support Ltd,,Bi-Borough Director of Integrated Care,842.28
02/02/2022,1247852,Look Ahead Care and Support Ltd,,Bi-Borough Director of Integrated Care,842.28
02/02/2022,1247852,Look Ahead Care and Support Ltd,,Bi-Borough Director of Integrated Care,1256.64
02/02/2022,1247852,Look Ahead Care and Support Ltd,,Bi-Borough Director of Integrated Care,955.56
02/02/2022,1247852,Look Ahead Care and Support Ltd,,Bi-Borough Director of Integrated Care,897.92
02/02/2022,1247852,Look Ahead Care and Support Ltd,,Bi-Borough Director of Integrated Care,1413
02/02/2022,1247852,Look Ahead Care and Support Ltd,,Bi-Borough Director of Integrated Care,955.56
02/02/2022,1247852,Look Ahead Care and Support Ltd,,Bi-Borough Director of Integrated Care,1256.64
03/03/2022,1247852,Look Ahead Care and Support Ltd,,Bi-Borough Director of Integrated Care,897.92
03/03/2022,1247852,Look Ahead Care and Support Ltd,,Bi-Borough Director of Integrated Care,842.28
03/03/2022,1247852,Look Ahead Care and Support Ltd,,Bi-Borough Director of Integrated Care,842.28
03/03/2022,1247852,Look Ahead Care and Support Ltd,,Bi-Borough Director of Integrated Care,1256.64
03/03/2022,1247852,Look Ahead Care and Support Ltd,,Bi-Borough Director of Integrated Care,955.56
03/03/2022,1247852,Look Ahead Care and Support Ltd,,Bi-Borough Director of Integrated Care,897.92
03/03/2022,1247852,Look Ahead Care and Support Ltd,,Bi-Borough Director of Integrated Care,1413
03/03/2022,1247852,Look Ahead Care and Support Ltd,,Bi-Borough Director of Integrated Care,955.56
03/03/2022,1247852,Look Ahead Care and Support Ltd,,Bi-Borough Director of Integrated Care,1256.64
24/03/2022,1247852,Look Ahead Care and Support Ltd,,Bi-Borough Director of Integrated Care,1092.07
24/03/2022,1247852,Look Ahead Care and Support Ltd,,Bi-Borough Director of Integrated Care,1436.16
24/03/2022,1247852,Look Ahead Care and Support Ltd,,Bi-Borough Director of Integrated Care,1026.19
24/03/2022,1247852,Look Ahead Care and Support Ltd,,Bi-Borough Director of Integrated Care,962.61
24/03/2022,1247852,Look Ahead Care and Support Ltd,,Bi-Borough Director of Integrated Care,962.61
24/03/2022,1247852,Look Ahead Care and Support Ltd,,Bi-Borough Director of Integrated Care,1436.16
24/03/2022,1247852,Look Ahead Care and Support Ltd,,Bi-Borough Director of Integrated Care,1092.07
24/03/2022,1247852,Look Ahead Care and Support Ltd,,Bi-Borough Director of Integrated Care,1026.19
24/03/2022,1247852,Look Ahead Care and Support Ltd,,Bi-Borough Director of Integrated Care,1614.86
05/01/2022,1244970,Octavia Housing & Care (Rent,,Bi-Borough Director of Integrated Care,890.5
02/02/2022,1244970,Octavia Housing & Care (Rent,,Bi-Borough Director of Integrated Care,712.4
03/03/2022,1244970,Octavia Housing & Care (Rent,,Bi-Borough Director of Integrated Care,712.4
24/03/2022,1244970,Octavia Housing & Care (Rent,,Bi-Borough Director of Integrated Care,814.17
05/01/2022,1248618,Riverside Echg,,Bi-Borough Director of Integrated Care,1236.28
05/01/2022,1248618,Riverside Echg,,Bi-Borough Director of Integrated Care,706.72
